Ref No,Fund Type,Dept,Cost Centre Description    ,Description    ,Creditor Name    ,GL Code Net Amount,Payment date        
2,Revenue,CAHD,Bed Purchasing - North,Permanent Nursing,.,3294.28, 16-Jan-2018
3,Revenue,CAHD,South Glos Users in South Glos Homes,Permanent Nursing,.,620.20, 16-Jan-2018
4,Revenue,CAHD,Bed Purchasing - South,Permanent Nursing,.,3349.56, 16-Jan-2018
5,Revenue,CAHD,South Glos Users in South Glos Homes,Permanent Nursing,.,620.20, 16-Jan-2018
6,Revenue,CAHD,Bed Purchasing - North,Permanent Nursing,.,4400.00, 16-Jan-2018
7,Revenue,CAHD,South Glos Users in South Glos Homes,Permanent Nursing,.,620.20, 16-Jan-2018
8,Revenue,CAHD,Bed Purchasing - South,Permanent Nursing,.,3294.28, 16-Jan-2018
9,Revenue,CAHD,South Glos Users in South Glos Homes,Permanent Nursing,.,620.20, 16-Jan-2018
10,Revenue,CAHD,Bed Purchasing - Southmead Hospital,Permanent Nursing,.,4800.00, 16-Jan-2018
11,Revenue,CAHD,South Glos Users in South Glos Homes,Permanent Nursing,.,620.20, 16-Jan-2018
12,Revenue,CAHD,South Glos Users in South Glos Homes,Permanent Nursing,.,620.20, 16-Jan-2018
13,Revenue,CAHD,Bed Purchasing - North,Permanent Residential,.,4254.60, 16-Jan-2018
14,Revenue,CAHD,South Glos Users in South Glos Homes,Permanent Nursing,.,620.20, 16-Jan-2018
15,Revenue,CAHD,Bed Purchasing - South,Permanent Nursing,.,3621.48, 16-Jan-2018
16,Revenue,CAHD,South Glos Users in South Glos Homes,Permanent Nursing,.,620.20, 16-Jan-2018
17,Revenue,CAHD,Bed Purchasing - Southmead Hospital,Permanent Nursing,.,3824.08, 16-Jan-2018
18,Revenue,CAHD,South Glos Users in South Glos Homes,Permanent Nursing,.,620.20, 16-Jan-2018
19,Revenue,CAHD,South Glos Users in South Glos Homes,Permanent Nursing,.,620.20, 16-Jan-2018
20,Revenue,CAHD,South Glos Users in South Glos Homes,Permanent Nursing,.,620.20, 16-Jan-2018
21,Revenue,CAHD,Bed Purchasing - North,Respite Planned - Nursing,.,3522.00, 16-Jan-2018
22,Revenue,CAHD,South Glos Users in South Glos Homes,Permanent Nursing,.,620.20, 16-Jan-2018
23,Revenue,CAHD,South Glos Users in South Glos Homes,Permanent Nursing,.,620.20, 16-Jan-2018
24,Revenue,CAHD,South Glos Users in South Glos Homes,Permanent Nursing,.,620.20, 16-Jan-2018
25,Revenue,CAHD,Bed Purchasing - North,Permanent Nursing,.,11628.57, 16-Jan-2018
26,Revenue,CAHD,Bed Purchasing - North,Permanent Nursing,.,4400.00, 16-Jan-2018
27,Revenue,CAHD,South Glos Users in South Glos Homes,Permanent Nursing,.,620.20, 16-Jan-2018
28,Revenue,CAHD,Bed Purchasing - North,Permanent Nursing,.,4228.56, 16-Jan-2018
29,Revenue,CAHD,South Glos Users in South Glos Homes,Permanent Nursing,.,620.20, 16-Jan-2018
30,Revenue,CAHD,South Glos Users in South Glos Homes,Permanent Nursing,.,620.20, 16-Jan-2018
31,Revenue,CAHD,South Glos Users in South Glos Homes,Permanent Nursing,.,620.20, 16-Jan-2018
32,Revenue,CAHD,South Glos Users in South Glos Homes,Permanent Nursing,.,620.20, 16-Jan-2018
33,Revenue,CAHD,South Glos Users in South Glos Homes,Permanent Nursing,.,620.20, 16-Jan-2018
34,Revenue,CAHD,South Glos Users in South Glos Homes,Permanent Nursing,.,620.20, 16-Jan-2018
35,Revenue,CAHD,South Glos Users in South Glos Homes,Permanent Nursing,.,620.20, 16-Jan-2018
36,Revenue,CAHD,South Glos Users in South Glos Homes,Permanent Nursing,.,620.20, 16-Jan-2018
37,Revenue,CAHD,South Glos Users in South Glos Homes,Permanent Nursing,.,620.20, 16-Jan-2018
38,Revenue,CAHD,South Glos Users in South Glos Homes,Permanent Nursing,.,620.20, 16-Jan-2018
39,Revenue,CAHD,Bed Purchasing - North,Permanent Nursing,.,19800.00, 16-Jan-2018
40,Revenue,CAHD,Bed Purchasing - North,Permanent Nursing,.,4400.00, 16-Jan-2018
41,Revenue,CAHD,South Glos Users in South Glos Homes,Permanent Nursing,.,620.20, 16-Jan-2018
42,Revenue,CAHD,Bed Purchasing - North,Fees & Charges Income - General,.,2400.89, 16-Jan-2018
43,Revenue,CAHD,South Glos Users in South Glos Homes,Permanent Nursing,.,620.20, 16-Jan-2018
44,Revenue,CAHD,South Glos Users in South Glos Homes,Permanent Nursing,.,620.20, 16-Jan-2018
45,Revenue,CAHD,Bed Purchasing - North,Permanent Nursing,.,4179.80, 16-Jan-2018
46,Revenue,CAHD,South Glos Users in South Glos Homes,Permanent Nursing,.,620.20, 16-Jan-2018
47,Revenue,CAHD,South Glos Users in South Glos Homes,Permanent Nursing,.,620.20, 16-Jan-2018
48,Revenue,CAHD,South Glos Users in South Glos Homes,Permanent Nursing,.,620.20, 16-Jan-2018
49,Revenue,CAHD,South Glos Users in South Glos Homes,Permanent Nursing,.,620.20, 16-Jan-2018
50,Revenue,CAHD,South Glos Users in South Glos Homes,Permanent Nursing,.,620.20, 16-Jan-2018
51,Revenue,CAHD,South Glos Users in South Glos Homes,Permanent Nursing,.,620.20, 16-Jan-2018
52,Revenue,CAHD,South Glos Users in South Glos Homes,Permanent Nursing,.,620.20, 16-Jan-2018
53,Revenue,CAHD,South Glos Users in South Glos Homes,Permanent Nursing,.,620.20, 16-Jan-2018
54,Revenue,CAHD,South Glos Users in South Glos Homes,Permanent Nursing,.,620.20, 16-Jan-2018
55,Revenue,CAHD,South Glos Users in South Glos Homes,Permanent Nursing,.,620.20, 16-Jan-2018
56,Revenue,CAHD,Bed Purchasing - Southmead Hospital,Fees & Charges Income - General,.,1171.64, 16-Jan-2018
57,Revenue,CAHD,Bed Purchasing - Southmead Hospital,Fees & Charges Income - General,.,3921.43, 16-Jan-2018
58,Revenue,CAHD,South Glos Users in South Glos Homes,Permanent Nursing,.,1129.65, 16-Jan-2018
59,Revenue,CAHD,Bed Purchasing - Southmead Hospital,Fees & Charges Income - General,.,707.14, 16-Jan-2018
60,Revenue,CAHD,South Glos Users in South Glos Homes,Permanent Nursing,.,620.20, 16-Jan-2018
61,Revenue,CAHD,South Glos Users in South Glos Homes,Permanent Nursing,.,908.15, 16-Jan-2018
62,Revenue,CAHD,South Glos Users in South Glos Homes,Permanent Nursing,.,620.20, 16-Jan-2018
63,Revenue,CAHD,South Glos Users in South Glos Homes,Permanent Nursing,.,620.20, 16-Jan-2018
64,Revenue,CAHD,Bed Purchasing - North,Permanent Nursing,.,3114.96, 16-Jan-2018
65,Revenue,CAHD,South Glos Users in South Glos Homes,Permanent Nursing,.,620.20, 16-Jan-2018
66,Revenue,CAHD,Bed Purchasing - South,Permanent Nursing,.,3779.80, 16-Jan-2018
67,Revenue,CAHD,South Glos Users in South Glos Homes,Permanent Nursing,.,620.20, 16-Jan-2018
68,Revenue,CAHD,South Glos Users in South Glos Homes,Permanent Nursing,.,1772.00, 16-Jan-2018
69,Revenue,CAHD,South Glos Users in South Glos Homes,Permanent Nursing,.,620.20, 16-Jan-2018
70,Revenue,CAHD,Bed Purchasing - North,Permanent Nursing,.,3294.28, 16-Jan-2018
71,Revenue,CAHD,South Glos Users in South Glos Homes,Permanent Nursing,.,620.20, 16-Jan-2018
72,Revenue,CAHD,South Glos Users in South Glos Homes,Permanent Nursing,.,620.20, 16-Jan-2018
73,Revenue,CAHD,Bed Purchasing - North,Permanent Nursing,.,4400.00, 16-Jan-2018
74,Revenue,CAHD,South Glos Users in South Glos Homes,Permanent Nursing,.,620.20, 16-Jan-2018
75,Revenue,CAHD,South Glos Users in South Glos Homes,Permanent Nursing,.,620.20, 16-Jan-2018
76,Revenue,CAHD,Bed Purchasing - Southmead Hospital,Permanent Nursing,.,3824.08, 16-Jan-2018
77,Revenue,CAHD,South Glos Users in South Glos Homes,Permanent Nursing,.,620.20, 16-Jan-2018
78,Revenue,CAHD,South Glos Users in South Glos Homes,Permanent Nursing,.,620.20, 16-Jan-2018
79,Revenue,CAHD,South Glos Users in South Glos Homes,Permanent Nursing,.,620.20, 16-Jan-2018
80,Revenue,CAHD,South Glos Users in South Glos Homes,Permanent Nursing,.,620.20, 16-Jan-2018
81,Revenue,CAHD,Bed Purchasing - North,Permanent Residential,.,3545.52, 16-Jan-2018
82,Revenue,CAHD,Bed Purchasing - North,Permanent Nursing,.,12400.00, 16-Jan-2018
83,Revenue,CAHD,Bed Purchasing - South,Permanent Residential,.,3039.00, 16-Jan-2018
84,Revenue,CAHD,Bed Purchasing - South,Permanent Nursing,.,2880.00, 16-Jan-2018
85,Revenue,CAHD,Bed Purchasing - Southmead Hospital,Permanent Residential,.,3160.00, 16-Jan-2018
86,Revenue,CAHD,18-25 Year Olds,Permanent Residential,1 St Georges House,12778.20, 16-Jan-2018
87,Revenue,CAHD,Bed Purchasing - Southmead Hospital,Permanent Residential,1St Floor Lingfield House,2600.00, 16-Jan-2018
88,Revenue,CAHD,Bed Purchasing - North,Permanent Residential,1St Floor Lingfield House,2600.00, 16-Jan-2018
89,Revenue,CAHD,Home Care - Elderly - South,Day Care / Social Activities,3 Trees Community Support Ltd,93.40, 08-Jan-2018
90,Revenue,CAHD,Home Care - Elderly - North,Day Care / Social Activities,3 Trees Community Support Ltd,1013.39, 08-Jan-2018
91,Revenue,CAHD,Home Care - Elderly - North,Other Small Contracts,3 Trees Community Support Ltd,723.85, 08-Jan-2018
92,Revenue,CAHD,Home Care - Elderly - North,Supported Living,3 Trees Community Support Ltd,7123.50, 08-Jan-2018
93,Revenue,CAHD,Home Care - Elderly - North,Day Care / Social Activities,3 Trees Community Support Ltd,551.06, 15-Jan-2018
94,Revenue,CAHD,Home Care - Elderly - North,Other Small Contracts,3 Trees Community Support Ltd,448.32, 15-Jan-2018
95,Revenue,CAHD,Home Care - Elderly - North,Supported Living,3 Trees Community Support Ltd,6719.00, 15-Jan-2018
96,Revenue,CAHD,Home Care - Elderly - South,Day Care / Social Activities,3 Trees Community Support Ltd,93.40, 15-Jan-2018
97,Revenue,CAHD,Home Care - Elderly - North,Day Care / Social Activities,3 Trees Community Support Ltd,1148.82, 15-Jan-2018
98,Revenue,CAHD,Home Care - Elderly - North,Other Small Contracts,3 Trees Community Support Ltd,579.08, 15-Jan-2018
99,Revenue,CAHD,Home Care - Elderly - North,Supported Living,3 Trees Community Support Ltd,7415.88, 15-Jan-2018
100,Revenue,CAHD,Home Care - Elderly - South,Day Care / Social Activities,3 Trees Community Support Ltd,93.40, 19-Jan-2018
101,Revenue,CAHD,Home Care - Elderly - North,Day Care / Social Activities,3 Trees Community Support Ltd,1377.65, 19-Jan-2018
102,Revenue,CAHD,Home Care - Elderly - North,Other Small Contracts,3 Trees Community Support Ltd,709.84, 19-Jan-2018
103,Revenue,CAHD,Home Care - Elderly - North,Supported Living,3 Trees Community Support Ltd,7444.49, 19-Jan-2018
104,Revenue,CAHD,Bed Purchasing - North,Permanent Nursing,3Rd Floor  The Aspect,697.23, 16-Jan-2018
105,Revenue,CAHD,18-25 Year Olds,Permanent Residential,5Th Floor Harlech Court,14619.64, 16-Jan-2018
106,Revenue,CAHD,18-25 Year Olds,Permanent Residential,5Th Floor Harlech Court,14760.00, 16-Jan-2018
107,Revenue,CAHD,18-25 Year Olds,Permanent Residential,5Th Floor Harlech Court,13130.76, 16-Jan-2018
108,Revenue,CAHD,Bed Purchasing - North,Permanent Residential,5Th Floor Harlech Court,15870.60, 16-Jan-2018
109,Revenue,CAHD,18-25 Year Olds,Permanent Residential,5Th Floor Harlech Court,17460.56, 16-Jan-2018
110,Revenue,CAHD,18-25 Year Olds,Permanent Residential,5Th Floor Harlech Court,528.00, 16-Jan-2018
111,Revenue,CAHD,Bed Purchasing - North,Permanent Residential,5Th Floor Harlech Court,13240.48, 16-Jan-2018
112,Revenue,CAHD,18-25 Year Olds,Permanent Residential,5Th Floor Harlech Court,45441.05, 16-Jan-2018
113,Revenue,CAHD,18-25 Year Olds,Permanent Residential,5Th Floor Harlech Court,13253.64, 16-Jan-2018
114,Revenue,CAHD,Bed Purchasing - North,Permanent Residential,5Th Floor Harlech Court,14104.28, 16-Jan-2018
115,Revenue,CAHD,Jointly Funded H&SC Packages,Permanent Residential,5Th Floor Harlech Court,3490.16, 16-Jan-2018
116,Revenue,CAHD,18-25 Year Olds,Permanent Residential,5Th Floor Harlech Court,16704.04, 16-Jan-2018
117,Revenue,CAHD,Bed Purchasing - South,Permanent Residential,5Th Floor Harlech Court,15973.00, 16-Jan-2018
118,Revenue,CAHD,Bed Purchasing - South,Permanent Residential,5Th Floor Harlech Court,9985.60, 16-Jan-2018
119,Revenue,CAHD,Bed purchasing - S28A Under 65 - South,Permanent Residential,5Th Floor Harlech Court,10450.56, 16-Jan-2018
120,Revenue,CAHD,Bed Purchasing - South,Permanent Residential,5Th Floor Harlech Court,10960.12, 16-Jan-2018
121,Revenue,CAHD,Alexandra Way,Mechanical & Electrical Maintenance,A E Horder (Contracting) Limited,584.18, 19-Jan-2018
122,Revenue,CAHD,Bed Purchasing - North,Permanent Nursing,ABI Development Limited,7591.84, 16-Jan-2018
123,Revenue,CAHD,Home Care - Elderly - North,Day Care / Social Activities,About Me Care and Support Limited,613.76, 17-Jan-2018
124,Revenue,CAHD,Home Care - Elderly - South,Day Care / Social Activities,About Me Care and Support Limited,832.96, 15-Jan-2018
125,Revenue,CAHD,Adults Safeguarding,Professional Fees,ACAS,835.00, 15-Jan-2018
126,Revenue,CAHD,Community Support - South,Preventative Assistance,Accessible Transport 4 U,611.00, 30-Jan-2018
127,Revenue,CAHD,Training - Adult Services,Training Expenses,Acorn Health & Safety Limited,465.00, 29-Jan-2018
128,Revenue,CAHD,Home Care - Elderly - North,Other Small Contracts,Advantedge Commercial Finance Limited,766.08, 25-Jan-2018
129,Revenue,CAHD,Home Care - Elderly - South,Other Small Contracts,Advantedge Commercial Finance Limited,2845.44, 26-Jan-2018
130,Revenue,CAHD,Home Care - Elderly - South,Other Small Contracts,Advantedge Commercial Finance Limited,2170.56, 26-Jan-2018
131,Revenue,CAHD,Home Care - Elderly - North,Other Small Contracts,Advantedge Commercial Finance Limited,766.08, 26-Jan-2018
132,Revenue,CAHD,Home Care - Elderly - South,Other Small Contracts,Agincare UK Limited,2114.60, 04-Jan-2018
133,Revenue,CAHD,Home Care - Elderly - North,Other Small Contracts,Agincare UK Limited,1600.12, 04-Jan-2018
134,Revenue,CAHD,Home care - Elderly MH - South,Other Small Contracts,Agincare UK Limited,61.04, 04-Jan-2018
135,Revenue,CAHD,Home Care - Elderly - South,Other Small Contracts,Agincare UK Limited,2066.64, 04-Jan-2018
136,Revenue,CAHD,Home Care - Elderly - North,Other Small Contracts,Agincare UK Limited,1508.56, 04-Jan-2018
137,Revenue,CAHD,Home Care - Elderly - South,Other Small Contracts,Agincare UK Limited,2014.32, 30-Jan-2018
138,Revenue,CAHD,Home Care - Elderly - North,Other Small Contracts,Agincare UK Limited,1334.16, 30-Jan-2018
139,Revenue,CAHD,Extra Care Housing,Private & Voluntary Home Care,Agincare UK Limited,4789.23, 17-Jan-2018
140,Revenue,CAHD,Extra Care Housing,Private & Voluntary Home Care,Agincare UK Limited,3791.68, 17-Jan-2018
141,Revenue,CAHD,Extra Care Housing,Private & Voluntary Home Care,Agincare UK Limited,3665.77, 17-Jan-2018
142,Revenue,CAHD,Extra Care Housing,Private & Voluntary Home Care,Agincare UK Limited,3830.42, 17-Jan-2018
143,Revenue,CAHD,Extra Care Housing,Private & Voluntary Home Care,Agincare UK Limited,2305.03, 17-Jan-2018
144,Revenue,CAHD,Extra Care Housing,Private & Voluntary Home Care,Agincare UK Limited,2154.91, 19-Jan-2018
145,Revenue,CAHD,Extra Care Housing,Private & Voluntary Home Care,Agincare UK Limited,2963.61, 17-Jan-2018
146,Revenue,CAHD,Extra Care Housing,Private & Voluntary Home Care,Agincare UK Limited,4227.50, 08-Jan-2018
147,Revenue,CAHD,Prison Assessments & Costs,Other Supplies & Services,Agincare UK Limited,10096.83, 04-Jan-2018
148,Revenue,CAHD,Home Care - Elderly - South,Other Small Contracts,AliMo Care Ltd,1160.32, 04-Jan-2018
149,Revenue,CAHD,Home Care - Elderly - South,Other Small Contracts,AliMo Care Ltd,1102.08, 04-Jan-2018
150,Revenue,CAHD,Home Care - Elderly - South,Other Small Contracts,AliMo Care Ltd,1052.80, 12-Jan-2018
151,Revenue,CAHD,Home Care - Elderly - South,Other Small Contracts,AliMo Care Ltd,1066.24, 18-Jan-2018
152,Revenue,CAHD,Home Care - Elderly - South,Other Small Contracts,AliMo Care Ltd,1052.80, 26-Jan-2018
153,Revenue,CAHD,Bed Purchasing - Southmead Hospital,Permanent Nursing,Allambie Court,2223.80, 16-Jan-2018
154,Revenue,CAHD,Bed Purchasing - South,Permanent Nursing,Ambleside Nusing Home,2126.16, 16-Jan-2018
155,Revenue,CAHD,Bed Purchasing - Southmead Hospital,Permanent Nursing,Amerind Grove Nursing Home,2593.60, 16-Jan-2018
156,Revenue,CAHD,Tenancy Start Up Scheme,Other Supplies & Services,Andrews Letting & Management,1419.00, 08-Jan-2018
157,Revenue,CAHD,Tenancy Start Up Scheme,Other Supplies & Services,ARC Developments,2811.00, 18-Jan-2018
158,Revenue,CAHD,Bed Purchasing - North,Permanent Residential,Ark Care Homes Ltd,11266.84, 16-Jan-2018
159,Revenue,CAHD,Bed Purchasing - South,Permanent Nursing,Ash Grove House,2836.40, 16-Jan-2018
160,Revenue,CAHD,Jointly Funded H&SC Packages,Permanent Residential,Ash View House,1065.12, 16-Jan-2018
161,Revenue,CAHD,Bed Purchasing - South,Permanent Residential,Ash View House,5195.24, 16-Jan-2018
162,Revenue,CAHD,S117 Placements PCT,Permanent Residential,Ash View House,7241.60, 16-Jan-2018
163,Revenue,CAHD,18-25 Year Olds,Permanent Residential,Ash View House,6803.84, 16-Jan-2018
164,Revenue,CAHD,Section 117 Placements MH Younger,Permanent Residential,Ash View House,4719.08, 16-Jan-2018
165,Revenue,CAHD,Jointly Funded H&SC Packages,Permanent Residential,Ash View House,2022.48, 16-Jan-2018
166,Revenue,CAHD,Bed purchasing - Elderly S117 - South,Permanent Residential,Ash View House,6414.04, 16-Jan-2018
167,Revenue,CAHD,18-25 Year Olds,Permanent Residential,Ash View House,6340.00, 16-Jan-2018
168,Revenue,CAHD,Bed Purchasing - North,Permanent Residential,Aspects 2 Limited,6930.72, 16-Jan-2018
169,Revenue,CAHD,Bed Purchasing - North,Permanent Residential,Ategi Limited,12464.92, 16-Jan-2018
170,Revenue,CAHD,18-25 Year Olds,Permanent Residential,Aurora Care & Education,62497.83, 11-Jan-2018
171,Revenue,CAHD,Bed Purchasing - South,Permanent Residential,Autism Specialised Care Homes,6235.88, 16-Jan-2018
172,Revenue,CAHD,Bed Purchasing - South,Permanent Residential,Avery Homes Downend Limited,13645.71, 16-Jan-2018
173,Revenue,CAHD,Bed Purchasing - South,Fees & Charges Income - General,Avery Homes Downend Limited,2638.69, 16-Jan-2018
174,Revenue,CAHD,Bed Purchasing - South,Fees & Charges Income - General,Avery Homes Downend Limited,3982.86, 16-Jan-2018
175,Revenue,CAHD,Bed Purchasing - South,Fees & Charges Income - General,Avery Homes Downend Limited,644.29, 16-Jan-2018
176,Revenue,CAHD,Younger Adult Mental Health,Health Services (Third Party Payments),Avon & Wiltshire Mental Health,1693.33, 12-Jan-2018
177,Revenue,CAHD,Community Support - South,Preventative Assistance,Banff Securities Limited,957.00, 15-Jan-2018
178,Revenue,CAHD,Purchase of RAC places,Other L.A.'s - General,Bath & North East Somerset Council,1772.00, 15-Jan-2018
179,Revenue,CAHD,Purchase of RAC places,Other L.A.'s - General,Bath & North East Somerset Council,1417.60, 12-Jan-2018
180,Revenue,CAHD,Purchase of RAC places,Other L.A.'s - General,Bath & North East Somerset Council,966.08, 05-Jan-2018
181,Revenue,CAHD,Purchase of RAC places,Other L.A.'s - General,Bath & North East Somerset Council,1417.60, 05-Jan-2018
182,Revenue,CAHD,Purchase of RAC places,Other L.A.'s - General,Bath & North East Somerset Council,1207.60, 26-Jan-2018
183,Revenue,CAHD,Purchase of RAC places,Other L.A.'s - General,Bath & North East Somerset Council,1772.00, 26-Jan-2018
184,Revenue,CAHD,South Glos Users in South Glos Homes,Permanent Nursing,Beaufort Grange Care Home,620.20, 16-Jan-2018
185,Revenue,CAHD,South Glos Users in South Glos Homes,Permanent Nursing,Beaufort Grange Care Home,620.20, 16-Jan-2018
186,Revenue,CAHD,Bed Purchasing - North,Permanent Nursing,Beaufort Grange Care Home,15674.25, 16-Jan-2018
187,Revenue,CAHD,Bed Purchasing - North,Respite Planned - Nursing,Beaufort Grange Care Home,2089.90, 16-Jan-2018
188,Revenue,CAHD,South Glos Users in South Glos Homes,Permanent Nursing,Beaufort Grange Care Home,620.20, 16-Jan-2018
189,Revenue,CAHD,South Glos Users in South Glos Homes,Permanent Nursing,Beaufort Grange Care Home,620.20, 16-Jan-2018
190,Revenue,CAHD,South Glos Users in South Glos Homes,Permanent Nursing,Beaufort Grange Care Home,620.20, 16-Jan-2018
191,Revenue,CAHD,South Glos Users in South Glos Homes,Permanent Nursing,Beaufort Grange Care Home,620.20, 16-Jan-2018
192,Revenue,CAHD,South Glos Users in South Glos Homes,Permanent Nursing,Beaufort Grange Care Home,620.20, 16-Jan-2018
193,Revenue,CAHD,South Glos Users in South Glos Homes,Permanent Nursing,Beaufort Grange Care Home,620.20, 16-Jan-2018
194,Revenue,CAHD,South Glos Users in South Glos Homes,Permanent Nursing,Beaufort Grange Care Home,620.20, 16-Jan-2018
195,Revenue,CAHD,Bed Purchasing - Elderly S117- North,Permanent Nursing,Beaufort Grange Care Home,4673.92, 16-Jan-2018
196,Revenue,CAHD,South Glos Users in South Glos Homes,Permanent Nursing,Beaufort Grange Care Home,620.20, 16-Jan-2018
197,Revenue,CAHD,South Glos Users in South Glos Homes,Permanent Nursing,Beaufort Grange Care Home,620.20, 16-Jan-2018
198,Revenue,CAHD,South Glos Users in South Glos Homes,Permanent Nursing,Beaufort Grange Care Home,620.20, 16-Jan-2018
199,Revenue,CAHD,South Glos Users in South Glos Homes,Permanent Nursing,Beaufort Grange Care Home,620.20, 16-Jan-2018
200,Revenue,CAHD,South Glos Users in South Glos Homes,Permanent Nursing,Beaufort Grange Care Home,620.20, 16-Jan-2018
201,Revenue,CAHD,Bed Purchasing - North,Permanent Residential,Beaufort House,2443.36, 16-Jan-2018
202,Revenue,CAHD,Bed Purchasing - Southmead Hospital,Permanent Residential,Beaufort House,2660.00, 16-Jan-2018
203,Revenue,CAHD,Bed Purchasing - North,Permanent Residential,Beaufort House,2464.28, 16-Jan-2018
204,Revenue,CAHD,Bed Purchasing - South,Permanent Residential,Beaufort House,2431.20, 16-Jan-2018
205,Revenue,CAHD,Bed Purchasing - South,Permanent Residential,Beaufort House,2339.40, 16-Jan-2018
206,Revenue,CAHD,Bed Purchasing - North,Permanent Residential,Beaufort House,2407.80, 16-Jan-2018
207,Revenue,CAHD,Bed Purchasing - Southmead Hospital,Permanent Residential,Beaufort House,2600.00, 16-Jan-2018
208,Revenue,CAHD,Bed Purchasing - Southmead Hospital,Respite Planned - Residential,Beaufort House,2660.00, 16-Jan-2018
209,Revenue,CAHD,Bed Purchasing - Southmead Hospital,Respite Planned - Residential,Beaufort House,2375.00, 16-Jan-2018
210,Revenue,CAHD,Bed Purchasing - North,Permanent Residential,Beaufort House,2407.80, 16-Jan-2018
211,Revenue,CAHD,Bed Purchasing - Southmead Hospital,Permanent Residential,Beaufort House,2660.00, 16-Jan-2018
212,Revenue,CAHD,Bed Purchasing - Southmead Hospital,Permanent Residential,Beaufort House,2600.00, 16-Jan-2018
213,Revenue,CAHD,Bed Purchasing - North,Respite Planned - Residential,Beaufort House,2280.00, 16-Jan-2018
214,Revenue,CAHD,Bed Purchasing - North,Respite Planned - Residential,Beaufort House,1710.00, 16-Jan-2018
215,Revenue,CAHD,Bed Purchasing - North,Permanent Residential,Beaufort House,2587.48, 16-Jan-2018
216,Revenue,CAHD,Bed Purchasing - South,Permanent Residential,Beaufort House,2600.00, 16-Jan-2018
217,Revenue,CAHD,Bed Purchasing - Southmead Hospital,Permanent Residential,Beaufort House,2464.28, 16-Jan-2018
218,Revenue,CAHD,Bed Purchasing - Southmead Hospital,Permanent Residential,Beaufort House,2633.80, 16-Jan-2018
219,Revenue,CAHD,South Glos Users in South Glos Homes,Permanent Nursing,Beech House,620.20, 16-Jan-2018
220,Revenue,CAHD,Bed Purchasing - South,Permanent Residential,Beech House,2836.40, 16-Jan-2018
221,Revenue,CAHD,South Glos Users in South Glos Homes,Permanent Nursing,Beech House,620.20, 16-Jan-2018
222,Revenue,CAHD,South Glos Users in South Glos Homes,Permanent Nursing,Beech House,620.20, 16-Jan-2018
223,Revenue,CAHD,South Glos Users in South Glos Homes,Permanent Nursing,Beech House,620.20, 16-Jan-2018
224,Revenue,CAHD,South Glos Users in South Glos Homes,Permanent Nursing,Beech House,620.20, 16-Jan-2018
225,Revenue,CAHD,South Glos Users in South Glos Homes,Permanent Nursing,Beech House,1904.90, 16-Jan-2018
226,Revenue,CAHD,South Glos Users in South Glos Homes,Permanent Nursing,Beech House,620.20, 16-Jan-2018
227,Revenue,CAHD,Bed Purchasing - North,Permanent Nursing,Beech House,2709.76, 16-Jan-2018
228,Revenue,CAHD,South Glos Users in South Glos Homes,Permanent Nursing,Beech House,620.20, 16-Jan-2018
229,Revenue,CAHD,South Glos Users in South Glos Homes,Permanent Nursing,Beech House,620.20, 16-Jan-2018
230,Revenue,CAHD,South Glos Users in South Glos Homes,Permanent Nursing,Beech House,620.20, 16-Jan-2018
231,Revenue,CAHD,Bed Purchasing - North,Permanent Nursing,Beech House,3031.04, 16-Jan-2018
232,Revenue,CAHD,South Glos Users in South Glos Homes,Permanent Nursing,Beech House,620.20, 16-Jan-2018
233,Revenue,CAHD,Bed Purchasing - North,Permanent Nursing,Beech House,3400.00, 16-Jan-2018
234,Revenue,CAHD,South Glos Users in South Glos Homes,Permanent Nursing,Beech House,952.45, 16-Jan-2018
235,Revenue,CAHD,South Glos Users in South Glos Homes,Permanent Nursing,Beech House,620.20, 16-Jan-2018
236,Revenue,CAHD,South Glos Users in South Glos Homes,Permanent Nursing,Beech House,3344.65, 16-Jan-2018
237,Revenue,CAHD,South Glos Users in South Glos Homes,Permanent Nursing,Beech House,620.20, 16-Jan-2018
238,Revenue,CAHD,Bed Purchasing - North,Permanent Residential,Beech House,2836.40, 16-Jan-2018
239,Revenue,CAHD,South Glos Users in South Glos Homes,Permanent Nursing,Beech House,620.20, 16-Jan-2018
240,Revenue,CAHD,South Glos Users in South Glos Homes,Permanent Nursing,Beech House,620.20, 16-Jan-2018
241,Revenue,CAHD,South Glos Users in South Glos Homes,Permanent Nursing,Beech House,620.20, 16-Jan-2018
242,Revenue,CAHD,South Glos Users in South Glos Homes,Permanent Nursing,Beech House,620.20, 16-Jan-2018
243,Revenue,CAHD,South Glos Users in South Glos Homes,Permanent Nursing,Beech House,620.20, 16-Jan-2018
244,Revenue,CAHD,South Glos Users in South Glos Homes,Permanent Nursing,Beech House,620.20, 16-Jan-2018
245,Revenue,CAHD,South Glos Users in South Glos Homes,Permanent Nursing,Beech House,620.20, 16-Jan-2018
246,Revenue,CAHD,South Glos Users in South Glos Homes,Permanent Nursing,Beech House,620.20, 16-Jan-2018
247,Revenue,CAHD,South Glos Users in South Glos Homes,Permanent Nursing,Beech House,620.20, 16-Jan-2018
248,Revenue,CAHD,Bed Purchasing - Southmead Hospital,Permanent Residential,Beech House,3680.00, 16-Jan-2018
249,Revenue,CAHD,South Glos Users in South Glos Homes,Permanent Nursing,Beech House,620.20, 16-Jan-2018
250,Revenue,CAHD,South Glos Users in South Glos Homes,Permanent Nursing,Beech House,1971.35, 16-Jan-2018
251,Revenue,CAHD,South Glos Users in South Glos Homes,Permanent Nursing,Beech House,620.20, 16-Jan-2018
252,Revenue,CAHD,Bed Purchasing - North,Permanent Nursing,Beech House,3300.00, 16-Jan-2018
253,Revenue,CAHD,South Glos Users in South Glos Homes,Permanent Nursing,Beech House,620.20, 16-Jan-2018
254,Revenue,CAHD,Bed Purchasing - North,Permanent Nursing,Beech House,3169.68, 16-Jan-2018
255,Revenue,CAHD,South Glos Users in South Glos Homes,Permanent Nursing,Beech House,620.20, 16-Jan-2018
256,Revenue,CAHD,South Glos Users in South Glos Homes,Permanent Nursing,Beech House,1218.25, 16-Jan-2018
257,Revenue,CAHD,South Glos Users in South Glos Homes,Permanent Nursing,Beech House,620.20, 16-Jan-2018
258,Revenue,CAHD,South Glos Users in South Glos Homes,Permanent Nursing,Beech House,620.20, 16-Jan-2018
259,Revenue,CAHD,South Glos Users in South Glos Homes,Permanent Nursing,Beech House,620.20, 16-Jan-2018
260,Revenue,CAHD,South Glos Users in South Glos Homes,Permanent Nursing,Beech House,620.20, 16-Jan-2018
261,Revenue,CAHD,Tenancy Start Up Scheme,Other Supplies & Services,Individual ,1917.00, 19-Jan-2018
262,Revenue,CAHD,Bed Purchasing - North,Respite Planned - Residential,Blanchworth Care,5233.28, 10-Jan-2018
263,Revenue,CAHD,Bed purchasing - Elderly S117 - South,Permanent Nursing,Blossom Field,4179.80, 16-Jan-2018
264,Revenue,CAHD,South Glos Users in South Glos Homes,Permanent Nursing,Blossom Field,620.20, 16-Jan-2018
265,Revenue,CAHD,Bed Purchasing - North,Permanent Nursing,Blossom Field,3523.92, 16-Jan-2018
266,Revenue,CAHD,South Glos Users in South Glos Homes,Permanent Nursing,Blossom Field,620.20, 16-Jan-2018
267,Revenue,CAHD,Bed Purchasing - Elderly S117- North,Permanent Nursing,Blossom Field,3539.76, 16-Jan-2018
268,Revenue,CAHD,South Glos Users in South Glos Homes,Permanent Nursing,Blossom Field,620.20, 16-Jan-2018
269,Revenue,CAHD,South Glos Users in South Glos Homes,Permanent Nursing,Blossom Field,620.20, 16-Jan-2018
270,Revenue,CAHD,South Glos Users in South Glos Homes,Permanent Nursing,Blossom Field,620.20, 16-Jan-2018
271,Revenue,CAHD,South Glos Users in South Glos Homes,Permanent Nursing,Blossom Field,620.20, 16-Jan-2018
272,Revenue,CAHD,South Glos Users in South Glos Homes,Permanent Nursing,Blossom Field,620.20, 16-Jan-2018
273,Revenue,CAHD,South Glos Users in South Glos Homes,Permanent Nursing,Blossom Field,620.20, 16-Jan-2018
274,Revenue,CAHD,South Glos Users in South Glos Homes,Permanent Nursing,Blossom Field,996.75, 16-Jan-2018
275,Revenue,CAHD,South Glos Users in South Glos Homes,Permanent Nursing,Blossom Field,620.20, 16-Jan-2018
276,Revenue,CAHD,Bed purchasing - Elderly S117 - South,Permanent Nursing,Blossom Field,4400.00, 16-Jan-2018
277,Revenue,CAHD,South Glos Users in South Glos Homes,Permanent Nursing,Blossom Field,620.20, 16-Jan-2018
278,Revenue,CAHD,South Glos Users in South Glos Homes,Permanent Nursing,Blossom Field,620.20, 16-Jan-2018
279,Revenue,CAHD,South Glos Users in South Glos Homes,Permanent Nursing,Blossom Field,620.20, 16-Jan-2018
280,Revenue,CAHD,Bed purchasing - Elderly S117 - South,Permanent Nursing,Blossom Field,4468.56, 16-Jan-2018
281,Revenue,CAHD,South Glos Users in South Glos Homes,Permanent Nursing,Blossom Field,620.20, 16-Jan-2018
282,Revenue,CAHD,Bed Purchasing - South,Permanent Nursing,Blossom Field,4229.28, 16-Jan-2018
283,Revenue,CAHD,South Glos Users in South Glos Homes,Permanent Nursing,Blossom Field,620.20, 16-Jan-2018
284,Revenue,CAHD,South Glos Users in South Glos Homes,Permanent Nursing,Blossom Field,620.20, 16-Jan-2018
285,Revenue,CAHD,South Glos Users in South Glos Homes,Permanent Nursing,Blossom Field,620.20, 16-Jan-2018
286,Revenue,CAHD,South Glos Users in South Glos Homes,Permanent Nursing,Blossom Field,620.20, 16-Jan-2018
287,Revenue,CAHD,South Glos Users in South Glos Homes,Permanent Nursing,Blossom Field,620.20, 16-Jan-2018
288,Revenue,CAHD,South Glos Users in South Glos Homes,Permanent Nursing,Blossom Field,620.20, 16-Jan-2018
289,Revenue,CAHD,South Glos Users in South Glos Homes,Permanent Nursing,Blossom Field,620.20, 16-Jan-2018
290,Revenue,CAHD,South Glos Users in South Glos Homes,Permanent Nursing,Blossom Field,620.20, 16-Jan-2018
291,Revenue,CAHD,South Glos Users in South Glos Homes,Permanent Nursing,Blossom Field,620.20, 16-Jan-2018
292,Revenue,CAHD,South Glos Users in South Glos Homes,Permanent Nursing,Blossom Field,775.25, 16-Jan-2018
293,Revenue,CAHD,South Glos Users in South Glos Homes,Permanent Nursing,Blossom Field,620.20, 16-Jan-2018
294,Revenue,CAHD,Bed Purchasing - North,Permanent Nursing,Blossom Field,4179.80, 16-Jan-2018
295,Revenue,CAHD,South Glos Users in South Glos Homes,Permanent Nursing,Blossom Field,620.20, 16-Jan-2018
296,Revenue,CAHD,Bed Purchasing - North,Permanent Nursing,Blossom Field,3824.08, 16-Jan-2018
297,Revenue,CAHD,South Glos Users in South Glos Homes,Permanent Nursing,Blossom Field,620.20, 16-Jan-2018
298,Revenue,CAHD,Bed Purchasing - North,Permanent Nursing,Blossom Field,3483.56, 16-Jan-2018
299,Revenue,CAHD,South Glos Users in South Glos Homes,Permanent Nursing,Blossom Field,620.20, 16-Jan-2018
300,Revenue,CAHD,South Glos Users in South Glos Homes,Permanent Nursing,Blossom Field,620.20, 16-Jan-2018
301,Revenue,CAHD,South Glos Users in South Glos Homes,Permanent Nursing,Blossom Fields,620.20, 08-Jan-2018
302,Revenue,CAHD,South Glos Users in South Glos Homes,Permanent Nursing,Blossom Fields,620.20, 08-Jan-2018
303,Revenue,CAHD,Bed Purchasing - North,Permanent Nursing,Blossom Fields,1880.20, 08-Jan-2018
304,Revenue,CAHD,Bed Purchasing - North,Permanent Nursing,Blossom Fields,2688.00, 08-Jan-2018
305,Revenue,CAHD,Home Care - Elderly - South,Other Small Contracts,Bluebird Care (South Gloucestershire),227.04, 15-Jan-2018
306,Revenue,CAHD,Home Care - Elderly - North,Other Small Contracts,Bluebird Care (South Gloucestershire),1688.97, 15-Jan-2018
307,Revenue,CAHD,Training - Adult Services,Training Expenses,Bob Dawson,2100.00, 16-Jan-2018
308,Revenue,CAHD,Bed purchasing - S28A Under 65 - South,Permanent Residential,Bradbury House,4854.16, 16-Jan-2018
309,Revenue,CAHD,Bed Purchasing - South,Permanent Residential,Bradbury House,8375.20, 16-Jan-2018
310,Revenue,CAHD,18-25 Year Olds,Permanent Residential,Bradbury House,9504.08, 16-Jan-2018
311,Revenue,CAHD,Bed purchasing - Elderly S117 - South,Permanent Residential,Bradbury House,29074.87, 16-Jan-2018
312,Revenue,CAHD,Bed Purchasing - North,Permanent Residential,Bradbury House,5952.84, 16-Jan-2018
313,Revenue,CAHD,Jointly Funded H&SC Packages,Permanent Residential,Bradbury House,8223.16, 16-Jan-2018
314,Revenue,CAHD,Bed Purchasing - North,Permanent Residential,Bradbury House,2700.00, 16-Jan-2018
315,Revenue,CAHD,Home Care - Elderly - North,Other Small Contracts,Bramble Home Care Limited,1496.32, 16-Jan-2018
316,Revenue,CAHD,Home Care - Elderly - North,Other Small Contracts,Bramble Home Care Limited,591.36, 16-Jan-2018
317,Revenue,CAHD,Home Care - Elderly - North,Other Small Contracts,Bramble Home Care Limited,1115.52, 24-Jan-2018
318,Revenue,CAHD,Home Care - Elderly - North,Other Small Contracts,Bramble Home Care Limited,652.38, 25-Jan-2018
319,Revenue,CAHD,Social Lettings Agency,Fees - General,Individual ,11.41, 04-Jan-2018
320,Revenue,CAHD,Social Lettings Agency,Other Supplies & Services,Individual ,746.54, 04-Jan-2018
321,Revenue,CAHD,Bed Purchasing - Southmead Hospital,Permanent Residential,Bridge House Care Home,2423.08, 16-Jan-2018
322,Revenue,CAHD,Bed Purchasing - North,Permanent Residential,Bridge House Care Home,2382.12, 16-Jan-2018
323,Revenue,CAHD,Home Care - Elderly - North,Day Care / Social Activities,Bridge House Care Home,526.72, 16-Jan-2018
324,Revenue,CAHD,Bed Purchasing - Southmead Hospital,Permanent Residential,Bridge House Care Home,2464.00, 16-Jan-2018
325,Revenue,CAHD,Bed Purchasing - North,Permanent Residential,Bridge House Care Home,2496.04, 16-Jan-2018
326,Revenue,CAHD,Bed Purchasing - North,Permanent Residential,Bridge House Care Home,2191.80, 16-Jan-2018
327,Revenue,CAHD,Bed Purchasing - North,Permanent Residential,Bridgwater Court,10324.96, 16-Jan-2018
328,Revenue,CAHD,Minor Adaptations Service,Operational Equipment,Bristol City Council,7000.00, 05-Jan-2018
329,Revenue,CAHD,Minor Adaptations Service,Operational Equipment,Bristol City Council,6247.56, 05-Jan-2018
330,Revenue,CAHD,Purchase of RAC places,Other L.A.'s - General,Bristol City Council,14514.12, 29-Jan-2018
331,Revenue,CAHD,ICES / NRS Contract,Daily Living Equipment,Bristol City Council,5423.00, 18-Jan-2018
332,Revenue,CAHD,Home Care - Elderly - North,Day Care / Social Activities,Bristol Community Links North,996.32, 16-Jan-2018
333,Revenue,CAHD,Pathway 1 - Re-Ablement Home Care,Private & Voluntary Home Care,Brunelcare,24132.35, 08-Jan-2018
334,Revenue,CAHD,Pathway 1 - Re-Ablement Home Care,Private & Voluntary Home Care,Brunelcare,24132.35, 15-Jan-2018
335,Revenue,CAHD,Pathway 1 - Re-Ablement Home Care,Private & Voluntary Home Care,Brunelcare,24132.35, 22-Jan-2018
336,Revenue,CAHD,Pathway 1 - Re-Ablement Home Care,Private & Voluntary Home Care,Brunelcare,24132.35, 29-Jan-2018
337,Revenue,CAHD,South Glos Users in South Glos Homes,Permanent Nursing,Brunelcare,686.65, 16-Jan-2018
338,Revenue,CAHD,South Glos Users in South Glos Homes,Permanent Nursing,Brunelcare,686.65, 16-Jan-2018
339,Revenue,CAHD,South Glos Users in South Glos Homes,Permanent Nursing,Brunelcare,686.65, 16-Jan-2018
340,Revenue,CAHD,South Glos Users in South Glos Homes,Permanent Nursing,Brunelcare,686.65, 16-Jan-2018
341,Revenue,CAHD,South Glos Users in South Glos Homes,Permanent Nursing,Brunelcare,686.65, 16-Jan-2018
342,Revenue,CAHD,South Glos Users in South Glos Homes,Permanent Nursing,Brunelcare,686.65, 16-Jan-2018
343,Revenue,CAHD,South Glos Users in South Glos Homes,Permanent Nursing,Brunelcare,686.65, 16-Jan-2018
344,Revenue,CAHD,South Glos Users in South Glos Homes,Permanent Nursing,Brunelcare,686.65, 16-Jan-2018
345,Revenue,CAHD,South Glos Users in South Glos Homes,Permanent Nursing,Brunelcare,686.65, 16-Jan-2018
346,Revenue,CAHD,South Glos Users in South Glos Homes,Permanent Nursing,Brunelcare,686.65, 16-Jan-2018
347,Revenue,CAHD,South Glos Users in South Glos Homes,Permanent Nursing,Brunelcare,686.65, 16-Jan-2018
348,Revenue,CAHD,South Glos Users in South Glos Homes,Permanent Nursing,Brunelcare,686.65, 16-Jan-2018
349,Revenue,CAHD,South Glos Users in South Glos Homes,Permanent Nursing,Brunelcare,686.65, 16-Jan-2018
350,Revenue,CAHD,South Glos Users in South Glos Homes,Permanent Nursing,Brunelcare,686.65, 16-Jan-2018
351,Revenue,CAHD,South Glos Users in South Glos Homes,Permanent Nursing,Brunelcare,686.65, 16-Jan-2018
352,Revenue,CAHD,South Glos Users in South Glos Homes,Permanent Nursing,Brunelcare,686.65, 16-Jan-2018
353,Revenue,CAHD,Bed purchasing - Elderly S117 - South,Permanent Nursing,Brunelcare,3516.29, 16-Jan-2018
354,Revenue,CAHD,Bed Purchasing - Elderly S117- North,Permanent Nursing,Brunelcare,3516.29, 16-Jan-2018
355,Revenue,CAHD,Bed Purchasing - Elderly S117- North,Permanent Nursing,Brunelcare,3516.29, 16-Jan-2018
356,Revenue,CAHD,Bed Purchasing - Southmead Hospital,Permanent Nursing,Brunelcare,2853.11, 16-Jan-2018
357,Revenue,CAHD,Bed Purchasing - Southmead Hospital,Permanent Nursing,Brunelcare,2749.83, 16-Jan-2018
358,Revenue,CAHD,Bed Purchasing - Southmead Hospital,Permanent Nursing,Brunelcare,2920.86, 16-Jan-2018
359,Revenue,CAHD,Bed Purchasing - Southmead Hospital,Permanent Nursing,Brunelcare,3516.29, 16-Jan-2018
360,Revenue,CAHD,Bed Purchasing - South,Permanent Nursing,Brunelcare,2913.25, 16-Jan-2018
361,Revenue,CAHD,Bed Purchasing - South,Permanent Nursing,Brunelcare,3516.29, 16-Jan-2018
362,Revenue,CAHD,Bed Purchasing - South,Permanent Nursing,Brunelcare,2703.82, 16-Jan-2018
363,Revenue,CAHD,Bed Purchasing - South,Permanent Nursing,Brunelcare,2729.15, 16-Jan-2018
364,Revenue,CAHD,Bed Purchasing - South,Respite Planned - Nursing,Brunelcare,794.00, 16-Jan-2018
365,Revenue,CAHD,Bed Purchasing - South,Respite Planned - Nursing,Brunelcare,1084.63, 16-Jan-2018
366,Revenue,CAHD,Bed Purchasing - North,Permanent Nursing,Brunelcare,2882.60, 16-Jan-2018
367,Revenue,CAHD,Bed Purchasing - North,Permanent Nursing,Brunelcare,2847.04, 16-Jan-2018
368,Revenue,CAHD,Bed Purchasing - North,Permanent Nursing,Brunelcare,2880.21, 16-Jan-2018
369,Revenue,CAHD,Bed Purchasing - North,Permanent Nursing,Brunelcare,2920.86, 16-Jan-2018
370,Revenue,CAHD,Bed Purchasing - North,Permanent Nursing,Brunelcare,3516.29, 16-Jan-2018
371,Revenue,CAHD,Bed Purchasing - North,Respite Planned - Nursing,Brunelcare,677.89, 16-Jan-2018
372,Revenue,CAHD,Bed Purchasing - North,Respite Planned - Nursing,Brunelcare,907.43, 16-Jan-2018
373,Revenue,CAHD,Bed Purchasing - North,Respite Planned - Nursing,Brunelcare,907.43, 16-Jan-2018
374,Revenue,CAHD,Pathway 2 - (Interim Beds),Permanent Nursing,Brunelcare,51751.00, 04-Jan-2018
375,Revenue,CAHD,Pathway 2 - (Interim Beds),Permanent Nursing,Brunelcare,51751.00, 16-Jan-2018
376,Revenue,CAHD,Pathway 2 - (Interim Beds),Permanent Nursing,Brunelcare,15608.00, 08-Jan-2018
377,Revenue,CAHD,Home Care - Elderly - South,Other Small Contracts,Brunelcare,2513.28, 10-Jan-2018
378,Revenue,CAHD,Home Care - Elderly - North,Other Small Contracts,Brunelcare,1012.48, 10-Jan-2018
379,Revenue,CAHD,Home Care - Elderly - South,Other Small Contracts,Brunelcare,2056.32, 10-Jan-2018
380,Revenue,CAHD,Home Care - Elderly - North,Other Small Contracts,Brunelcare,851.20, 10-Jan-2018
381,Revenue,CAHD,Home Care - Elderly - South,Other Small Contracts,Brunelcare,1724.80, 10-Jan-2018
382,Revenue,CAHD,Home Care - Elderly - North,Other Small Contracts,Brunelcare,936.32, 10-Jan-2018
383,Revenue,CAHD,Pathway 1 - Re-Ablement Home Care,Other Small Contracts,Brunelcare,70000.00, 10-Jan-2018
384,Revenue,CAHD,Bed Purchasing - North,Permanent Nursing,Bupa Care Services  Bridge House,1762.64, 16-Jan-2018
385,Revenue,CAHD,Jointly Funded H&SC Packages,Permanent Nursing,Bupa Care Services  Bridge House,4400.48, 16-Jan-2018
386,Revenue,CAHD,South Glos Users in all other LA Homes,Permanent Nursing,Bupa Care Services  Bridge House,853.28, 16-Jan-2018
387,Revenue,CAHD,Cambrian Green Day Service,Catering - Client Meals/Pupil Sch. Meals,Cambrian Court Dining,605.00, 22-Jan-2018
388,Revenue,CAHD,Cambrian Green Day Service,Catering - Client Meals/Pupil Sch. Meals,Cambrian Court Dining,539.00, 22-Jan-2018
389,Revenue,CAHD,Home Care - Elderly - North,Day Care / Social Activities,Camphill Communities Thornbury Limited,752.05, 05-Jan-2018
390,Revenue,CAHD,Home Care - Elderly - North,Other Small Contracts,Camphill Communities Thornbury Limited,160.20, 05-Jan-2018
391,Revenue,CAHD,Home Care - Elderly - North,Supported Living,Camphill Communities Thornbury Limited,1001.25, 05-Jan-2018
392,Revenue,CAHD,Home Care - Elderly - North,Day Care / Social Activities,Camphill Communities Thornbury Limited,1076.90, 12-Jan-2018
393,Revenue,CAHD,Home Care - Elderly - North,Other Small Contracts,Camphill Communities Thornbury Limited,160.20, 12-Jan-2018
394,Revenue,CAHD,Home Care - Elderly - North,Supported Living,Camphill Communities Thornbury Limited,974.55, 12-Jan-2018
395,Revenue,CAHD,Home Care - Elderly - North,Day Care / Social Activities,Camphill Communities Thornbury Limited,934.50, 18-Jan-2018
396,Revenue,CAHD,Home Care - Elderly - North,Other Small Contracts,Camphill Communities Thornbury Limited,160.20, 18-Jan-2018
397,Revenue,CAHD,Home Care - Elderly - North,Supported Living,Camphill Communities Thornbury Limited,858.85, 18-Jan-2018
398,Revenue,CAHD,Bed Purchasing - Elderly S117- North,Permanent Residential,Canjayor,2422.40, 16-Jan-2018
399,Revenue,CAHD,Information Systems - Software,Software Support & Maintenance,Capita Business Services Ltd,5411.50, 25-Jan-2018
400,Revenue,CAHD,Home Care - Elderly - South,Other Small Contracts,Care 1st Homecare,2844.48, 15-Jan-2018
401,Revenue,CAHD,Home Care - Elderly - North,Other Small Contracts,Care 1st Homecare,3274.88, 15-Jan-2018
402,Revenue,CAHD,Younger MH non-res purchasing,Other Small Contracts,Care 1st Homecare,129.92, 15-Jan-2018
403,Revenue,CAHD,Home Care - Elderly - South,Other Small Contracts,Care 1st Homecare,2813.92, 16-Jan-2018
404,Revenue,CAHD,Home Care - Elderly - North,Other Small Contracts,Care 1st Homecare,3086.72, 16-Jan-2018
405,Revenue,CAHD,Younger MH non-res purchasing,Other Small Contracts,Care 1st Homecare,112.00, 16-Jan-2018
406,Revenue,CAHD,Home Care - Elderly - South,Other Small Contracts,Care Horizons Limited,693.00, 08-Jan-2018
407,Revenue,CAHD,Home Care - Elderly - North,Other Small Contracts,Care Horizons Limited,337.26, 08-Jan-2018
408,Revenue,CAHD,Home care - Elderly MH - North,Other Small Contracts,Care Horizons Limited,184.80, 08-Jan-2018
409,Revenue,CAHD,Home Care - Elderly - South,Other Small Contracts,Care Horizons Limited,291.06, 08-Jan-2018
410,Revenue,CAHD,Home Care - Elderly - North,Other Small Contracts,Care Horizons Limited,295.68, 08-Jan-2018
411,Revenue,CAHD,Younger MH non-res purchasing,Other Small Contracts,Care Horizons Limited,184.80, 08-Jan-2018
412,Revenue,CAHD,Home Care - Elderly - South,Other Small Contracts,Care Horizons Limited,559.02, 15-Jan-2018
413,Revenue,CAHD,Home Care - Elderly - North,Other Small Contracts,Care Horizons Limited,203.28, 15-Jan-2018
414,Revenue,CAHD,Younger MH non-res purchasing,Other Small Contracts,Care Horizons Limited,184.80, 15-Jan-2018
415,Revenue,CAHD,Home Care - Elderly - South,Other Small Contracts,Care Horizons Limited,910.14, 25-Jan-2018
416,Revenue,CAHD,Home Care - Elderly - North,Day Care / Social Activities,Care Horizons Limited,369.60, 25-Jan-2018
417,Revenue,CAHD,Home Care - Elderly - North,Other Small Contracts,Care Horizons Limited,337.26, 25-Jan-2018
418,Revenue,CAHD,Younger MH non-res purchasing,Other Small Contracts,Care Horizons Limited,143.22, 25-Jan-2018
419,Revenue,CAHD,Home Care - Elderly - South,Other Small Contracts,Caring Comes 1st Ltd,1870.35, 26-Jan-2018
420,Revenue,CAHD,Home Care - Elderly - South,Other Small Contracts,Caring Comes 1st Ltd,1875.90, 15-Jan-2018
421,Revenue,CAHD,Home Care - Elderly - South,Other Small Contracts,Caring Comes 1st Ltd,1165.50, 10-Jan-2018
422,Revenue,CAHD,Home Care - Elderly - South,Other Small Contracts,Caring Comes 1st Ltd,666.00, 10-Jan-2018
423,Revenue,CAHD,Home Care - Elderly - South,Other Small Contracts,Caring Comes 1st Ltd,799.20, 10-Jan-2018
424,Revenue,CAHD,Home Care - Elderly - South,Other Small Contracts,Caring Comes 1st Ltd,976.80, 23-Jan-2018
425,Revenue,CAHD,Home Care - Elderly - South,Other Small Contracts,Caring Comes 1st Ltd,782.55, 10-Jan-2018
426,Revenue,CAHD,Home Care - Elderly - South,Other Small Contracts,Caring Comes 1st Ltd,621.60, 09-Jan-2018
427,Revenue,CAHD,Home Care - Elderly - South,Other Small Contracts,Caring Comes 1st Ltd,1121.10, 09-Jan-2018
428,Revenue,CAHD,Home Care - Elderly - South,Other Small Contracts,Caring Comes 1st Ltd,799.20, 09-Jan-2018
429,Revenue,CAHD,Home Care - Elderly - South,Other Small Contracts,Caring Comes 1st Ltd,1121.10, 10-Jan-2018
430,Revenue,CAHD,Home Care - Elderly - North,Other Small Contracts,Caring Comes 1st Ltd,588.30, 16-Jan-2018
431,Revenue,CAHD,Home Care - Elderly - South,Other Small Contracts,Caring Comes 1st Ltd,910.20, 26-Jan-2018
432,Revenue,CAHD,Home Care - Elderly - North,Day Care / Social Activities,Causeway House,1770.64, 16-Jan-2018
433,Revenue,CAHD,Home Care - Elderly - South,Day Care / Social Activities,Causeway House,5034.88, 16-Jan-2018
434,Revenue,CAHD,Home Care - Elderly - North,Day Care / Social Activities,Causeway House,4311.60, 16-Jan-2018
435,Revenue,CAHD,Home Care - Elderly - North,Day Care / Social Activities,Causeway House,3729.92, 16-Jan-2018
436,Revenue,CAHD,Home Care - Elderly - North,Day Care / Social Activities,Causeway House,1991.36, 16-Jan-2018
437,Revenue,CAHD,Home Care - Elderly - North,Day Care / Social Activities,Causeway House,3092.16, 16-Jan-2018
438,Revenue,CAHD,Home Care - Elderly - North,Day Care / Social Activities,Causeway House,4606.72, 16-Jan-2018
439,Revenue,CAHD,Home Care - Elderly - North,Day Care / Social Activities,Causeway House,3500.40, 16-Jan-2018
440,Revenue,CAHD,Home Care - Elderly - North,Day Care / Social Activities,Causeway House,1634.40, 16-Jan-2018
441,Revenue,CAHD,Home Care - Elderly - North,Day Care / Social Activities,Causeway House,3018.24, 16-Jan-2018
442,Revenue,CAHD,Bed Purchasing - Elderly S117- North,Permanent Nursing,Cedar Care Homes Limited,4352.00, 16-Jan-2018
443,Revenue,CAHD,Bed Purchasing - North,Permanent Residential,Charlton House,1886.24, 16-Jan-2018
444,Revenue,CAHD,Training - Adult Services,Training Expenses,Chartered Institute of Environmental Health,808.00, 19-Jan-2018
445,Revenue,CAHD,Home Care - Elderly - South,Other Small Contracts,Cherish Able Care Limited,7898.93, 04-Jan-2018
446,Revenue,CAHD,Home Care - Elderly - North,Other Small Contracts,Cherish Able Care Limited,4103.89, 04-Jan-2018
447,Revenue,CAHD,Home Care - Elderly - South,Other Small Contracts,Cherish Able Care Limited,7782.45, 12-Jan-2018
448,Revenue,CAHD,Home Care - Elderly - North,Other Small Contracts,Cherish Able Care Limited,3841.61, 12-Jan-2018
449,Revenue,CAHD,Home Care - Elderly - South,Other Small Contracts,Cherish Able Care Limited,7746.61, 18-Jan-2018
450,Revenue,CAHD,Home Care - Elderly - North,Other Small Contracts,Cherish Able Care Limited,3727.06, 18-Jan-2018
451,Revenue,CAHD,Home Care - Elderly - South,Other Small Contracts,Cherish Able Care Limited,7317.17, 26-Jan-2018
452,Revenue,CAHD,Home Care - Elderly - North,Other Small Contracts,Cherish Able Care Limited,3722.18, 26-Jan-2018
453,Revenue,CAHD,Home Care - Elderly - South,Supported Living,Cherry Orchards,5115.84, 19-Jan-2018
454,Revenue,CAHD,Home Care - Elderly - South,Supported Living,Cherry Orchards,5115.84, 19-Jan-2018
455,Revenue,CAHD,Bed purchasing -S28A  Under 65 - North,Permanent Residential,Chescombe Lodge,9357.80, 16-Jan-2018
456,Revenue,CAHD,18-25 Year Olds,Permanent Residential,Chosen Care Ltd  Citibase Watford,7689.72, 16-Jan-2018
457,Revenue,CAHD,Bed Purchasing - Elderly S117- North,Permanent Residential,Chosen Care Ltd  Citibase Watford,5060.64, 16-Jan-2018
458,Revenue,CAHD,Jointly Funded H&SC Packages,Permanent Residential,Chosen Care Ltd  Citibase Watford,5060.64, 16-Jan-2018
459,Revenue,CAHD,18-25 Year Olds,Permanent Residential,Chosen Care Ltd  Citibase Watford,6073.44, 16-Jan-2018
460,Revenue,CAHD,Bed Purchasing - Southmead Hospital,Permanent Nursing,Churchill Property Services,1052.03, 16-Jan-2018
461,Revenue,CAHD,Home Care - Elderly - South,Other Small Contracts,Cintre,443.65, 10-Jan-2018
462,Revenue,CAHD,Home Care - Elderly - North,Day Care / Social Activities,Cintre,168.12, 10-Jan-2018
463,Revenue,CAHD,Home Care - Elderly - North,Other Small Contracts,Cintre,438.98, 10-Jan-2018
464,Revenue,CAHD,Home Care - Elderly - South,Other Small Contracts,Cintre,224.16, 10-Jan-2018
465,Revenue,CAHD,Home Care - Elderly - North,Day Care / Social Activities,Cintre,56.04, 10-Jan-2018
466,Revenue,CAHD,Home Care - Elderly - North,Other Small Contracts,Cintre,382.94, 10-Jan-2018
467,Revenue,CAHD,Home Care - Elderly - South,Other Small Contracts,Cintre,261.52, 16-Jan-2018
468,Revenue,CAHD,Home Care - Elderly - North,Day Care / Social Activities,Cintre,88.73, 16-Jan-2018
469,Revenue,CAHD,Home Care - Elderly - North,Other Small Contracts,Cintre,471.67, 16-Jan-2018
470,Revenue,CAHD,Home Care - Elderly - South,Other Small Contracts,Cintre,373.60, 25-Jan-2018
471,Revenue,CAHD,Home Care - Elderly - North,Day Care / Social Activities,Cintre,140.10, 25-Jan-2018
472,Revenue,CAHD,Home Care - Elderly - North,Other Small Contracts,Cintre,663.14, 25-Jan-2018
473,Revenue,CAHD,Community Support - North,Preventative Assistance,City of Bradford District Council,970.00, 04-Jan-2018
474,Revenue,CAHD,MH Purchasing - Younger,Permanent Residential,Claro Homes,2207.44, 16-Jan-2018
475,Revenue,CAHD,Section 117 Placements MH Younger,Permanent Residential,Claro Homes,3406.56, 16-Jan-2018
476,Revenue,CAHD,Bed Purchasing - Southmead Hospital,Respite Planned - Nursing,Claro Homes,3180.00, 16-Jan-2018
477,Revenue,CAHD,Bed Purchasing - South,Permanent Residential,Cleeve Lodge,1232.16, 16-Jan-2018
478,Revenue,CAHD,Bed Purchasing - Southmead Hospital,Permanent Residential,Cleeve Lodge,2800.00, 16-Jan-2018
479,Revenue,CAHD,Bed Purchasing - South,Permanent Residential,Cleeve Lodge,2957.96, 16-Jan-2018
480,Revenue,CAHD,Bed Purchasing - South,Permanent Residential,Cleeve Lodge,2361.60, 16-Jan-2018
481,Revenue,CAHD,Bed Purchasing - South,Permanent Residential,Cleeve Lodge,2735.12, 16-Jan-2018
482,Revenue,CAHD,Bed Purchasing - South,Permanent Residential,Cleeve Lodge,2525.84, 16-Jan-2018
483,Revenue,CAHD,Bed Purchasing - South,Permanent Residential,Cleeve Lodge,2486.76, 16-Jan-2018
484,Revenue,CAHD,Bed Purchasing - South,Permanent Residential,Clerkenleap Barn,6079.80, 16-Jan-2018
485,Revenue,CAHD,Bed Purchasing - South,Permanent Residential,Collingwood Residential Home,2147.96, 16-Jan-2018
486,Revenue,CAHD,Bed Purchasing - Southmead Hospital,Permanent Residential,Collingwood Residential Home,2431.20, 16-Jan-2018
487,Revenue,CAHD,Bed Purchasing - South,Permanent Residential,Collingwood Residential Home,2329.92, 16-Jan-2018
488,Revenue,CAHD,Bed Purchasing - South,Permanent Residential,Collingwood Residential Home,2320.00, 16-Jan-2018
489,Revenue,CAHD,Bed Purchasing - Southmead Hospital,Permanent Residential,Collingwood Residential Home,2350.16, 16-Jan-2018
490,Revenue,CAHD,Bed Purchasing - Southmead Hospital,Respite Planned - Residential,Collingwood Residential Home,2400.00, 16-Jan-2018
491,Revenue,CAHD,Bed Purchasing - South,Permanent Nursing,Community Integrated Care,1901.96, 16-Jan-2018
492,Revenue,CAHD,Home Care - Elderly - North,Other Small Contracts,Complimenting Care and Training Services (CCTS) Lt,7574.60, 04-Jan-2018
493,Revenue,CAHD,Home Care - Elderly - North,Other Small Contracts,Complimenting Care and Training Services (CCTS) Lt,7252.11, 12-Jan-2018
494,Revenue,CAHD,Home Care - Elderly - North,Other Small Contracts,Complimenting Care and Training Services (CCTS) Lt,6478.64, 17-Jan-2018
495,Revenue,CAHD,Home Care - Elderly - North,Other Small Contracts,Complimenting Care and Training Services (CCTS) Lt,7368.51, 26-Jan-2018
496,Revenue,CAHD,Bed and Breakfast,Bed & Breakfast,Connolly & Callaghan Limited,581.00, 08-Jan-2018
497,Revenue,CAHD,Bed and Breakfast,Bed & Breakfast,Connolly & Callaghan Limited,490.00, 04-Jan-2018
498,Revenue,CAHD,Tenancy Start Up Scheme,Other Supplies & Services,Connolly & Callaghan Limited,616.00, 04-Jan-2018
499,Revenue,CAHD,Bed and Breakfast,Bed & Breakfast,Connolly & Callaghan Limited,742.00, 04-Jan-2018
500,Revenue,CAHD,Bed and Breakfast,Bed & Breakfast,Connolly & Callaghan Limited,455.00, 04-Jan-2018
501,Revenue,CAHD,Bed and Breakfast,Bed & Breakfast,Connolly & Callaghan Limited,490.00, 04-Jan-2018
502,Revenue,CAHD,Bed and Breakfast,Bed & Breakfast,Connolly & Callaghan Limited,658.00, 04-Jan-2018
503,Revenue,CAHD,Bed and Breakfast,Bed & Breakfast,Connolly & Callaghan Limited,448.00, 17-Jan-2018
504,Revenue,CAHD,Bed and Breakfast,Bed & Breakfast,Connolly & Callaghan Limited,581.00, 15-Jan-2018
505,Revenue,CAHD,Bed and Breakfast,Bed & Breakfast,Connolly & Callaghan Limited,490.00, 15-Jan-2018
506,Revenue,CAHD,Tenancy Start Up Scheme,Other Supplies & Services,Connolly & Callaghan Limited,616.00, 15-Jan-2018
507,Revenue,CAHD,Bed and Breakfast,Bed & Breakfast,Connolly & Callaghan Limited,742.00, 15-Jan-2018
508,Revenue,CAHD,Bed and Breakfast,Bed & Breakfast,Connolly & Callaghan Limited,455.00, 15-Jan-2018
509,Revenue,CAHD,Bed and Breakfast,Bed & Breakfast,Connolly & Callaghan Limited,490.00, 17-Jan-2018
510,Revenue,CAHD,Bed and Breakfast,Bed & Breakfast,Connolly & Callaghan Limited,504.00, 15-Jan-2018
511,Revenue,CAHD,Bed and Breakfast,Bed & Breakfast,Connolly & Callaghan Limited,581.00, 15-Jan-2018
512,Revenue,CAHD,Bed and Breakfast,Bed & Breakfast,Connolly & Callaghan Limited,420.00, 16-Jan-2018
513,Revenue,CAHD,Bed and Breakfast,Bed & Breakfast,Connolly & Callaghan Limited,448.00, 17-Jan-2018
514,Revenue,CAHD,Bed and Breakfast,Bed & Breakfast,Connolly & Callaghan Limited,581.00, 16-Jan-2018
515,Revenue,CAHD,Bed and Breakfast,Bed & Breakfast,Connolly & Callaghan Limited,490.00, 17-Jan-2018
516,Revenue,CAHD,Tenancy Start Up Scheme,Other Supplies & Services,Connolly & Callaghan Limited,616.00, 16-Jan-2018
517,Revenue,CAHD,Bed and Breakfast,Bed & Breakfast,Connolly & Callaghan Limited,742.00, 16-Jan-2018
518,Revenue,CAHD,Bed and Breakfast,Bed & Breakfast,Connolly & Callaghan Limited,455.00, 17-Jan-2018
519,Revenue,CAHD,Bed and Breakfast,Bed & Breakfast,Connolly & Callaghan Limited,490.00, 17-Jan-2018
520,Revenue,CAHD,Bed and Breakfast,Bed & Breakfast,Connolly & Callaghan Limited,504.00, 16-Jan-2018
521,Revenue,CAHD,Bed and Breakfast,Bed & Breakfast,Connolly & Callaghan Limited,581.00, 16-Jan-2018
522,Revenue,CAHD,Bed and Breakfast,Bed & Breakfast,Connolly & Callaghan Limited,420.00, 23-Jan-2018
523,Revenue,CAHD,Bed and Breakfast,Bed & Breakfast,Connolly & Callaghan Limited,448.00, 23-Jan-2018
524,Revenue,CAHD,Bed and Breakfast,Bed & Breakfast,Connolly & Callaghan Limited,581.00, 23-Jan-2018
525,Revenue,CAHD,Bed and Breakfast,Bed & Breakfast,Connolly & Callaghan Limited,490.00, 22-Jan-2018
526,Revenue,CAHD,Tenancy Start Up Scheme,Other Supplies & Services,Connolly & Callaghan Limited,616.00, 23-Jan-2018
527,Revenue,CAHD,Bed and Breakfast,Bed & Breakfast,Connolly & Callaghan Limited,742.00, 23-Jan-2018
528,Revenue,CAHD,Bed and Breakfast,Bed & Breakfast,Connolly & Callaghan Limited,490.00, 23-Jan-2018
529,Revenue,CAHD,Bed and Breakfast,Bed & Breakfast,Connolly & Callaghan Limited,581.00, 23-Jan-2018
530,Revenue,CAHD,Bed and Breakfast,Bed & Breakfast,Connolly & Callaghan Limited,420.00, 29-Jan-2018
531,Revenue,CAHD,Bed and Breakfast,Bed & Breakfast,Connolly & Callaghan Limited,448.00, 29-Jan-2018
532,Revenue,CAHD,Bed and Breakfast,Bed & Breakfast,Connolly & Callaghan Limited,581.00, 31-Jan-2018
533,Revenue,CAHD,Bed and Breakfast,Bed & Breakfast,Connolly & Callaghan Limited,490.00, 29-Jan-2018
534,Revenue,CAHD,Bed and Breakfast,Bed & Breakfast,Connolly & Callaghan Limited,462.00, 29-Jan-2018
535,Revenue,CAHD,Tenancy Start Up Scheme,Other Supplies & Services,Connolly & Callaghan Limited,616.00, 29-Jan-2018
536,Revenue,CAHD,Bed and Breakfast,Bed & Breakfast,Connolly & Callaghan Limited,742.00, 29-Jan-2018
537,Revenue,CAHD,Bed and Breakfast,Bed & Breakfast,Connolly & Callaghan Limited,581.00, 29-Jan-2018
538,Revenue,CAHD,Bed and Breakfast,Bed & Breakfast,Connolly & Callaghan Limited,462.00, 30-Jan-2018
539,Revenue,CAHD,Bed and Breakfast,Bed & Breakfast,Connolly & Callaghan Limited,420.00, 30-Jan-2018
540,Revenue,CAHD,Bed and Breakfast,Bed & Breakfast,Connolly & Callaghan Limited,448.00, 30-Jan-2018
541,Revenue,CAHD,Bed and Breakfast,Bed & Breakfast,Connolly & Callaghan Limited,581.00, 30-Jan-2018
542,Revenue,CAHD,Bed and Breakfast,Bed & Breakfast,Connolly & Callaghan Limited,490.00, 30-Jan-2018
543,Revenue,CAHD,Bed and Breakfast,Bed & Breakfast,Connolly & Callaghan Limited,539.00, 30-Jan-2018
544,Revenue,CAHD,Tenancy Start Up Scheme,Other Supplies & Services,Connolly & Callaghan Limited,616.00, 30-Jan-2018
545,Revenue,CAHD,Bed and Breakfast,Bed & Breakfast,Connolly & Callaghan Limited,490.00, 30-Jan-2018
546,Revenue,CAHD,Bed and Breakfast,Bed & Breakfast,Connolly & Callaghan Limited,742.00, 30-Jan-2018
547,Revenue,CAHD,Bed and Breakfast,Bed & Breakfast,Connolly & Callaghan Limited,581.00, 30-Jan-2018
548,Revenue,CAHD,Bed Purchasing - North,Permanent Residential,Cream Iii Ltd,6213.00, 16-Jan-2018
549,Revenue,CAHD,Bed Purchasing - North,Permanent Residential,Cream Iii Ltd,2071.00, 16-Jan-2018
550,Revenue,CAHD,18-25 Year Olds,Respite Planned - Residential,Cream Iii Ltd,31395.00, 16-Jan-2018
551,Revenue,CAHD,18-25 Year Olds,Respite Planned - Residential,Cream Iii Ltd,9660.00, 16-Jan-2018
552,Revenue,CAHD,Bed purchasing -S28A  Under 65 - North,Permanent Residential,Creedy Court,10156.60, 16-Jan-2018
553,Revenue,CAHD,Bed Purchasing - S28A - Over 65- North,Permanent Residential,Creedy Court,8534.04, 16-Jan-2018
554,Revenue,CAHD,Bed Purchasing - North,Permanent Residential,Creedy Court,13468.68, 16-Jan-2018
555,Revenue,CAHD,Bed Purchasing - South,Permanent Residential,Daneswood,11757.84, 16-Jan-2018
556,Revenue,CAHD,Home Care - Elderly - South,Day Care / Social Activities,Daneswood,1354.56, 16-Jan-2018
557,Revenue,CAHD,Bed Purchasing - North,Permanent Residential,Daneswood,9836.56, 16-Jan-2018
558,Revenue,CAHD,Bed Purchasing - North,Fees & Charges Income - General,Daneswood,3467.71, 16-Jan-2018
559,Revenue,CAHD,Bed Purchasing - Elderly S117- North,Permanent Nursing,Danshell Healthcare Group,10419.44, 16-Jan-2018
560,Revenue,CAHD,Jointly Funded H&SC Packages,Permanent Nursing,Danshell Healthcare Group,1546.12, 16-Jan-2018
561,Revenue,CAHD,Learning Difficulties PSL,Other Supplies & Services,Individual ,2267.91, 22-Jan-2018
562,Revenue,CAHD,Home Care - Elderly - South,Supported Living,Design House,2746.28, 16-Jan-2018
563,Revenue,CAHD,Home Care - Elderly - South,Supported Living,Design House,2935.76, 16-Jan-2018
564,Revenue,CAHD,Home Care - Elderly - South,Supported Living,Design House,3002.60, 16-Jan-2018
565,Revenue,CAHD,Home Care - Elderly - South,Supported Living,Design House,2868.88, 16-Jan-2018
566,Revenue,CAHD,Home Care - Elderly - North,Day Care / Social Activities,Design House,2339.44, 16-Jan-2018
567,Revenue,CAHD,Home Care - Elderly - South,Day Care / Social Activities,Design House,1471.60, 16-Jan-2018
568,Revenue,CAHD,Home Care - Elderly - South,Supported Living,Design House,2528.96, 16-Jan-2018
569,Revenue,CAHD,Home Care - Elderly - South,Supported Living,Design House,2528.96, 16-Jan-2018
570,Revenue,CAHD,Home Care - Elderly - South,Supported Living,Design House,2060.00, 16-Jan-2018
571,Revenue,CAHD,Home Care - Elderly - South,Supported Living,Design House,1817.72, 16-Jan-2018
572,Revenue,CAHD,Home Care - Elderly - South,Supported Living,Design House,2412.00, 16-Jan-2018
573,Revenue,CAHD,Home Care - Elderly - South,Supported Living,Design House,4128.16, 16-Jan-2018
574,Revenue,CAHD,Home Care - Elderly - South,Supported Living,Design House,2927.36, 16-Jan-2018
575,Revenue,CAHD,Home Care - Elderly - South,Day Care / Social Activities,Design House,1431.60, 16-Jan-2018
576,Revenue,CAHD,Home Care - Elderly - South,Supported Living,Design House,2779.72, 16-Jan-2018
577,Revenue,CAHD,Home Care - Elderly - South,Supported Living,Design House,2829.88, 16-Jan-2018
578,Revenue,CAHD,Home Care - Elderly - South,Supported Living,Design House,2163.68, 16-Jan-2018
579,Revenue,CAHD,Home Care - Elderly - South,Supported Living,Design House,1817.72, 16-Jan-2018
580,Revenue,CAHD,Home Care - Elderly - South,Supported Living,Design House,2163.68, 16-Jan-2018
581,Revenue,CAHD,Bed Purchasing - South,Permanent Residential,Devon & Cornwall Autistic Community Trus,9526.04, 16-Jan-2018
582,Revenue,CAHD,Home Care - Elderly - South,Other Small Contracts,Dhek Bhal,559.44, 08-Jan-2018
583,Revenue,CAHD,Home Care - Elderly - North,Other Small Contracts,Dhek Bhal,120.96, 08-Jan-2018
584,Revenue,CAHD,Home Care - Elderly - South,Other Small Contracts,Dhek Bhal,559.44, 19-Jan-2018
585,Revenue,CAHD,Home Care - Elderly - North,Other Small Contracts,Dhek Bhal,120.96, 19-Jan-2018
586,Revenue,CAHD,Home Care - Elderly - South,Other Small Contracts,Dhek Bhal,559.44, 19-Jan-2018
587,Revenue,CAHD,Home Care - Elderly - North,Other Small Contracts,Dhek Bhal,131.04, 19-Jan-2018
588,Revenue,CAHD,Home Care - Elderly - South,Other Small Contracts,Dhek Bhal,599.76, 19-Jan-2018
589,Revenue,CAHD,Home Care - Elderly - North,Other Small Contracts,Dhek Bhal,120.96, 19-Jan-2018
590,Revenue,CAHD,Home Care - Elderly - North,Supported Living,Dimensions  Suite 2,1823.24, 16-Jan-2018
591,Revenue,CAHD,Home Care - Elderly - South,Supported Living,Dimensions  Suite 2,1823.24, 16-Jan-2018
592,Revenue,CAHD,Home Care - Elderly - South,Supported Living,Dimensions  Suite 2,1823.24, 16-Jan-2018
593,Revenue,CAHD,Home Care - Elderly - South,Supported Living,Dimensions  Suite 2,1823.24, 16-Jan-2018
594,Revenue,CAHD,Home Care - Elderly - North,Supported Living,Dimensions  Suite 2,1823.24, 16-Jan-2018
595,Revenue,CAHD,Bed Purchasing - South,Permanent Residential,Dimensions  Suite 2,5396.28, 16-Jan-2018
596,Revenue,CAHD,Bed Purchasing - South,Permanent Residential,Dimensions  Suite 2,2689.28, 16-Jan-2018
597,Revenue,CAHD,Tenancy Start Up Scheme,Other Supplies & Services,Individual ,2650.00, 24-Jan-2018
598,Revenue,CAHD,Home Care - Elderly - South,Other Small Contracts,DoCare Limited,933.59, 30-Jan-2018
599,Revenue,CAHD,Home Care - Elderly - North,Other Small Contracts,DoCare Limited,5786.20, 30-Jan-2018
600,Revenue,CAHD,Social Lettings Agency,Other Supplies & Services,Individual ,605.64, 24-Jan-2018
601,Revenue,CAHD,Bed Purchasing - Southmead Hospital,Permanent Nursing,Drakes Court,2700.00, 16-Jan-2018
602,Revenue,CAHD,South Glos Users in South Glos Homes,Permanent Nursing,Drakes Court,620.20, 16-Jan-2018
603,Revenue,CAHD,Bed Purchasing - North,Permanent Nursing,Drakes Court,2288.92, 16-Jan-2018
604,Revenue,CAHD,South Glos Users in South Glos Homes,Permanent Nursing,Drakes Court,620.20, 16-Jan-2018
605,Revenue,CAHD,Bed Purchasing - Southmead Hospital,Permanent Nursing,Drakes Court,2780.00, 16-Jan-2018
606,Revenue,CAHD,Bed Purchasing - North,Permanent Nursing,Drakes Court,2700.00, 16-Jan-2018
607,Revenue,CAHD,Bed Purchasing - Southmead Hospital,Permanent Nursing,Drakes Court,1945.28, 16-Jan-2018
608,Revenue,CAHD,South Glos Users in South Glos Homes,Permanent Nursing,Drakes Court,620.20, 16-Jan-2018
609,Revenue,CAHD,Bed Purchasing - South,Permanent Nursing,Drakes Court,2780.00, 16-Jan-2018
610,Revenue,CAHD,South Glos Users in South Glos Homes,Permanent Nursing,Drakes Court,620.20, 16-Jan-2018
611,Revenue,CAHD,Bed Purchasing - North,Respite Planned - Nursing,Drakes Court,2735.12, 16-Jan-2018
612,Revenue,CAHD,Bed Purchasing - Southmead Hospital,Permanent Nursing,Drakes Court,2780.00, 16-Jan-2018
613,Revenue,CAHD,South Glos Users in South Glos Homes,Permanent Nursing,Drakes Court,620.20, 16-Jan-2018
614,Revenue,CAHD,Bed Purchasing - North,Permanent Nursing,Drakes Court,1945.28, 16-Jan-2018
615,Revenue,CAHD,Bed Purchasing - Southmead Hospital,Permanent Nursing,Drakes Court,1945.28, 16-Jan-2018
616,Revenue,CAHD,South Glos Users in South Glos Homes,Permanent Nursing,Drakes Court,620.20, 16-Jan-2018
617,Revenue,CAHD,South Glos Users in South Glos Homes,Permanent Nursing,Drakes Court,620.20, 16-Jan-2018
618,Revenue,CAHD,South Glos Users in South Glos Homes,Permanent Nursing,Drakes Court,620.20, 16-Jan-2018
619,Revenue,CAHD,South Glos Users in South Glos Homes,Permanent Nursing,Drakes Court,509.45, 16-Jan-2018
620,Revenue,CAHD,Bed Purchasing - North,Permanent Residential,Drakes Court,1886.24, 16-Jan-2018
621,Revenue,CAHD,Bed Purchasing - North,Permanent Nursing,Drakes Court,2633.80, 16-Jan-2018
622,Revenue,CAHD,South Glos Users in South Glos Homes,Permanent Nursing,Drakes Court,620.20, 16-Jan-2018
623,Revenue,CAHD,South Glos Users in South Glos Homes,Permanent Nursing,Drakes Court,620.20, 16-Jan-2018
624,Revenue,CAHD,South Glos Users in South Glos Homes,Permanent Nursing,Drakes Court,620.20, 16-Jan-2018
625,Revenue,CAHD,South Glos Users in South Glos Homes,Permanent Nursing,Drakes Court,620.20, 16-Jan-2018
626,Revenue,CAHD,South Glos Users in South Glos Homes,Permanent Nursing,Drakes Court,620.20, 16-Jan-2018
627,Revenue,CAHD,MH Purchasing - Younger,Permanent Residential,Dunraven House,2272.96, 16-Jan-2018
628,Revenue,CAHD,Bed and Breakfast,Bed & Breakfast,Individual ,441.00, 15-Jan-2018
629,Revenue,CAHD,Bed and Breakfast,Bed & Breakfast,Individual ,602.00, 16-Jan-2018
630,Revenue,CAHD,Bed and Breakfast,Bed & Breakfast,Individual ,477.00, 15-Jan-2018
631,Revenue,CAHD,Bed and Breakfast,Other Supplies & Services,Individual ,532.00, 16-Jan-2018
632,Revenue,CAHD,Bed and Breakfast,Bed & Breakfast,Individual ,441.00, 23-Jan-2018
633,Revenue,CAHD,Bed and Breakfast,Bed & Breakfast,Individual ,602.00, 23-Jan-2018
634,Revenue,CAHD,Bed and Breakfast,Other Supplies & Services,Individual ,532.00, 23-Jan-2018
635,Revenue,CAHD,Bed and Breakfast,Other Supplies & Services,Individual ,532.00, 30-Jan-2018
636,Revenue,CAHD,Bed and Breakfast,Bed & Breakfast,Individual ,432.00, 29-Jan-2018
637,Revenue,CAHD,Bed Purchasing - North,Permanent Residential,East Court,2648.48, 16-Jan-2018
638,Revenue,CAHD,Bed Purchasing - Southmead Hospital,Permanent Residential,Edgecumbe Lodge,2072.00, 16-Jan-2018
639,Revenue,CAHD,Bed Purchasing - Southmead Hospital,Permanent Residential,Edgecumbe Lodge,3942.86, 16-Jan-2018
640,Revenue,CAHD,Bed Purchasing - Southmead Hospital,Permanent Residential,Edgecumbe Lodge,2400.00, 16-Jan-2018
641,Revenue,CAHD,Bed Purchasing - Southmead Hospital,Fees & Charges Income - General,Edgecumbe Lodge,864.32, 16-Jan-2018
642,Revenue,CAHD,Bed Purchasing - North,Respite Planned - Residential,Edgecumbe Lodge,3365.71, 16-Jan-2018
643,Revenue,CAHD,Bed Purchasing - North,Respite Planned - Residential,Edgecumbe Lodge,3040.00, 16-Jan-2018
644,Revenue,CAHD,Bed Purchasing - Southmead Hospital,Permanent Residential,Edgecumbe Lodge,2431.20, 16-Jan-2018
645,Revenue,CAHD,Bed Purchasing - South,Permanent Residential,Edgecumbe Lodge,2156.24, 16-Jan-2018
646,Revenue,CAHD,Bed Purchasing - North,Permanent Residential,Edgecumbe Lodge,2320.48, 16-Jan-2018
647,Revenue,CAHD,Bed Purchasing - South,Permanent Residential,Edgecumbe Lodge,2400.00, 16-Jan-2018
648,Revenue,CAHD,Bed Purchasing - South,Permanent Residential,Edgecumbe Lodge,2156.24, 16-Jan-2018
649,Revenue,CAHD,Bed Purchasing - South,Permanent Residential,Edgecumbe Lodge,2431.20, 16-Jan-2018
650,Revenue,CAHD,Bed Purchasing - South,Permanent Residential,Edgecumbe Lodge,2400.00, 16-Jan-2018
651,Revenue,CAHD,Bed Purchasing - Southmead Hospital,Permanent Residential,Edgecumbe Lodge,2431.20, 16-Jan-2018
652,Revenue,CAHD,Bed Purchasing - North,Permanent Residential,Edgecumbe Lodge,2156.24, 16-Jan-2018
653,Revenue,CAHD,Bed purchasing - Elderly S117 - South,Permanent Residential,Edgecumbe Lodge,2400.00, 16-Jan-2018
654,Revenue,CAHD,Bed Purchasing - South,Permanent Residential,Edgemont House Ltd,2228.60, 16-Jan-2018
655,Revenue,CAHD,Bed Purchasing - Southmead Hospital,Permanent Residential,Edgemont House Ltd,1879.20, 16-Jan-2018
656,Revenue,CAHD,Bed Purchasing - South,Permanent Residential,Edgemont House Ltd,2188.08, 16-Jan-2018
657,Revenue,CAHD,Bed Purchasing - South,Respite Planned - Residential,Edgemont House Ltd,1300.00, 16-Jan-2018
658,Revenue,CAHD,Bed Purchasing - South,Permanent Residential,Edgemont House Ltd,2013.32, 16-Jan-2018
659,Revenue,CAHD,South Glos Users in South Glos Homes,Permanent Nursing,Edgemont View Nursing Home,620.20, 16-Jan-2018
660,Revenue,CAHD,Bed Purchasing - South,Permanent Nursing,Edgemont View Nursing Home,2792.86, 16-Jan-2018
661,Revenue,CAHD,Bed Purchasing - South,Permanent Nursing,Edgemont View Nursing Home,607.14, 16-Jan-2018
662,Revenue,CAHD,South Glos Users in South Glos Homes,Permanent Nursing,Edgemont View Nursing Home,620.20, 16-Jan-2018
663,Revenue,CAHD,South Glos Users in South Glos Homes,Permanent Nursing,Edgemont View Nursing Home,620.20, 16-Jan-2018
664,Revenue,CAHD,South Glos Users in South Glos Homes,Permanent Nursing,Edgemont View Nursing Home,620.20, 16-Jan-2018
665,Revenue,CAHD,Bed Purchasing - South,Permanent Nursing,Edgemont View Nursing Home,2917.44, 16-Jan-2018
666,Revenue,CAHD,South Glos Users in South Glos Homes,Permanent Nursing,Edgemont View Nursing Home,620.20, 16-Jan-2018
667,Revenue,CAHD,South Glos Users in South Glos Homes,Permanent Nursing,Edgemont View Nursing Home,620.20, 16-Jan-2018
668,Revenue,CAHD,South Glos Users in South Glos Homes,Permanent Nursing,Edgemont View Nursing Home,620.20, 16-Jan-2018
669,Revenue,CAHD,South Glos Users in South Glos Homes,Permanent Nursing,Edgemont View Nursing Home,620.20, 16-Jan-2018
670,Revenue,CAHD,Bed Purchasing - South,Permanent Nursing,Edgemont View Nursing Home,2880.00, 16-Jan-2018
671,Revenue,CAHD,South Glos Users in South Glos Homes,Permanent Nursing,Edgemont View Nursing Home,620.20, 16-Jan-2018
672,Revenue,CAHD,South Glos Users in South Glos Homes,Permanent Nursing,Edgemont View Nursing Home,620.20, 16-Jan-2018
673,Revenue,CAHD,South Glos Users in South Glos Homes,Permanent Nursing,Edgemont View Nursing Home,620.20, 16-Jan-2018
674,Revenue,CAHD,Bed Purchasing - South,Permanent Nursing,Edgemont View Nursing Home,2880.00, 16-Jan-2018
675,Revenue,CAHD,Bed Purchasing - South,Permanent Nursing,Edgemont View Nursing Home,2228.00, 16-Jan-2018
676,Revenue,CAHD,South Glos Users in South Glos Homes,Permanent Nursing,Edgemont View Nursing Home,620.20, 16-Jan-2018
677,Revenue,CAHD,South Glos Users in South Glos Homes,Permanent Nursing,Edgemont View Nursing Home,620.20, 16-Jan-2018
678,Revenue,CAHD,South Glos Users in South Glos Homes,Permanent Nursing,Edgemont View Nursing Home,620.20, 16-Jan-2018
679,Revenue,CAHD,Home Care - Elderly - South,Other Small Contracts,Elite Home Care Ltd,9428.60, 08-Jan-2018
680,Revenue,CAHD,Home Care - Elderly - South,Supported Living,Elite Home Care Ltd,54.48, 08-Jan-2018
681,Revenue,CAHD,Home Care - Elderly - North,Other Small Contracts,Elite Home Care Ltd,612.90, 08-Jan-2018
682,Revenue,CAHD,Home Care - Elderly - South,Other Small Contracts,Elite Home Care Ltd,8627.32, 15-Jan-2018
683,Revenue,CAHD,Home Care - Elderly - South,Supported Living,Elite Home Care Ltd,54.48, 15-Jan-2018
684,Revenue,CAHD,Home Care - Elderly - North,Other Small Contracts,Elite Home Care Ltd,585.66, 15-Jan-2018
685,Revenue,CAHD,Home Care - Elderly - South,Other Small Contracts,Elite Home Care Ltd,9179.66, 16-Jan-2018
686,Revenue,CAHD,Home Care - Elderly - South,Supported Living,Elite Home Care Ltd,54.48, 16-Jan-2018
687,Revenue,CAHD,Home Care - Elderly - North,Other Small Contracts,Elite Home Care Ltd,676.46, 16-Jan-2018
688,Revenue,CAHD,Home Care - Elderly - South,Other Small Contracts,Elite Home Care Ltd,9533.04, 22-Jan-2018
689,Revenue,CAHD,Home Care - Elderly - South,Supported Living,Elite Home Care Ltd,54.48, 22-Jan-2018
690,Revenue,CAHD,Home Care - Elderly - North,Other Small Contracts,Elite Home Care Ltd,685.54, 22-Jan-2018
691,Revenue,CAHD,Home Care - Elderly - South,Other Small Contracts,Elite Home Care Ltd,9861.42, 30-Jan-2018
692,Revenue,CAHD,Home Care - Elderly - South,Supported Living,Elite Home Care Ltd,54.48, 30-Jan-2018
693,Revenue,CAHD,Home Care - Elderly - North,Other Small Contracts,Elite Home Care Ltd,699.16, 30-Jan-2018
694,Revenue,CAHD,Bed and Breakfast,Other Supplies & Services,Individual ,1024.07, 30-Jan-2018
695,Revenue,CAHD,Mental Capacity Act / DOLS,Legal Fees,Emily Brazenall,600.00, 29-Jan-2018
696,Revenue,CAHD,Training - Adult Services,Training Expenses,Equality & Diversity UK Limited,663.70, 05-Jan-2018
697,Revenue,CAHD,Information Systems - Software,Software Support & Maintenance,Esteem Systems Plc,1325.00, 30-Jan-2018
698,Revenue,CAHD,Learning Difficulties Development Fund,Other Supplies & Services,FACE,1375.00, 09-Jan-2018
699,Revenue,CAHD,South Glos Users in South Glos Homes,Permanent Nursing,Fairview Court,620.20, 16-Jan-2018
700,Revenue,CAHD,South Glos Users in South Glos Homes,Permanent Nursing,Fairview Court,620.20, 16-Jan-2018
701,Revenue,CAHD,South Glos Users in South Glos Homes,Permanent Nursing,Fairview Court,620.20, 16-Jan-2018
702,Revenue,CAHD,Bed Purchasing - Southmead Hospital,Permanent Nursing,Fairview Court,3360.00, 16-Jan-2018
703,Revenue,CAHD,South Glos Users in South Glos Homes,Permanent Nursing,Fairview Court,620.20, 16-Jan-2018
704,Revenue,CAHD,Bed Purchasing - Southmead Hospital,Permanent Nursing,Fairview Court,3241.60, 16-Jan-2018
705,Revenue,CAHD,South Glos Users in South Glos Homes,Permanent Nursing,Fairview Court,620.20, 16-Jan-2018
706,Revenue,CAHD,South Glos Users in South Glos Homes,Permanent Nursing,Fairview Court,620.20, 16-Jan-2018
707,Revenue,CAHD,South Glos Users in South Glos Homes,Permanent Nursing,Fairview Court,620.20, 16-Jan-2018
708,Revenue,CAHD,Bed purchasing - Elderly S117 - South,Permanent Nursing,Fairview Court,4000.00, 16-Jan-2018
709,Revenue,CAHD,South Glos Users in South Glos Homes,Permanent Nursing,Fairview Court,620.20, 16-Jan-2018
710,Revenue,CAHD,Bed purchasing - Elderly S117 - South,Permanent Nursing,Fairview Court,3000.00, 16-Jan-2018
711,Revenue,CAHD,South Glos Users in South Glos Homes,Permanent Nursing,Fairview Court,620.20, 16-Jan-2018
712,Revenue,CAHD,South Glos Users in South Glos Homes,Permanent Nursing,Fairview Court,620.20, 16-Jan-2018
713,Revenue,CAHD,Bed Purchasing - Southmead Hospital,Permanent Nursing,Fairview Court,4614.29, 16-Jan-2018
714,Revenue,CAHD,Bed Purchasing - Southmead Hospital,Permanent Nursing,Fairview Court,3400.00, 16-Jan-2018
715,Revenue,CAHD,Bed Purchasing - South,Permanent Nursing,Fairview Court,3241.60, 16-Jan-2018
716,Revenue,CAHD,South Glos Users in South Glos Homes,Permanent Nursing,Fairview Court,620.20, 16-Jan-2018
717,Revenue,CAHD,South Glos Users in South Glos Homes,Permanent Nursing,Fairview Court,620.20, 16-Jan-2018
718,Revenue,CAHD,Bed Purchasing - Southmead Hospital,Permanent Nursing,Fairview Court,3241.60, 16-Jan-2018
719,Revenue,CAHD,South Glos Users in South Glos Homes,Permanent Nursing,Fairview Court,620.20, 16-Jan-2018
720,Revenue,CAHD,Bed Purchasing - Southmead Hospital,Permanent Nursing,Fairview Court,3400.00, 16-Jan-2018
721,Revenue,CAHD,South Glos Users in South Glos Homes,Permanent Nursing,Fairview Court,620.20, 16-Jan-2018
722,Revenue,CAHD,South Glos Users in South Glos Homes,Permanent Nursing,Fairview Court,620.20, 16-Jan-2018
723,Revenue,CAHD,Bed Purchasing - Southmead Hospital,Permanent Nursing,Fairview Court,3400.00, 16-Jan-2018
724,Revenue,CAHD,South Glos Users in South Glos Homes,Permanent Nursing,Fairview Court,620.20, 16-Jan-2018
725,Revenue,CAHD,South Glos Users in South Glos Homes,Permanent Nursing,Fairview Court,620.20, 16-Jan-2018
726,Revenue,CAHD,South Glos Users in South Glos Homes,Permanent Nursing,Fairview Court,620.20, 16-Jan-2018
727,Revenue,CAHD,Bed Purchasing - Southmead Hospital,Permanent Nursing,Fairview Court,3400.00, 16-Jan-2018
728,Revenue,CAHD,Bed Purchasing - Southmead Hospital,Permanent Nursing,Fairview Court,3400.00, 16-Jan-2018
729,Revenue,CAHD,South Glos Users in South Glos Homes,Permanent Nursing,Fairview Court,620.20, 16-Jan-2018
730,Revenue,CAHD,South Glos Users in South Glos Homes,Permanent Nursing,Fairview Court,620.20, 16-Jan-2018
731,Revenue,CAHD,Bed Purchasing - North,Permanent Nursing,Fairview Court,3400.00, 16-Jan-2018
732,Revenue,CAHD,Bed Purchasing - North,Permanent Nursing,Fairview Court,2550.00, 16-Jan-2018
733,Revenue,CAHD,South Glos Users in South Glos Homes,Permanent Nursing,Fairview Court,620.20, 16-Jan-2018
734,Revenue,CAHD,South Glos Users in South Glos Homes,Permanent Nursing,Fairview Court,620.20, 16-Jan-2018
735,Revenue,CAHD,Bed Purchasing - South,Permanent Nursing,Fairview Court,3000.00, 16-Jan-2018
736,Revenue,CAHD,South Glos Users in South Glos Homes,Permanent Nursing,Fairview Court,620.20, 16-Jan-2018
737,Revenue,CAHD,South Glos Users in South Glos Homes,Permanent Nursing,Fairview Court,620.20, 16-Jan-2018
738,Revenue,CAHD,Bed Purchasing - Southmead Hospital,Permanent Nursing,Fairview Court,3400.00, 16-Jan-2018
739,Revenue,CAHD,South Glos Users in South Glos Homes,Permanent Nursing,Fairview Court,620.20, 16-Jan-2018
740,Revenue,CAHD,South Glos Users in South Glos Homes,Permanent Nursing,Fairview Court,620.20, 16-Jan-2018
741,Revenue,CAHD,South Glos Users in South Glos Homes,Permanent Nursing,Fairview Court,2835.20, 16-Jan-2018
742,Revenue,CAHD,Bed purchasing - Elderly S117 - South,Permanent Residential,Fairview House,2058.04, 16-Jan-2018
743,Revenue,CAHD,Bed Purchasing - Southmead Hospital,Permanent Residential,Fairview House,2400.00, 16-Jan-2018
744,Revenue,CAHD,Bed Purchasing - South,Permanent Residential,Fairview House,2094.64, 16-Jan-2018
745,Revenue,CAHD,Bed Purchasing - South,Permanent Residential,Fairview House,1886.24, 16-Jan-2018
746,Revenue,CAHD,Bed Purchasing - South,Permanent Residential,Fairview House,2127.32, 16-Jan-2018
747,Revenue,CAHD,Bed Purchasing - South,Permanent Residential,Fairview House,1886.24, 16-Jan-2018
748,Revenue,CAHD,Bed Purchasing - South,Permanent Residential,Fairview House,1886.24, 16-Jan-2018
749,Revenue,CAHD,Bed Purchasing - South,Permanent Residential,Fairview House,1917.36, 16-Jan-2018
750,Revenue,CAHD,Bed Purchasing - South,Permanent Residential,Fairview House,2117.24, 16-Jan-2018
751,Revenue,CAHD,Bed Purchasing - Southmead Hospital,Permanent Residential,Fairview House,2600.00, 16-Jan-2018
752,Revenue,CAHD,Bed Purchasing - North,Permanent Residential,Faith House,4012.14, 16-Jan-2018
753,Revenue,CAHD,Bed Purchasing - North,Permanent Residential,Faith House,2740.00, 16-Jan-2018
754,Revenue,CAHD,Bed Purchasing - North,Respite Emergency - Residential,Faith House,587.14, 16-Jan-2018
755,Revenue,CAHD,Bed Purchasing - North,Permanent Residential,Faith House,2633.80, 16-Jan-2018
756,Revenue,CAHD,Bed Purchasing - North,Permanent Residential,Faith House,2740.00, 16-Jan-2018
757,Revenue,CAHD,Tenancy Start Up Scheme,Other Supplies & Services,Farringtons Sales & Lettings,685.00, 09-Jan-2018
758,Revenue,CAHD,South Glos Users in South Glos Homes,Permanent Nursing,Field House Care Home,620.20, 16-Jan-2018
759,Revenue,CAHD,Bed Purchasing - Southmead Hospital,Permanent Nursing,Field House Care Home,3261.88, 16-Jan-2018
760,Revenue,CAHD,Bed Purchasing - Southmead Hospital,Permanent Nursing,Field House Care Home,3280.00, 16-Jan-2018
761,Revenue,CAHD,Bed Purchasing - Southmead Hospital,Respite Planned - Nursing,Field House Care Home,2577.14, 16-Jan-2018
762,Revenue,CAHD,Bed Purchasing - North,Permanent Nursing,Field House Care Home,3280.00, 16-Jan-2018
763,Revenue,CAHD,Bed Purchasing - South,Permanent Nursing,Field House Care Home,3280.00, 16-Jan-2018
764,Revenue,CAHD,Bed Purchasing - North,Permanent Nursing,Field House Care Home,3360.00, 16-Jan-2018
765,Revenue,CAHD,Bed Purchasing - North,Permanent Residential,Fieldview,2836.40, 16-Jan-2018
766,Revenue,CAHD,Bed Purchasing - North,Permanent Residential,Fieldview,3985.71, 16-Jan-2018
767,Revenue,CAHD,Bed Purchasing - North,Permanent Residential,Fieldview,3600.00, 16-Jan-2018
768,Revenue,CAHD,Bed Purchasing - North,Fees & Charges Income - General,Fieldview,576.21, 16-Jan-2018
769,Revenue,CAHD,Bed Purchasing - Elderly S117- North,Permanent Residential,Fieldview,4800.00, 16-Jan-2018
770,Revenue,CAHD,Bed Purchasing - Southmead Hospital,Permanent Residential,Fieldview,2800.00, 16-Jan-2018
771,Revenue,CAHD,MH Purchasing - Younger,Permanent Nursing,Fieldview,5267.60, 16-Jan-2018
772,Revenue,CAHD,Bed Purchasing - South,Permanent Residential,Fig House,2836.40, 16-Jan-2018
773,Revenue,CAHD,Home Care - Elderly - South,Other Small Contracts,Firstpoint Homecare Ltd,642.40, 08-Jan-2018
774,Revenue,CAHD,Home Care - Elderly - North,Day Care / Social Activities,Firstpoint Homecare Ltd,132.00, 08-Jan-2018
775,Revenue,CAHD,Home Care - Elderly - South,Other Small Contracts,Firstpoint Homecare Ltd,594.00, 08-Jan-2018
776,Revenue,CAHD,Home Care - Elderly - North,Day Care / Social Activities,Firstpoint Homecare Ltd,127.60, 08-Jan-2018
777,Revenue,CAHD,Home Care - Elderly - South,Other Small Contracts,Firstpoint Homecare Ltd,633.60, 15-Jan-2018
778,Revenue,CAHD,Home Care - Elderly - North,Day Care / Social Activities,Firstpoint Homecare Ltd,132.00, 15-Jan-2018
779,Revenue,CAHD,Home Care - Elderly - South,Other Small Contracts,Firstpoint Homecare Ltd,655.60, 19-Jan-2018
780,Revenue,CAHD,Home Care - Elderly - North,Day Care / Social Activities,Firstpoint Homecare Ltd,132.00, 19-Jan-2018
781,Revenue,CAHD,Home Care - Elderly - South,Other Small Contracts,Firstpoint Homecare Ltd,620.40, 30-Jan-2018
782,Revenue,CAHD,Home Care - Elderly - North,Day Care / Social Activities,Firstpoint Homecare Ltd,132.00, 30-Jan-2018
783,Revenue,CAHD,Home Care - Elderly - South,Day Care / Social Activities,Fourways Care Limited,44.01, 10-Jan-2018
784,Revenue,CAHD,Home Care - Elderly - South,Other Small Contracts,Fourways Care Limited,5963.66, 10-Jan-2018
785,Revenue,CAHD,Home Care - Elderly - North,Other Small Contracts,Fourways Care Limited,3168.72, 10-Jan-2018
786,Revenue,CAHD,Younger MH non-res purchasing,Other Small Contracts,Fourways Care Limited,435.21, 10-Jan-2018
787,Revenue,CAHD,Home Care - Elderly - South,Day Care / Social Activities,Fourways Care Limited,39.12, 10-Jan-2018
788,Revenue,CAHD,Home Care - Elderly - South,Other Small Contracts,Fourways Care Limited,4738.44, 10-Jan-2018
789,Revenue,CAHD,Home Care - Elderly - North,Other Small Contracts,Fourways Care Limited,2601.48, 10-Jan-2018
790,Revenue,CAHD,Younger MH non-res purchasing,Other Small Contracts,Fourways Care Limited,552.57, 10-Jan-2018
791,Revenue,CAHD,Home Care - Elderly - South,Day Care / Social Activities,Fourways Care Limited,78.24, 16-Jan-2018
792,Revenue,CAHD,Home Care - Elderly - South,Other Small Contracts,Fourways Care Limited,5625.57, 16-Jan-2018
793,Revenue,CAHD,Home Care - Elderly - North,Other Small Contracts,Fourways Care Limited,3242.07, 16-Jan-2018
794,Revenue,CAHD,Younger MH non-res purchasing,Other Small Contracts,Fourways Care Limited,352.08, 16-Jan-2018
795,Revenue,CAHD,Home Care - Elderly - South,Day Care / Social Activities,Fourways Care Limited,39.12, 19-Jan-2018
796,Revenue,CAHD,Home Care - Elderly - South,Other Small Contracts,Fourways Care Limited,5849.02, 19-Jan-2018
797,Revenue,CAHD,Home Care - Elderly - North,Other Small Contracts,Fourways Care Limited,3515.91, 19-Jan-2018
798,Revenue,CAHD,Younger MH non-res purchasing,Other Small Contracts,Fourways Care Limited,449.88, 19-Jan-2018
799,Revenue,CAHD,Freeways,Permanent Residential,Freeways Trust Limited,3677.48, 18-Jan-2018
800,Revenue,CAHD,Freeways,Permanent Residential,Freeways Trust Limited,2364.64, 18-Jan-2018
801,Revenue,CAHD,Freeways,Permanent Residential,Freeways Trust Limited,2364.64, 18-Jan-2018
802,Revenue,CAHD,Freeways,Permanent Residential,Freeways Trust Limited,3441.12, 18-Jan-2018
803,Revenue,CAHD,Freeways,Permanent Residential,Freeways Trust Limited,2364.64, 18-Jan-2018
804,Revenue,CAHD,Freeways,Permanent Residential,Freeways Trust Limited,3491.60, 18-Jan-2018
805,Revenue,CAHD,Freeways,Permanent Residential,Freeways Trust Limited,2629.12, 18-Jan-2018
806,Revenue,CAHD,Freeways,Permanent Residential,Freeways Trust Limited,3649.08, 18-Jan-2018
807,Revenue,CAHD,Freeways,Permanent Residential,Freeways Trust Limited,2229.44, 18-Jan-2018
808,Revenue,CAHD,Freeways,Permanent Residential,Freeways Trust Limited,2792.80, 18-Jan-2018
809,Revenue,CAHD,Freeways,Permanent Residential,Freeways Trust Limited,3557.68, 18-Jan-2018
810,Revenue,CAHD,Freeways,Permanent Residential,Freeways Trust Limited,3122.76, 18-Jan-2018
811,Revenue,CAHD,Freeways,Permanent Residential,Freeways Trust Limited,2364.64, 18-Jan-2018
812,Revenue,CAHD,Freeways,Permanent Residential,Freeways Trust Limited,2517.36, 18-Jan-2018
813,Revenue,CAHD,Freeways,Permanent Residential,Freeways Trust Limited,4135.66, 18-Jan-2018
814,Revenue,CAHD,Freeways,Permanent Residential,Freeways Trust Limited,1168.77, 18-Jan-2018
815,Revenue,CAHD,Freeways,Permanent Residential,Freeways Trust Limited,1438.49, 18-Jan-2018
816,Revenue,CAHD,Freeways,Permanent Residential,Freeways Trust Limited,539.43, 18-Jan-2018
817,Revenue,CAHD,Home Care - Elderly - North,Other Small Contracts,Freeways Trust Limited,2212.80, 04-Jan-2018
818,Revenue,CAHD,18-25 Year Olds,Respite Planned - Residential,Freeways Trust Limited,811.36, 04-Jan-2018
819,Revenue,CAHD,Home Care - Elderly - South,Other Small Contracts,Freeways Trust Limited,1106.40, 05-Jan-2018
820,Revenue,CAHD,Home Care - Elderly - South,Other Small Contracts,Freeways Trust Limited,1106.40, 05-Jan-2018
821,Revenue,CAHD,Home Care - Elderly - South,Other Small Contracts,Freeways Trust Limited,516.32, 05-Jan-2018
822,Revenue,CAHD,Home Care - Elderly - North,Other Small Contracts,Freeways Trust Limited,811.36, 08-Jan-2018
823,Revenue,CAHD,18-25 Year Olds,Respite Planned - Residential,Freeways Trust Limited,663.84, 08-Jan-2018
824,Revenue,CAHD,Home Care - Elderly - North,Other Small Contracts,Freeways Trust Limited,811.36, 29-Jan-2018
825,Revenue,CAHD,Home Care - Elderly - North,Supported Living,Freeways Trust Ltd,810.40, 16-Jan-2018
826,Revenue,CAHD,Bed purchasing - S28A Under 65 - South,Permanent Residential,Freeways Trust Ltd,3711.08, 16-Jan-2018
827,Revenue,CAHD,Bed Purchasing - North,Permanent Residential,Freeways Trust Ltd,3606.68, 16-Jan-2018
828,Revenue,CAHD,Bed Purchasing - South,Permanent Residential,Freeways Trust Ltd,3825.16, 16-Jan-2018
829,Revenue,CAHD,Bed Purchasing - North,Permanent Residential,Freeways Trust Ltd,2888.32, 16-Jan-2018
830,Revenue,CAHD,Bed Purchasing - South,Permanent Residential,Freeways Trust Ltd,3043.64, 16-Jan-2018
831,Revenue,CAHD,Bed Purchasing - North,Permanent Residential,Freeways Trust Ltd,3190.00, 16-Jan-2018
832,Revenue,CAHD,Bed Purchasing - North,Permanent Residential,Freeways Trust Ltd,3818.20, 16-Jan-2018
833,Revenue,CAHD,18-25 Year Olds,Permanent Residential,Freeways Trust Ltd,3527.20, 16-Jan-2018
834,Revenue,CAHD,Section 117 Placements MH Younger,Permanent Residential,Freeways Trust Ltd,3200.00, 16-Jan-2018
835,Revenue,CAHD,Home Care - Elderly - North,Day Care / Social Activities,Frenchay Beckspool Building,864.00, 16-Jan-2018
836,Revenue,CAHD,Home Care - Elderly - South,Day Care / Social Activities,Frenchay Beckspool Building,864.00, 16-Jan-2018
837,Revenue,CAHD,Pathway 3 - (Complex Beds),Permanent Nursing,Frenchay House,3204.00, 04-Jan-2018
838,Revenue,CAHD,Pathway 3 - (Complex Beds),Permanent Nursing,Frenchay House,3204.00, 08-Jan-2018
839,Revenue,CAHD,Bed Purchasing - South,Permanent Nursing,Frenchay Park Nursing Home,3200.00, 16-Jan-2018
840,Revenue,CAHD,Bed Purchasing - Southmead Hospital,Permanent Nursing,Frenchay Park Nursing Home,3200.00, 16-Jan-2018
841,Revenue,CAHD,South Glos Users in South Glos Homes,Permanent Nursing,Fshc  1St Floor,620.20, 16-Jan-2018
842,Revenue,CAHD,Bed Purchasing - South,Permanent Nursing,Fshc  1St Floor,2621.16, 16-Jan-2018
843,Revenue,CAHD,South Glos Users in South Glos Homes,Permanent Nursing,Fshc  1St Floor,620.20, 16-Jan-2018
844,Revenue,CAHD,Bed Purchasing - South,Permanent Nursing,Fshc  1St Floor,2228.00, 16-Jan-2018
845,Revenue,CAHD,Bed Purchasing - Southmead Hospital,Permanent Nursing,Fshc  1St Floor,2281.28, 16-Jan-2018
846,Revenue,CAHD,Bed Purchasing - South,Permanent Nursing,Fshc  1St Floor,2228.00, 16-Jan-2018
847,Revenue,CAHD,South Glos Users in South Glos Homes,Permanent Nursing,Fshc  1St Floor,620.20, 16-Jan-2018
848,Revenue,CAHD,Bed Purchasing - Southmead Hospital,Permanent Nursing,Fshc  1St Floor,2390.68, 16-Jan-2018
849,Revenue,CAHD,South Glos Users in South Glos Homes,Permanent Nursing,Fshc  1St Floor,620.20, 16-Jan-2018
850,Revenue,CAHD,Bed Purchasing - Southmead Hospital,Permanent Nursing,Fshc  1St Floor,2228.00, 16-Jan-2018
851,Revenue,CAHD,South Glos Users in South Glos Homes,Permanent Nursing,Fshc  1St Floor,620.20, 16-Jan-2018
852,Revenue,CAHD,Bed Purchasing - South,Permanent Residential,Fshc  1St Floor,2612.86, 16-Jan-2018
853,Revenue,CAHD,Bed Purchasing - South,Permanent Residential,Fshc  1St Floor,2360.00, 16-Jan-2018
854,Revenue,CAHD,Bed Purchasing - Southmead Hospital,Permanent Residential,Fshc  1St Floor,2200.00, 16-Jan-2018
855,Revenue,CAHD,Bed Purchasing - Southmead Hospital,Permanent Nursing,Fshc  1St Floor,2281.28, 16-Jan-2018
856,Revenue,CAHD,South Glos Users in South Glos Homes,Permanent Nursing,Fshc  1St Floor,620.20, 16-Jan-2018
857,Revenue,CAHD,Bed Purchasing - South,Respite Planned - Residential,Fshc  1St Floor,770.61, 16-Jan-2018
858,Revenue,CAHD,Bed Purchasing - South,Respite Planned - Residential,Fshc  1St Floor,590.00, 16-Jan-2018
859,Revenue,CAHD,Bed Purchasing - South,Respite Planned - Residential,Fshc  1St Floor,590.00, 16-Jan-2018
860,Revenue,CAHD,South Glos Users in South Glos Homes,Permanent Nursing,Fshc  1St Floor,620.20, 16-Jan-2018
861,Revenue,CAHD,Bed Purchasing - Southmead Hospital,Permanent Nursing,Fshc  1St Floor,2228.00, 16-Jan-2018
862,Revenue,CAHD,Bed Purchasing - Southmead Hospital,Permanent Nursing,Fshc  1St Floor,3099.80, 16-Jan-2018
863,Revenue,CAHD,South Glos Users in South Glos Homes,Permanent Nursing,Fshc  1St Floor,620.20, 16-Jan-2018
864,Revenue,CAHD,Bed Purchasing - Southmead Hospital,Permanent Nursing,Fshc  1St Floor,2360.00, 16-Jan-2018
865,Revenue,CAHD,Bed Purchasing - Southmead Hospital,Permanent Nursing,Fshc  1St Floor,2360.00, 16-Jan-2018
866,Revenue,CAHD,South Glos Users in South Glos Homes,Permanent Nursing,Fshc  1St Floor,620.20, 16-Jan-2018
867,Revenue,CAHD,Bed Purchasing - South,Permanent Nursing,Fshc  1St Floor,2613.56, 16-Jan-2018
868,Revenue,CAHD,South Glos Users in South Glos Homes,Permanent Nursing,Fshc  1St Floor,620.20, 16-Jan-2018
869,Revenue,CAHD,South Glos Users in South Glos Homes,Permanent Nursing,Fshc  1St Floor,620.20, 16-Jan-2018
870,Revenue,CAHD,Bed Purchasing - South,Respite Planned - Nursing,Fshc  1St Floor,720.00, 16-Jan-2018
871,Revenue,CAHD,South Glos Users in South Glos Homes,Permanent Nursing,Fshc  1St Floor,620.20, 16-Jan-2018
872,Revenue,CAHD,South Glos Users in South Glos Homes,Permanent Nursing,Fshc  1St Floor,620.20, 16-Jan-2018
873,Revenue,CAHD,South Glos Users in South Glos Homes,Permanent Nursing,Fshc  1St Floor,620.20, 16-Jan-2018
874,Revenue,CAHD,Bed Purchasing - South,Permanent Nursing,Fshc  1St Floor,5141.43, 16-Jan-2018
875,Revenue,CAHD,Bed Purchasing - South,Permanent Nursing,Fshc  1St Floor,2360.00, 16-Jan-2018
876,Revenue,CAHD,Bed Purchasing - South,Fees & Charges Income - General,Fshc  1St Floor,1152.43, 16-Jan-2018
877,Revenue,CAHD,Bed Purchasing - Southmead Hospital,Permanent Nursing,Fshc  1St Floor,2281.28, 16-Jan-2018
878,Revenue,CAHD,South Glos Users in South Glos Homes,Permanent Nursing,Fshc  1St Floor,620.20, 16-Jan-2018
879,Revenue,CAHD,Bed Purchasing - Southmead Hospital,Permanent Nursing,Fshc  1St Floor,2360.00, 16-Jan-2018
880,Revenue,CAHD,South Glos Users in South Glos Homes,Permanent Nursing,Fshc  1St Floor,620.20, 16-Jan-2018
881,Revenue,CAHD,Bed Purchasing - South,Permanent Nursing,Fshc  1St Floor,2228.00, 16-Jan-2018
882,Revenue,CAHD,South Glos Users in South Glos Homes,Permanent Nursing,Fshc  1St Floor,620.20, 16-Jan-2018
883,Revenue,CAHD,Bed Purchasing - Southmead Hospital,Permanent Nursing,Fshc  1St Floor,2228.00, 16-Jan-2018
884,Revenue,CAHD,South Glos Users in South Glos Homes,Permanent Nursing,Fshc  1St Floor,620.20, 16-Jan-2018
885,Revenue,CAHD,Bed Purchasing - South,Permanent Nursing,Fshc  1St Floor,2228.00, 16-Jan-2018
886,Revenue,CAHD,South Glos Users in South Glos Homes,Permanent Nursing,Fshc  1St Floor,620.20, 16-Jan-2018
887,Revenue,CAHD,Bed Purchasing - South,Permanent Nursing,Fshc  1St Floor,2281.28, 16-Jan-2018
888,Revenue,CAHD,South Glos Users in South Glos Homes,Permanent Nursing,Fshc  1St Floor,620.20, 16-Jan-2018
889,Revenue,CAHD,Bed Purchasing - North,Respite Planned - Residential,Fshc  1St Floor,565.71, 16-Jan-2018
890,Revenue,CAHD,Bed Purchasing - Southmead Hospital,Permanent Nursing,Fshc  1St Floor,2657.14, 16-Jan-2018
891,Revenue,CAHD,Bed Purchasing - Southmead Hospital,Permanent Nursing,Fshc  1St Floor,2400.00, 16-Jan-2018
892,Revenue,CAHD,Bed Purchasing - North,Permanent Nursing,Fshc  1St Floor,2312.32, 16-Jan-2018
893,Revenue,CAHD,South Glos Users in South Glos Homes,Permanent Nursing,Fshc  1St Floor,620.20, 16-Jan-2018
894,Revenue,CAHD,Bed Purchasing - Southmead Hospital,Permanent Nursing,Fshc  1St Floor,2810.84, 16-Jan-2018
895,Revenue,CAHD,Bed Purchasing - Southmead Hospital,Permanent Residential,Fshc  1St Floor,2256.96, 16-Jan-2018
896,Revenue,CAHD,South Glos Users in South Glos Homes,Permanent Nursing,Fshc  1St Floor,620.20, 16-Jan-2018
897,Revenue,CAHD,Bed Purchasing - Southmead Hospital,Permanent Nursing,Fshc  1St Floor,2228.00, 16-Jan-2018
898,Revenue,CAHD,South Glos Users in South Glos Homes,Permanent Nursing,Fshc  1St Floor,620.20, 16-Jan-2018
899,Revenue,CAHD,Bed Purchasing - Southmead Hospital,Permanent Nursing,Fshc  1St Floor,2296.00, 16-Jan-2018
900,Revenue,CAHD,South Glos Users in South Glos Homes,Permanent Nursing,Fshc  1St Floor,620.20, 16-Jan-2018
901,Revenue,CAHD,Bed Purchasing - North,Permanent Nursing,Fshc  1St Floor,2228.00, 16-Jan-2018
902,Revenue,CAHD,South Glos Users in South Glos Homes,Permanent Nursing,Fshc  1St Floor,620.20, 16-Jan-2018
903,Revenue,CAHD,South Glos Users in South Glos Homes,Permanent Nursing,Fshc  1St Floor,620.20, 16-Jan-2018
904,Revenue,CAHD,Bed Purchasing - North,Permanent Residential,Fshc  1St Floor,2700.00, 16-Jan-2018
905,Revenue,CAHD,Bed Purchasing - Southmead Hospital,Permanent Nursing,Fshc  1St Floor,2228.00, 16-Jan-2018
906,Revenue,CAHD,South Glos Users in South Glos Homes,Permanent Nursing,Fshc  1St Floor,620.20, 16-Jan-2018
907,Revenue,CAHD,Bed Purchasing - Southmead Hospital,Permanent Residential,Fshc  1St Floor,2072.00, 16-Jan-2018
908,Revenue,CAHD,Bed Purchasing - South,Permanent Residential,Fshc  1St Floor,800.00, 16-Jan-2018
909,Revenue,CAHD,South Glos Users in South Glos Homes,Permanent Nursing,Fshc  1St Floor,620.20, 16-Jan-2018
910,Revenue,CAHD,Bed Purchasing - South,Permanent Residential,Fshc  1St Floor,2700.00, 16-Jan-2018
911,Revenue,CAHD,Bed Purchasing - North,Permanent Nursing,Fshc  1St Floor,2296.00, 16-Jan-2018
912,Revenue,CAHD,South Glos Users in South Glos Homes,Permanent Nursing,Fshc  1St Floor,620.20, 16-Jan-2018
913,Revenue,CAHD,Bed Purchasing - Southmead Hospital,Permanent Nursing,Fshc  1St Floor,2256.96, 16-Jan-2018
914,Revenue,CAHD,South Glos Users in South Glos Homes,Permanent Nursing,Fshc  1St Floor,620.20, 16-Jan-2018
915,Revenue,CAHD,Bed Purchasing - Southmead Hospital,Permanent Nursing,Fshc  1St Floor,2228.00, 16-Jan-2018
916,Revenue,CAHD,South Glos Users in South Glos Homes,Permanent Nursing,Fshc  1St Floor,620.20, 16-Jan-2018
917,Revenue,CAHD,Bed Purchasing - North,Permanent Nursing,Fshc  1St Floor,2228.00, 16-Jan-2018
918,Revenue,CAHD,Bed Purchasing - North,Permanent Nursing,Fshc  1St Floor,1671.00, 16-Jan-2018
919,Revenue,CAHD,South Glos Users in South Glos Homes,Permanent Nursing,Fshc  1St Floor,620.20, 16-Jan-2018
920,Revenue,CAHD,Bed Purchasing - North,Permanent Nursing,Fshc  1St Floor,12382.00, 16-Jan-2018
921,Revenue,CAHD,Bed Purchasing - North,Permanent Nursing,Fshc  1St Floor,2296.00, 16-Jan-2018
922,Revenue,CAHD,South Glos Users in South Glos Homes,Permanent Nursing,Fshc  1St Floor,620.20, 16-Jan-2018
923,Revenue,CAHD,Bed Purchasing - North,Permanent Nursing,Fshc  1St Floor,2228.00, 16-Jan-2018
924,Revenue,CAHD,South Glos Users in South Glos Homes,Permanent Nursing,Fshc  1St Floor,620.20, 16-Jan-2018
925,Revenue,CAHD,South Glos Users in South Glos Homes,Permanent Nursing,Fshc  1St Floor,620.20, 16-Jan-2018
926,Revenue,CAHD,Bed Purchasing - Southmead Hospital,Permanent Nursing,Fshc  1St Floor,3600.00, 16-Jan-2018
927,Revenue,CAHD,Bed Purchasing - North,Permanent Nursing,Fshc  1St Floor,13049.72, 16-Jan-2018
928,Revenue,CAHD,Bed Purchasing - North,Permanent Nursing,Fshc  1St Floor,2148.43, 16-Jan-2018
929,Revenue,CAHD,South Glos Users in South Glos Homes,Permanent Nursing,Fshc  1St Floor,620.20, 16-Jan-2018
930,Revenue,CAHD,Bed Purchasing - North,Fees & Charges Income - General,Fshc  1St Floor,1151.64, 16-Jan-2018
931,Revenue,CAHD,Bed Purchasing - North,Fees & Charges Income - General,Fshc  1St Floor,1151.16, 16-Jan-2018
932,Revenue,CAHD,Bed Purchasing - North,Fees & Charges Income - General,Fshc  1St Floor,1131.44, 16-Jan-2018
933,Revenue,CAHD,Bed Purchasing - North,Fees & Charges Income - General,Fshc  1St Floor,1555.78, 16-Jan-2018
934,Revenue,CAHD,Bed Purchasing - North,Permanent Residential,Fshc  1St Floor,2700.00, 16-Jan-2018
935,Revenue,CAHD,Bed Purchasing - Southmead Hospital,Permanent Nursing,Fshc  1St Floor,2296.00, 16-Jan-2018
936,Revenue,CAHD,South Glos Users in South Glos Homes,Permanent Nursing,Fshc  1St Floor,620.20, 16-Jan-2018
937,Revenue,CAHD,Bed Purchasing - Southmead Hospital,Permanent Nursing,Fshc  1St Floor,2228.00, 16-Jan-2018
938,Revenue,CAHD,South Glos Users in South Glos Homes,Permanent Nursing,Fshc  1St Floor,620.20, 16-Jan-2018
939,Revenue,CAHD,Bed Purchasing - North,Permanent Nursing,Fshc  1St Floor,2228.00, 16-Jan-2018
940,Revenue,CAHD,South Glos Users in South Glos Homes,Permanent Nursing,Fshc  1St Floor,620.20, 16-Jan-2018
941,Revenue,CAHD,South Glos Users in South Glos Homes,Permanent Nursing,Fshc  1St Floor,620.20, 16-Jan-2018
942,Revenue,CAHD,South Glos Users in South Glos Homes,Permanent Nursing,Fshc  1St Floor,2480.80, 16-Jan-2018
943,Revenue,CAHD,South Glos Users in South Glos Homes,Permanent Nursing,Fshc  1St Floor,620.20, 16-Jan-2018
944,Revenue,CAHD,South Glos Users in South Glos Homes,Permanent Nursing,Fshc  1St Floor,620.20, 16-Jan-2018
945,Revenue,CAHD,Bed Purchasing - Southmead Hospital,Permanent Nursing,Fshc  1St Floor,2228.00, 16-Jan-2018
946,Revenue,CAHD,South Glos Users in South Glos Homes,Permanent Nursing,Fshc  1St Floor,620.20, 16-Jan-2018
947,Revenue,CAHD,South Glos Users in South Glos Homes,Permanent Nursing,Fshc  1St Floor,620.20, 16-Jan-2018
948,Revenue,CAHD,South Glos Users in South Glos Homes,Permanent Nursing,Fshc  1St Floor,620.20, 16-Jan-2018
949,Revenue,CAHD,Bed Purchasing - Southmead Hospital,Permanent Nursing,Fshc  1St Floor,2985.27, 16-Jan-2018
950,Revenue,CAHD,Bed Purchasing - Southmead Hospital,Fees & Charges Income - General,Fshc  1St Floor,746.86, 16-Jan-2018
951,Revenue,CAHD,Bed Purchasing - North,Permanent Nursing,Fshc  1St Floor,2228.00, 16-Jan-2018
952,Revenue,CAHD,South Glos Users in South Glos Homes,Permanent Nursing,Fshc  1St Floor,620.20, 16-Jan-2018
953,Revenue,CAHD,Bed Purchasing - Southmead Hospital,Fees & Charges Income - General,Fshc  1St Floor,1412.34, 16-Jan-2018
954,Revenue,CAHD,Bed Purchasing - North,Permanent Nursing,Fshc  1St Floor,2228.00, 16-Jan-2018
955,Revenue,CAHD,South Glos Users in South Glos Homes,Permanent Nursing,Fshc  1St Floor,620.20, 16-Jan-2018
956,Revenue,CAHD,Bed Purchasing - North,Permanent Nursing,Fshc  1St Floor,2228.00, 16-Jan-2018
957,Revenue,CAHD,South Glos Users in South Glos Homes,Permanent Nursing,Fshc  1St Floor,620.20, 16-Jan-2018
958,Revenue,CAHD,Bed Purchasing - Southmead Hospital,Permanent Nursing,Fshc  1St Floor,2228.00, 16-Jan-2018
959,Revenue,CAHD,South Glos Users in South Glos Homes,Permanent Nursing,Fshc  1St Floor,620.20, 16-Jan-2018
960,Revenue,CAHD,Bed Purchasing - North,Permanent Nursing,Fshc  1St Floor,2228.00, 16-Jan-2018
961,Revenue,CAHD,South Glos Users in South Glos Homes,Permanent Nursing,Fshc  1St Floor,620.20, 16-Jan-2018
962,Revenue,CAHD,Bed Purchasing - North,Permanent Nursing,Fshc  1St Floor,2228.00, 16-Jan-2018
963,Revenue,CAHD,South Glos Users in South Glos Homes,Permanent Nursing,Fshc  1St Floor,620.20, 16-Jan-2018
964,Revenue,CAHD,Bed Purchasing - North,Permanent Nursing,Fshc  1St Floor,2228.00, 16-Jan-2018
965,Revenue,CAHD,South Glos Users in South Glos Homes,Permanent Nursing,Fshc  1St Floor,620.20, 16-Jan-2018
966,Revenue,CAHD,South Glos Users in South Glos Homes,Permanent Nursing,Fshc  1St Floor,620.20, 16-Jan-2018
967,Revenue,CAHD,Bed Purchasing - Southmead Hospital,Permanent Nursing,Fshc  1St Floor,2228.00, 16-Jan-2018
968,Revenue,CAHD,South Glos Users in South Glos Homes,Permanent Nursing,Fshc  1St Floor,620.20, 16-Jan-2018
969,Revenue,CAHD,Bed Purchasing - North,Permanent Nursing,Fshc  1St Floor,2296.00, 16-Jan-2018
970,Revenue,CAHD,South Glos Users in South Glos Homes,Permanent Nursing,Fshc  1St Floor,620.20, 16-Jan-2018
971,Revenue,CAHD,Bed Purchasing - North,Permanent Nursing,Fshc  1St Floor,2228.00, 16-Jan-2018
972,Revenue,CAHD,South Glos Users in South Glos Homes,Permanent Nursing,Fshc  1St Floor,620.20, 16-Jan-2018
973,Revenue,CAHD,Bed Purchasing - North,Permanent Nursing,Fshc  1St Floor,2228.00, 16-Jan-2018
974,Revenue,CAHD,South Glos Users in South Glos Homes,Permanent Nursing,Fshc  1St Floor,620.20, 16-Jan-2018
975,Revenue,CAHD,Bed Purchasing - North,Permanent Nursing,Fshc  1St Floor,2296.00, 16-Jan-2018
976,Revenue,CAHD,South Glos Users in South Glos Homes,Permanent Nursing,Fshc  1St Floor,620.20, 16-Jan-2018
977,Revenue,CAHD,South Glos Users in South Glos Homes,Permanent Nursing,Fshc  1St Floor,620.20, 16-Jan-2018
978,Revenue,CAHD,Bed Purchasing - Southmead Hospital,Permanent Nursing,Fshc  1St Floor,2382.56, 16-Jan-2018
979,Revenue,CAHD,South Glos Users in South Glos Homes,Permanent Nursing,Fshc  1St Floor,620.20, 16-Jan-2018
980,Revenue,CAHD,South Glos Users in South Glos Homes,Permanent Nursing,Fshc  1St Floor,620.20, 16-Jan-2018
981,Revenue,CAHD,Bed Purchasing - North,Permanent Nursing,Fshc  1St Floor,2228.00, 16-Jan-2018
982,Revenue,CAHD,South Glos Users in South Glos Homes,Permanent Nursing,Fshc  1St Floor,620.20, 16-Jan-2018
983,Revenue,CAHD,Bed Purchasing - North,Permanent Nursing,Fshc  1St Floor,1904.24, 16-Jan-2018
984,Revenue,CAHD,South Glos Users in South Glos Homes,Permanent Nursing,Fshc  1St Floor,620.20, 16-Jan-2018
985,Revenue,CAHD,Bed Purchasing - Southmead Hospital,Permanent Nursing,Fshc  1St Floor,3100.00, 16-Jan-2018
986,Revenue,CAHD,South Glos Users in South Glos Homes,Permanent Nursing,Fshc  1St Floor,620.20, 16-Jan-2018
987,Revenue,CAHD,South Glos Users in South Glos Homes,Permanent Nursing,Fshc  1St Floor,620.20, 16-Jan-2018
988,Revenue,CAHD,South Glos Users in South Glos Homes,Permanent Nursing,Fshc  1St Floor,620.20, 16-Jan-2018
989,Revenue,CAHD,South Glos Users in South Glos Homes,Permanent Nursing,Fshc  1St Floor,620.20, 16-Jan-2018
990,Revenue,CAHD,Bed Purchasing - South,Permanent Nursing,Fshc  1St Floor,2507.16, 16-Jan-2018
991,Revenue,CAHD,South Glos Users in South Glos Homes,Permanent Nursing,Fshc  1St Floor,620.20, 16-Jan-2018
992,Revenue,CAHD,South Glos Users in South Glos Homes,Permanent Nursing,Fshc  1St Floor,620.20, 16-Jan-2018
993,Revenue,CAHD,Bed Purchasing - North,Permanent Nursing,Fshc  1St Floor,2228.00, 16-Jan-2018
994,Revenue,CAHD,South Glos Users in South Glos Homes,Permanent Nursing,Fshc  1St Floor,620.20, 16-Jan-2018
995,Revenue,CAHD,South Glos Users in South Glos Homes,Permanent Nursing,Fshc  1St Floor,620.20, 16-Jan-2018
996,Revenue,CAHD,South Glos Users in South Glos Homes,Permanent Nursing,Fshc  1St Floor,620.20, 16-Jan-2018
997,Revenue,CAHD,Bed Purchasing - Southmead Hospital,Permanent Residential,Fshc  1St Floor,2072.00, 16-Jan-2018
998,Revenue,CAHD,South Glos Users in South Glos Homes,Permanent Nursing,Fshc  1St Floor,620.20, 16-Jan-2018
999,Revenue,CAHD,Bed Purchasing - Southmead Hospital,Permanent Nursing,Fshc  1St Floor,2479.80, 16-Jan-2018
1000,Revenue,CAHD,South Glos Users in South Glos Homes,Permanent Nursing,Fshc  1St Floor,620.20, 16-Jan-2018
1001,Revenue,CAHD,South Glos Users in South Glos Homes,Permanent Nursing,Fshc  1St Floor,620.20, 16-Jan-2018
1002,Revenue,CAHD,South Glos Users in South Glos Homes,Permanent Nursing,Fshc  1St Floor,620.20, 16-Jan-2018
1003,Revenue,CAHD,Bed Purchasing - North,Respite Planned - Nursing,Fshc  1St Floor,1328.46, 16-Jan-2018
1004,Revenue,CAHD,South Glos Users in South Glos Homes,Permanent Nursing,Fshc  1St Floor,620.20, 16-Jan-2018
1005,Revenue,CAHD,South Glos Users in South Glos Homes,Permanent Nursing,Fshc  1St Floor,620.20, 16-Jan-2018
1006,Revenue,CAHD,Bed Purchasing - Southmead Hospital,Permanent Nursing,Fshc  1St Floor,2405.88, 16-Jan-2018
1007,Revenue,CAHD,South Glos Users in South Glos Homes,Permanent Nursing,Fshc  1St Floor,620.20, 16-Jan-2018
1008,Revenue,CAHD,Bed Purchasing - Southmead Hospital,Respite Planned - Nursing,Fshc  1St Floor,3625.00, 16-Jan-2018
1009,Revenue,CAHD,South Glos Users in South Glos Homes,Permanent Nursing,Fshc  1St Floor,620.20, 16-Jan-2018
1010,Revenue,CAHD,South Glos Users in South Glos Homes,Permanent Nursing,Fshc  1St Floor,620.20, 16-Jan-2018
1011,Revenue,CAHD,Bed Purchasing - North,Permanent Nursing,Fshc  1St Floor,2549.24, 16-Jan-2018
1012,Revenue,CAHD,South Glos Users in South Glos Homes,Permanent Nursing,Fshc  1St Floor,620.20, 16-Jan-2018
1013,Revenue,CAHD,Bed Purchasing - Southmead Hospital,Permanent Nursing,Fshc  1St Floor,2507.16, 16-Jan-2018
1014,Revenue,CAHD,South Glos Users in South Glos Homes,Permanent Nursing,Fshc  1St Floor,620.20, 16-Jan-2018
1015,Revenue,CAHD,Bed Purchasing - North,Permanent Nursing,Fshc  1St Floor,2296.00, 16-Jan-2018
1016,Revenue,CAHD,South Glos Users in South Glos Homes,Permanent Nursing,Fshc  1St Floor,620.20, 16-Jan-2018
1017,Revenue,CAHD,South Glos Users in South Glos Homes,Permanent Nursing,Fshc  1St Floor,620.20, 16-Jan-2018
1018,Revenue,CAHD,Bed Purchasing - Southmead Hospital,Permanent Nursing,Fshc  1St Floor,2228.00, 16-Jan-2018
1019,Revenue,CAHD,South Glos Users in South Glos Homes,Permanent Nursing,Fshc  1St Floor,620.20, 16-Jan-2018
1020,Revenue,CAHD,Bed Purchasing - Southmead Hospital,Permanent Nursing,Fshc  1St Floor,3100.00, 16-Jan-2018
1021,Revenue,CAHD,South Glos Users in South Glos Homes,Permanent Nursing,Fshc  1St Floor,620.20, 16-Jan-2018
1022,Revenue,CAHD,South Glos Users in South Glos Homes,Permanent Nursing,Fshc  1St Floor,620.20, 16-Jan-2018
1023,Revenue,CAHD,Bed Purchasing - North,Permanent Nursing,Fshc  1St Floor,2410.72, 16-Jan-2018
1024,Revenue,CAHD,South Glos Users in South Glos Homes,Permanent Nursing,Fshc  1St Floor,620.20, 16-Jan-2018
1025,Revenue,CAHD,Bed Purchasing - North,Permanent Nursing,Fshc  1St Floor,2228.00, 16-Jan-2018
1026,Revenue,CAHD,South Glos Users in South Glos Homes,Permanent Nursing,Fshc  1St Floor,620.20, 16-Jan-2018
1027,Revenue,CAHD,Bed Purchasing - South,Permanent Nursing,Fshc  1St Floor,2507.16, 16-Jan-2018
1028,Revenue,CAHD,South Glos Users in South Glos Homes,Permanent Nursing,Fshc  1St Floor,620.20, 16-Jan-2018
1029,Revenue,CAHD,Bed Purchasing - Southmead Hospital,Permanent Nursing,Fshc  1St Floor,2296.00, 16-Jan-2018
1030,Revenue,CAHD,South Glos Users in South Glos Homes,Permanent Nursing,Fshc  1St Floor,620.20, 16-Jan-2018
1031,Revenue,CAHD,Bed Purchasing - South,Permanent Nursing,Fshc  1St Floor,2431.20, 16-Jan-2018
1032,Revenue,CAHD,South Glos Users in South Glos Homes,Permanent Nursing,Fshc  1St Floor,620.20, 16-Jan-2018
1033,Revenue,CAHD,South Glos Users in South Glos Homes,Permanent Nursing,Fshc  1St Floor,620.20, 16-Jan-2018
1034,Revenue,CAHD,Bed Purchasing - South,Permanent Nursing,Fshc  1St Floor,2500.00, 16-Jan-2018
1035,Revenue,CAHD,South Glos Users in South Glos Homes,Permanent Nursing,Fshc  1St Floor,620.20, 16-Jan-2018
1036,Revenue,CAHD,Bed Purchasing - Southmead Hospital,Permanent Nursing,Fshc  1St Floor,2228.00, 16-Jan-2018
1037,Revenue,CAHD,South Glos Users in South Glos Homes,Permanent Nursing,Fshc  1St Floor,620.20, 16-Jan-2018
1038,Revenue,CAHD,South Glos Users in South Glos Homes,Permanent Nursing,Fshc  1St Floor,620.20, 16-Jan-2018
1039,Revenue,CAHD,South Glos Users in South Glos Homes,Permanent Nursing,Fshc  1St Floor,620.20, 16-Jan-2018
1040,Revenue,CAHD,Bed Purchasing - South,Permanent Nursing,Fshc  1St Floor,2300.00, 16-Jan-2018
1041,Revenue,CAHD,Bed Purchasing - South,Fees & Charges Income - General,Fshc  1St Floor,1290.97, 16-Jan-2018
1042,Revenue,CAHD,Bed Purchasing - Southmead Hospital,Permanent Residential,Fshc  1St Floor,2072.00, 16-Jan-2018
1043,Revenue,CAHD,South Glos Users in South Glos Homes,Permanent Nursing,Fshc  1St Floor,620.20, 16-Jan-2018
1044,Revenue,CAHD,Bed Purchasing - South,Permanent Nursing,Fshc  1St Floor,2228.00, 16-Jan-2018
1045,Revenue,CAHD,Bed Purchasing - South,Permanent Nursing,Fshc  1St Floor,913.92, 16-Jan-2018
1046,Revenue,CAHD,South Glos Users in South Glos Homes,Permanent Nursing,Fshc  1St Floor,620.20, 16-Jan-2018
1047,Revenue,CAHD,South Glos Users in South Glos Homes,Permanent Nursing,Fshc  1St Floor,620.20, 16-Jan-2018
1048,Revenue,CAHD,South Glos Users in South Glos Homes,Permanent Nursing,Fshc  1St Floor,886.00, 16-Jan-2018
1049,Revenue,CAHD,South Glos Users in South Glos Homes,Permanent Nursing,Fshc  1St Floor,620.20, 16-Jan-2018
1050,Revenue,CAHD,South Glos Users in South Glos Homes,Permanent Nursing,Fshc  1St Floor,620.20, 16-Jan-2018
1051,Revenue,CAHD,Bed Purchasing - Southmead Hospital,Permanent Residential,Fshc  1St Floor,2300.00, 16-Jan-2018
1052,Revenue,CAHD,South Glos Users in South Glos Homes,Permanent Nursing,Fshc  1St Floor,620.20, 16-Jan-2018
1053,Revenue,CAHD,Bed Purchasing - Southmead Hospital,Permanent Nursing,Fshc  1St Floor,2258.92, 16-Jan-2018
1054,Revenue,CAHD,South Glos Users in South Glos Homes,Permanent Nursing,Fshc  1St Floor,620.20, 16-Jan-2018
1055,Revenue,CAHD,South Glos Users in South Glos Homes,Permanent Nursing,Fshc  1St Floor,620.20, 16-Jan-2018
1056,Revenue,CAHD,South Glos Users in South Glos Homes,Permanent Nursing,Fshc  1St Floor,620.20, 16-Jan-2018
1057,Revenue,CAHD,Bed Purchasing - Southmead Hospital,Permanent Residential,Fshc  1St Floor,2300.00, 16-Jan-2018
1058,Revenue,CAHD,Bed Purchasing - South,Permanent Residential,Fshc  1St Floor,2140.00, 16-Jan-2018
1059,Revenue,CAHD,Bed Purchasing - Southmead Hospital,Permanent Nursing,Fshc  1St Floor,2296.00, 16-Jan-2018
1060,Revenue,CAHD,South Glos Users in South Glos Homes,Permanent Nursing,Fshc  1St Floor,620.20, 16-Jan-2018
1061,Revenue,CAHD,Bed Purchasing - South,Fees & Charges Income - General,Fshc  1St Floor,916.91, 16-Jan-2018
1062,Revenue,CAHD,Bed Purchasing - Southmead Hospital,Permanent Nursing,Fshc  1St Floor,2228.00, 16-Jan-2018
1063,Revenue,CAHD,South Glos Users in South Glos Homes,Permanent Nursing,Fshc  1St Floor,620.20, 16-Jan-2018
1064,Revenue,CAHD,Bed Purchasing - South,Permanent Nursing,Fshc  1St Floor,2633.80, 16-Jan-2018
1065,Revenue,CAHD,South Glos Users in South Glos Homes,Permanent Nursing,Fshc  1St Floor,620.20, 16-Jan-2018
1066,Revenue,CAHD,Bed Purchasing - South,Permanent Nursing,Fshc  1St Floor,2228.00, 16-Jan-2018
1067,Revenue,CAHD,South Glos Users in South Glos Homes,Permanent Nursing,Fshc  1St Floor,620.20, 16-Jan-2018
1068,Revenue,CAHD,Bed Purchasing - South,Permanent Nursing,Fshc  1St Floor,2228.00, 16-Jan-2018
1069,Revenue,CAHD,South Glos Users in South Glos Homes,Permanent Nursing,Fshc  1St Floor,620.20, 16-Jan-2018
1070,Revenue,CAHD,Bed Purchasing - South,Permanent Nursing,Fshc  1St Floor,2354.28, 16-Jan-2018
1071,Revenue,CAHD,South Glos Users in South Glos Homes,Permanent Nursing,Fshc  1St Floor,620.20, 16-Jan-2018
1072,Revenue,CAHD,Bed Purchasing - Southmead Hospital,Permanent Residential,Fshc  1St Floor,2300.00, 16-Jan-2018
1073,Revenue,CAHD,Bed Purchasing - South,Permanent Nursing,Fshc  1St Floor,2228.00, 16-Jan-2018
1074,Revenue,CAHD,South Glos Users in South Glos Homes,Permanent Nursing,Fshc  1St Floor,620.20, 16-Jan-2018
1075,Revenue,CAHD,Bed Purchasing - South,Permanent Residential,Fshc  1St Floor,2182.36, 16-Jan-2018
1076,Revenue,CAHD,Bed Purchasing - South,Permanent Nursing,Fshc  1St Floor,2192.12, 16-Jan-2018
1077,Revenue,CAHD,Bed Purchasing - Southmead Hospital,Permanent Nursing,Fshc  1St Floor,2874.96, 16-Jan-2018
1078,Revenue,CAHD,Bed purchasing - Elderly S117 - South,Permanent Nursing,Fshc  1St Floor,2192.12, 16-Jan-2018
1079,Revenue,CAHD,Bed Purchasing - South,Permanent Nursing,Fshc  1St Floor,3444.20, 16-Jan-2018
1080,Revenue,CAHD,Bed Purchasing - South,Permanent Nursing,Fshc  1St Floor,3849.40, 16-Jan-2018
1081,Revenue,CAHD,Bed Purchasing - Southmead Hospital,Permanent Nursing,Fshc  1St Floor,2192.12, 16-Jan-2018
1082,Revenue,CAHD,Bed Purchasing - Southmead Hospital,Respite Planned - Residential,Fshc  1St Floor,1285.71, 16-Jan-2018
1083,Revenue,CAHD,Bed Purchasing - Southmead Hospital,Permanent Nursing,Fshc  1St Floor,2192.12, 16-Jan-2018
1084,Revenue,CAHD,Bed Purchasing - Southmead Hospital,Permanent Nursing,Fshc  1St Floor,2192.12, 16-Jan-2018
1085,Revenue,CAHD,Bed Purchasing - South,Permanent Nursing,Fshc  1St Floor,2192.12, 16-Jan-2018
1086,Revenue,CAHD,Bed Purchasing - South,Permanent Residential,Fshc  1St Floor,3588.12, 16-Jan-2018
1087,Revenue,CAHD,Bed Purchasing - North,Respite Planned - Residential,Fshc  1St Floor,2214.64, 16-Jan-2018
1088,Revenue,CAHD,Bed Purchasing - Southmead Hospital,Permanent Residential,Fshc  1St Floor,2014.64, 16-Jan-2018
1089,Revenue,CAHD,Bed Purchasing - North,Permanent Nursing,Fshc  1St Floor,2194.20, 16-Jan-2018
1090,Revenue,CAHD,Bed Purchasing - North,Permanent Nursing,Fshc  1St Floor,2066.00, 16-Jan-2018
1091,Revenue,CAHD,South Glos Users in South Glos Homes,Permanent Nursing,Fshc  1St Floor,620.20, 16-Jan-2018
1092,Revenue,CAHD,Bed Purchasing - Southmead Hospital,Permanent Nursing,Fshc  1St Floor,4000.00, 16-Jan-2018
1093,Revenue,CAHD,Bed Purchasing - North,Permanent Nursing,Fshc  1St Floor,2222.72, 16-Jan-2018
1094,Revenue,CAHD,Bed Purchasing - North,Permanent Nursing,Fshc  1St Floor,2266.00, 16-Jan-2018
1095,Revenue,CAHD,Bed Purchasing - North,Respite Planned - Nursing,Fshc  1St Floor,646.86, 16-Jan-2018
1096,Revenue,CAHD,Bed Purchasing - North,Respite Planned - Nursing,Fshc  1St Floor,566.00, 16-Jan-2018
1097,Revenue,CAHD,Bed Purchasing - South,Permanent Residential,Fshc  1St Floor,2228.60, 16-Jan-2018
1098,Revenue,CAHD,Bed Purchasing - North,Permanent Residential,Fshc  1St Floor,1855.12, 16-Jan-2018
1099,Revenue,CAHD,Bed Purchasing - South,Permanent Residential,Gladstone House,5749.96, 16-Jan-2018
1100,Revenue,CAHD,Bed Purchasing - North,Permanent Residential,Glan Y Felin,6520.08, 16-Jan-2018
1101,Revenue,CAHD,Bed Purchasing - South,Permanent Residential,Glasallt Fawr,5121.84, 16-Jan-2018
1102,Revenue,CAHD,Bed Purchasing - North,Permanent Nursing,Glebe House Nursing Home,3511.56, 16-Jan-2018
1103,Revenue,CAHD,South Glos Users in South Glos Homes,Permanent Nursing,Glebe House Nursing Home,620.20, 16-Jan-2018
1104,Revenue,CAHD,South Glos Users in South Glos Homes,Permanent Nursing,Glebe House Nursing Home,620.20, 16-Jan-2018
1105,Revenue,CAHD,South Glos Users in South Glos Homes,Permanent Nursing,Glebe House Nursing Home,2170.70, 16-Jan-2018
1106,Revenue,CAHD,South Glos Users in South Glos Homes,Permanent Nursing,Glebe House Nursing Home,620.20, 16-Jan-2018
1107,Revenue,CAHD,South Glos Users in South Glos Homes,Permanent Nursing,Glebe House Nursing Home,620.20, 16-Jan-2018
1108,Revenue,CAHD,South Glos Users in South Glos Homes,Permanent Nursing,Glebe House Nursing Home,620.20, 16-Jan-2018
1109,Revenue,CAHD,South Glos Users in South Glos Homes,Permanent Nursing,Glebe House Nursing Home,620.20, 16-Jan-2018
1110,Revenue,CAHD,South Glos Users in South Glos Homes,Permanent Nursing,Glebe House Nursing Home,620.20, 16-Jan-2018
1111,Revenue,CAHD,South Glos Users in South Glos Homes,Permanent Nursing,Glebe House Nursing Home,620.20, 16-Jan-2018
1112,Revenue,CAHD,Bed Purchasing - North,Permanent Nursing,Glebe House Nursing Home,3043.36, 16-Jan-2018
1113,Revenue,CAHD,South Glos Users in South Glos Homes,Permanent Nursing,Glebe House Nursing Home,620.20, 16-Jan-2018
1114,Revenue,CAHD,South Glos Users in South Glos Homes,Permanent Nursing,Glebe House Nursing Home,620.20, 16-Jan-2018
1115,Revenue,CAHD,South Glos Users in South Glos Homes,Permanent Nursing,Glebe House Nursing Home,620.20, 16-Jan-2018
1116,Revenue,CAHD,South Glos Users in South Glos Homes,Permanent Nursing,Glebe House Nursing Home,620.20, 16-Jan-2018
1117,Revenue,CAHD,South Glos Users in South Glos Homes,Permanent Nursing,Glebe House Nursing Home,620.20, 16-Jan-2018
1118,Revenue,CAHD,South Glos Users in South Glos Homes,Permanent Nursing,Glebe House Nursing Home,620.20, 16-Jan-2018
1119,Revenue,CAHD,South Glos Users in South Glos Homes,Permanent Nursing,Glebe House Nursing Home,620.20, 16-Jan-2018
1120,Revenue,CAHD,South Glos Users in South Glos Homes,Permanent Nursing,Glebe House Nursing Home,620.20, 16-Jan-2018
1121,Revenue,CAHD,Bed Purchasing - South,Permanent Residential,Goldcare House,4539.28, 16-Jan-2018
1122,Revenue,CAHD,Bed Purchasing - Southmead Hospital,Permanent Residential,Gordena Care Home,3852.48, 16-Jan-2018
1123,Revenue,CAHD,Bed Purchasing - South,Permanent Residential,Gordena Care Home,2586.80, 16-Jan-2018
1124,Revenue,CAHD,Bed Purchasing - South,Permanent Residential,Gordena Care Home,3682.84, 16-Jan-2018
1125,Revenue,CAHD,Bed Purchasing - South,Fees & Charges Income - General,Gordena Care Home,1632.61, 16-Jan-2018
1126,Revenue,CAHD,Bed Purchasing - South,Permanent Residential,Gordena Care Home,3694.04, 16-Jan-2018
1127,Revenue,CAHD,Bed Purchasing - South,Permanent Residential,Gordena Care Limited,4826.88, 16-Jan-2018
1128,Revenue,CAHD,Bed Purchasing - South,Permanent Residential,Gordena Care Limited,7380.04, 16-Jan-2018
1129,Revenue,CAHD,Jointly Funded H&SC Packages,Permanent Residential,Gordena Care Limited,2900.80, 16-Jan-2018
1130,Revenue,CAHD,Bed purchasing - S28A Under 65 - South,Permanent Residential,Gordena Care Limited,4694.40, 16-Jan-2018
1131,Revenue,CAHD,Bed Purchasing - North,Permanent Residential,Gordena Care Limited,4892.64, 16-Jan-2018
1132,Revenue,CAHD,Bed Purchasing - South,Permanent Nursing,Gracefields Nursing Home,2486.52, 16-Jan-2018
1133,Revenue,CAHD,South Glos Users in South Glos Homes,Permanent Nursing,Gracefields Nursing Home,620.20, 16-Jan-2018
1134,Revenue,CAHD,South Glos Users in South Glos Homes,Permanent Nursing,Gracefields Nursing Home,620.20, 16-Jan-2018
1135,Revenue,CAHD,Bed Purchasing - North,Permanent Nursing,Gracefields Nursing Home,3500.00, 16-Jan-2018
1136,Revenue,CAHD,South Glos Users in South Glos Homes,Permanent Nursing,Gracefields Nursing Home,620.20, 16-Jan-2018
1137,Revenue,CAHD,South Glos Users in South Glos Homes,Permanent Nursing,Gracefields Nursing Home,620.20, 16-Jan-2018
1138,Revenue,CAHD,Bed Purchasing - Southmead Hospital,Permanent Nursing,Gracefields Nursing Home,3500.00, 16-Jan-2018
1139,Revenue,CAHD,South Glos Users in South Glos Homes,Permanent Nursing,Gracefields Nursing Home,620.20, 16-Jan-2018
1140,Revenue,CAHD,South Glos Users in South Glos Homes,Permanent Nursing,Gracefields Nursing Home,620.20, 16-Jan-2018
1141,Revenue,CAHD,South Glos Users in South Glos Homes,Permanent Nursing,Gracefields Nursing Home,620.20, 16-Jan-2018
1142,Revenue,CAHD,Bed purchasing - Elderly S117 - South,Permanent Nursing,Gracefields Nursing Home,2445.68, 16-Jan-2018
1143,Revenue,CAHD,South Glos Users in South Glos Homes,Permanent Nursing,Gracefields Nursing Home,620.20, 16-Jan-2018
1144,Revenue,CAHD,Bed Purchasing - North,Permanent Nursing,Gracefields Nursing Home,3600.00, 16-Jan-2018
1145,Revenue,CAHD,Bed Purchasing - North,Permanent Nursing,Gracefields Nursing Home,2314.29, 16-Jan-2018
1146,Revenue,CAHD,Bed Purchasing - South,Permanent Nursing,Gracefields Nursing Home,3094.72, 16-Jan-2018
1147,Revenue,CAHD,South Glos Users in South Glos Homes,Permanent Nursing,Gracefields Nursing Home,620.20, 16-Jan-2018
1148,Revenue,CAHD,Bed Purchasing - South,Permanent Nursing,Gracefields Nursing Home,3952.20, 16-Jan-2018
1149,Revenue,CAHD,South Glos Users in South Glos Homes,Permanent Nursing,Gracefields Nursing Home,620.20, 16-Jan-2018
1150,Revenue,CAHD,South Glos Users in South Glos Homes,Permanent Nursing,Gracefields Nursing Home,620.20, 16-Jan-2018
1151,Revenue,CAHD,South Glos Users in South Glos Homes,Permanent Nursing,Gracefields Nursing Home,620.20, 16-Jan-2018
1152,Revenue,CAHD,Bed Purchasing - South,Permanent Nursing,Gracefields Nursing Home,3400.00, 16-Jan-2018
1153,Revenue,CAHD,Bed Purchasing - South,Permanent Nursing,Gracefields Nursing Home,3278.57, 16-Jan-2018
1154,Revenue,CAHD,South Glos Users in South Glos Homes,Permanent Nursing,Gracefields Nursing Home,620.20, 16-Jan-2018
1155,Revenue,CAHD,South Glos Users in South Glos Homes,Permanent Nursing,Gracefields Nursing Home,620.20, 16-Jan-2018
1156,Revenue,CAHD,Bed Purchasing - Southmead Hospital,Permanent Nursing,Gracefields Nursing Home,3500.00, 16-Jan-2018
1157,Revenue,CAHD,South Glos Users in South Glos Homes,Permanent Nursing,Gracefields Nursing Home,620.20, 16-Jan-2018
1158,Revenue,CAHD,South Glos Users in South Glos Homes,Permanent Nursing,Gracefields Nursing Home,620.20, 16-Jan-2018
1159,Revenue,CAHD,South Glos Users in South Glos Homes,Permanent Nursing,Gracefields Nursing Home,620.20, 16-Jan-2018
1160,Revenue,CAHD,South Glos Users in South Glos Homes,Permanent Nursing,Gracefields Nursing Home,620.20, 16-Jan-2018
1161,Revenue,CAHD,Bed Purchasing - Southmead Hospital,Respite Planned - Nursing,Gracefields Nursing Home,3500.00, 16-Jan-2018
1162,Revenue,CAHD,Bed Purchasing - Southmead Hospital,Respite Planned - Nursing,Gracefields Nursing Home,1250.00, 16-Jan-2018
1163,Revenue,CAHD,South Glos Users in South Glos Homes,Permanent Nursing,Gracefields Nursing Home,620.20, 16-Jan-2018
1164,Revenue,CAHD,South Glos Users in South Glos Homes,Permanent Nursing,Gracefields Nursing Home,620.20, 16-Jan-2018
1165,Revenue,CAHD,South Glos Users in South Glos Homes,Permanent Nursing,Gracefields Nursing Home,620.20, 16-Jan-2018
1166,Revenue,CAHD,Bed Purchasing - South,Permanent Nursing,Gracefields Nursing Home,3071.40, 16-Jan-2018
1167,Revenue,CAHD,South Glos Users in South Glos Homes,Permanent Nursing,Gracefields Nursing Home,620.20, 16-Jan-2018
1168,Revenue,CAHD,South Glos Users in South Glos Homes,Permanent Nursing,Gracefields Nursing Home,620.20, 16-Jan-2018
1169,Revenue,CAHD,South Glos Users in South Glos Homes,Permanent Nursing,Gracefields Nursing Home,620.20, 16-Jan-2018
1170,Revenue,CAHD,Bed Purchasing - Southmead Hospital,Permanent Nursing,Gracefields Nursing Home,3157.14, 16-Jan-2018
1171,Revenue,CAHD,Bed Purchasing - Southmead Hospital,Fees & Charges Income - General,Gracefields Nursing Home,1133.22, 16-Jan-2018
1172,Revenue,CAHD,Bed Purchasing - Southmead Hospital,Permanent Nursing,Gracefields Nursing Home,3094.72, 16-Jan-2018
1173,Revenue,CAHD,South Glos Users in South Glos Homes,Permanent Nursing,Gracefields Nursing Home,620.20, 16-Jan-2018
1174,Revenue,CAHD,South Glos Users in South Glos Homes,Permanent Nursing,Gracefields Nursing Home,620.20, 16-Jan-2018
1175,Revenue,CAHD,Bed Purchasing - South,Permanent Nursing,Gracefields Nursing Home,2970.12, 16-Jan-2018
1176,Revenue,CAHD,South Glos Users in South Glos Homes,Permanent Nursing,Gracefields Nursing Home,620.20, 16-Jan-2018
1177,Revenue,CAHD,South Glos Users in South Glos Homes,Permanent Nursing,Gracefields Nursing Home,620.20, 16-Jan-2018
1178,Revenue,CAHD,South Glos Users in South Glos Homes,Permanent Nursing,Gracefields Nursing Home,620.20, 16-Jan-2018
1179,Revenue,CAHD,South Glos Users in South Glos Homes,Permanent Nursing,Gracefields Nursing Home,620.20, 16-Jan-2018
1180,Revenue,CAHD,South Glos Users in South Glos Homes,Permanent Nursing,Gracefields Nursing Home,620.20, 16-Jan-2018
1181,Revenue,CAHD,Bed Purchasing - South,Permanent Nursing,Gracefields Nursing Home,2445.68, 16-Jan-2018
1182,Revenue,CAHD,South Glos Users in South Glos Homes,Permanent Nursing,Gracefields Nursing Home,620.20, 16-Jan-2018
1183,Revenue,CAHD,Bed Purchasing - South,Permanent Nursing,Gracefields Nursing Home,3400.00, 16-Jan-2018
1184,Revenue,CAHD,South Glos Users in South Glos Homes,Permanent Nursing,Gracefields Nursing Home,620.20, 16-Jan-2018
1185,Revenue,CAHD,South Glos Users in South Glos Homes,Permanent Nursing,Gracefields Nursing Home,620.20, 16-Jan-2018
1186,Revenue,CAHD,South Glos Users in South Glos Homes,Permanent Nursing,Gracefields Nursing Home,620.20, 16-Jan-2018
1187,Revenue,CAHD,South Glos Users in South Glos Homes,Permanent Nursing,Gracefields Nursing Home,620.20, 16-Jan-2018
1188,Revenue,CAHD,South Glos Users in South Glos Homes,Permanent Nursing,Gracefields Nursing Home,620.20, 16-Jan-2018
1189,Revenue,CAHD,Bed Purchasing - Southmead Hospital,Permanent Nursing,Gracefields Nursing Home,3274.00, 16-Jan-2018
1190,Revenue,CAHD,South Glos Users in South Glos Homes,Permanent Nursing,Gracefields Nursing Home,620.20, 16-Jan-2018
1191,Revenue,CAHD,Bed Purchasing - North,Permanent Residential,Greensleeves,2036.72, 16-Jan-2018
1192,Revenue,CAHD,Bed Purchasing - South,Permanent Residential,Gwendoline House,2370.40, 16-Jan-2018
1193,Revenue,CAHD,Bed Purchasing - South,Permanent Residential,Gwendoline House,2380.00, 16-Jan-2018
1194,Revenue,CAHD,Bed Purchasing - South,Respite Planned - Residential,Gwendoline House,2720.00, 16-Jan-2018
1195,Revenue,CAHD,Bed Purchasing - Southmead Hospital,Permanent Residential,Gwendoline House,2068.24, 16-Jan-2018
1196,Revenue,CAHD,Home Care - Elderly - North,Other Small Contracts,H F T,1085.00, 18-Jan-2018
1197,Revenue,CAHD,Social Lettings Agency,Fees - General,Individual ,13.13, 26-Jan-2018
1198,Revenue,CAHD,Social Lettings Agency,Other Supplies & Services,Individual ,577.72, 26-Jan-2018
1199,Revenue,CAHD,Section 117 Placements MH Younger,Permanent Residential,Harefield Hall,3147.54, 16-Jan-2018
1200,Revenue,CAHD,Section 117 Placements MH Younger,Permanent Residential,Harefield Hall,3039.00, 16-Jan-2018
1201,Revenue,CAHD,Bed Purchasing - South,Permanent Residential,Harefield Hall,2669.60, 16-Jan-2018
1202,Revenue,CAHD,Bed Purchasing - South,Permanent Residential,Harefield Hall,2252.96, 16-Jan-2018
1203,Revenue,CAHD,Bed Purchasing - South,Permanent Residential,Harefield Hall,2443.48, 16-Jan-2018
1204,Revenue,CAHD,Bed Purchasing - South,Permanent Residential,Harefield Hall,2594.64, 16-Jan-2018
1205,Revenue,CAHD,Home Care Monitoring (CM2000),Other Supplies & Services,HAS Technology Limited T/A CM2000,10451.70, 04-Jan-2018
1206,Revenue,CAHD,Home Care Monitoring (CM2000),Other Supplies & Services,HAS Technology Limited T/A CM2000,9771.91, 05-Jan-2018
1207,Revenue,CAHD,Bed Purchasing - Southmead Hospital,Permanent Nursing,Hazelwood Gardens Nursing Home,2608.48, 16-Jan-2018
1208,Revenue,CAHD,Bed Purchasing - Southmead Hospital,Permanent Nursing,Hazelwood Gardens Nursing Home,2245.88, 16-Jan-2018
1209,Revenue,CAHD,Bed Purchasing - Southmead Hospital,Permanent Residential,Hc-One Ltd,2140.32, 16-Jan-2018
1210,Revenue,CAHD,Bed Purchasing - Southmead Hospital,Permanent Nursing,Hc-One Ltd,2135.24, 16-Jan-2018
1211,Revenue,CAHD,Bed Purchasing - Southmead Hospital,Permanent Nursing,Hc-One Ltd,2763.76, 16-Jan-2018
1212,Revenue,CAHD,Bed Purchasing - North,Permanent Nursing,Hc-One Ltd,2130.64, 16-Jan-2018
1213,Revenue,CAHD,Bed Purchasing - North,Permanent Nursing,Hc-One Ltd,2116.36, 16-Jan-2018
1214,Revenue,CAHD,Bed Purchasing - Southmead Hospital,Permanent Residential,Hc-One Ltd,2224.52, 16-Jan-2018
1215,Revenue,CAHD,South Glos Users in South Glos Homes,Permanent Nursing,Hc-One Ltd,620.20, 16-Jan-2018
1216,Revenue,CAHD,Bed Purchasing - North,Permanent Nursing,Hc-One Ltd,2130.60, 16-Jan-2018
1217,Revenue,CAHD,Bed Purchasing - Southmead Hospital,Permanent Nursing,Hc-One Ltd,2804.48, 16-Jan-2018
1218,Revenue,CAHD,Bed Purchasing - Southmead Hospital,Permanent Nursing,Hc-One Ltd,2804.48, 16-Jan-2018
1219,Revenue,CAHD,Bed Purchasing - Southmead Hospital,Permanent Nursing,Hc-One Ltd,2560.80, 16-Jan-2018
1220,Revenue,CAHD,Bed Purchasing - Southmead Hospital,Permanent Nursing,Head Office,2367.88, 16-Jan-2018
1221,Revenue,CAHD,Home Care - Elderly - North,Day Care / Social Activities,Head Office,552.96, 16-Jan-2018
1222,Revenue,CAHD,Bed Purchasing - South,Permanent Nursing,Head Office,3841.88, 16-Jan-2018
1223,Revenue,CAHD,Home Care - Elderly - South,Day Care / Social Activities,Headway Bristol,540.00, 08-Jan-2018
1224,Revenue,CAHD,Home Care - Elderly - South,Other Small Contracts,Headway Bristol,129.60, 08-Jan-2018
1225,Revenue,CAHD,Home Care - Elderly - North,Day Care / Social Activities,Headway Bristol,1080.00, 08-Jan-2018
1226,Revenue,CAHD,Home Care - Elderly - North,Other Small Contracts,Headway Bristol,194.40, 08-Jan-2018
1227,Revenue,CAHD,Younger MH non-res purchasing,Day Care / Social Activities,Headway Bristol,86.40, 08-Jan-2018
1228,Revenue,CAHD,Home Care - Elderly - South,Day Care / Social Activities,Headway Bristol,475.20, 16-Jan-2018
1229,Revenue,CAHD,Home Care - Elderly - North,Day Care / Social Activities,Headway Bristol,934.20, 16-Jan-2018
1230,Revenue,CAHD,Home Care - Elderly - North,Other Small Contracts,Headway Bristol,129.60, 16-Jan-2018
1231,Revenue,CAHD,Younger MH non-res purchasing,Day Care / Social Activities,Headway Bristol,81.00, 16-Jan-2018
1232,Revenue,CAHD,Home Care - Elderly - South,Day Care / Social Activities,Headway Bristol,540.00, 30-Jan-2018
1233,Revenue,CAHD,Home Care - Elderly - South,Other Small Contracts,Headway Bristol,43.20, 30-Jan-2018
1234,Revenue,CAHD,Home Care - Elderly - North,Day Care / Social Activities,Headway Bristol,1112.40, 30-Jan-2018
1235,Revenue,CAHD,Home Care - Elderly - North,Other Small Contracts,Headway Bristol,129.60, 30-Jan-2018
1236,Revenue,CAHD,Younger MH non-res purchasing,Day Care / Social Activities,Headway Bristol,86.40, 30-Jan-2018
1237,Revenue,CAHD,Home Care - Elderly - South,Other Small Contracts,Helping Hands Homecare,855.68, 05-Jan-2018
1238,Revenue,CAHD,Home Care - Elderly - North,Day Care / Social Activities,Helping Hands Homecare,219.52, 05-Jan-2018
1239,Revenue,CAHD,Home Care - Elderly - North,Other Small Contracts,Helping Hands Homecare,5445.16, 05-Jan-2018
1240,Revenue,CAHD,Younger MH non-res purchasing,Other Small Contracts,Helping Hands Homecare,66.84, 05-Jan-2018
1241,Revenue,CAHD,Home Care - Elderly - South,Other Small Contracts,Helping Hands Homecare,913.92, 05-Jan-2018
1242,Revenue,CAHD,Home Care - Elderly - North,Day Care / Social Activities,Helping Hands Homecare,228.48, 05-Jan-2018
1243,Revenue,CAHD,Home Care - Elderly - North,Other Small Contracts,Helping Hands Homecare,5217.24, 05-Jan-2018
1244,Revenue,CAHD,Younger MH non-res purchasing,Other Small Contracts,Helping Hands Homecare,66.84, 05-Jan-2018
1245,Revenue,CAHD,Home Care - Elderly - South,Other Small Contracts,Helping Hands Homecare,985.60, 08-Jan-2018
1246,Revenue,CAHD,Home Care - Elderly - North,Day Care / Social Activities,Helping Hands Homecare,228.48, 08-Jan-2018
1247,Revenue,CAHD,Home Care - Elderly - North,Other Small Contracts,Helping Hands Homecare,5474.65, 08-Jan-2018
1248,Revenue,CAHD,Younger MH non-res purchasing,Other Small Contracts,Helping Hands Homecare,66.84, 08-Jan-2018
1249,Revenue,CAHD,Home Care - Elderly - South,Other Small Contracts,Helping Hands Homecare,931.84, 19-Jan-2018
1250,Revenue,CAHD,Home Care - Elderly - North,Day Care / Social Activities,Helping Hands Homecare,215.04, 19-Jan-2018
1251,Revenue,CAHD,Home Care - Elderly - North,Other Small Contracts,Helping Hands Homecare,5402.27, 19-Jan-2018
1252,Revenue,CAHD,Younger MH non-res purchasing,Other Small Contracts,Helping Hands Homecare,66.84, 19-Jan-2018
1253,Revenue,CAHD,Home Care - Elderly - South,Other Small Contracts,Helping Hands Homecare,931.84, 19-Jan-2018
1254,Revenue,CAHD,Home Care - Elderly - North,Day Care / Social Activities,Helping Hands Homecare,232.96, 19-Jan-2018
1255,Revenue,CAHD,Home Care - Elderly - North,Other Small Contracts,Helping Hands Homecare,5397.11, 19-Jan-2018
1256,Revenue,CAHD,Younger MH non-res purchasing,Other Small Contracts,Helping Hands Homecare,66.84, 19-Jan-2018
1257,Revenue,CAHD,S117 Placements PCT,Permanent Residential,Hesley Hall,18899.04, 16-Jan-2018
1258,Revenue,CAHD,Bed Purchasing - North,Permanent Residential,High Border Lodge,2001.68, 16-Jan-2018
1259,Revenue,CAHD,Bed Purchasing - Southmead Hospital,Permanent Residential,Highgate Studios,2378.68, 16-Jan-2018
1260,Revenue,CAHD,18-25 Year Olds,Supported Living,Hillcairnie House,3343.20, 16-Jan-2018
1261,Revenue,CAHD,Home Care - Elderly - North,Supported Living,Hillcairnie House,4767.00, 16-Jan-2018
1262,Revenue,CAHD,Home Care - Elderly - North,Supported Living,Hillcairnie House,4225.24, 16-Jan-2018
1263,Revenue,CAHD,Home Care - Elderly - South,Supported Living,Hillcairnie House,2468.16, 16-Jan-2018
1264,Revenue,CAHD,Home Care - Elderly - South,Supported Living,Hillcairnie House,2468.16, 16-Jan-2018
1265,Revenue,CAHD,Home Care - Elderly - South,Supported Living,Hillcairnie House,2468.12, 16-Jan-2018
1266,Revenue,CAHD,Bed Purchasing - Southmead Hospital,Permanent Nursing,Holly Villa,2063.48, 16-Jan-2018
1267,Revenue,CAHD,Bed Purchasing - North,Permanent Residential,Holmleigh Care Homes Ltd,4579.12, 16-Jan-2018
1268,Revenue,CAHD,Bed Purchasing - South,Permanent Residential,Holmleigh Care Homes Ltd,4374.12, 16-Jan-2018
1269,Revenue,CAHD,Jointly Funded H&SC Packages,Permanent Residential,Holmleigh Care Homes Ltd,1253.16, 16-Jan-2018
1270,Revenue,CAHD,Bed Purchasing - North,Permanent Residential,Home Farm Trust Ltd  5-6 Brook Office Pa,7800.70, 16-Jan-2018
1271,Revenue,CAHD,Home Care - Elderly - South,Supported Living,Home Farm Trust Ltd  5-6 Brook Office Pa,4074.20, 16-Jan-2018
1272,Revenue,CAHD,18-25 Year Olds,Permanent Residential,Home From Home Care Ltd,9740.76, 16-Jan-2018
1273,Revenue,CAHD,Tenancy Start Up Scheme,Other Supplies & Services,Home Turf Lettings,2100.20, 15-Jan-2018
1274,Revenue,CAHD,Bed Purchasing - North,Permanent Residential,Homes Caring For Autism Ltd  Churchill H,8175.92, 16-Jan-2018
1275,Revenue,CAHD,Jointly Funded H&SC Packages,Permanent Residential,Homes Caring For Autism Ltd  Churchill H,2470.36, 16-Jan-2018
1276,Revenue,CAHD,18-25 Year Olds,Permanent Residential,Homes Caring For Autism Ltd  Churchill H,5765.32, 16-Jan-2018
1277,Revenue,CAHD,Jointly Funded H&SC Packages,Permanent Residential,Homes Caring For Autism Ltd  Churchill H,8039.24, 16-Jan-2018
1278,Revenue,CAHD,Bed Purchasing - Southmead Hospital,Permanent Nursing,Horfield Care Limited,1507.18, 15-Jan-2018
1279,Revenue,CAHD,Bed Purchasing - Southmead Hospital,Permanent Nursing,Horfield Care Limited,1905.84, 15-Jan-2018
1280,Revenue,CAHD,Bed Purchasing - Southmead Hospital,Permanent Nursing,Horfield Care Limited,1214.98, 15-Jan-2018
1281,Revenue,CAHD,Bed Purchasing - South,Permanent Nursing,Horfield Care Limited,1391.81, 15-Jan-2018
1282,Revenue,CAHD,Bed Purchasing - South,Permanent Nursing,Horfield Care Limited,1413.47, 15-Jan-2018
1283,Revenue,CAHD,Younger MH non-res purchasing,Supported Living,Horizon,4436.34, 16-Jan-2018
1284,Revenue,CAHD,Home Care - Elderly - South,Other Supplies & Services,Housing & Care 21,680.54, 16-Jan-2018
1285,Revenue,CAHD,Home Care - Elderly - North,Private & Voluntary Home Care,Housing 21,12872.98, 12-Jan-2018
1286,Revenue,CAHD,Extra Care Housing,Private & Voluntary Home Care,Housing 21,37678.37, 15-Jan-2018
1287,Revenue,CAHD,Home Care - Elderly - North,Private & Voluntary Home Care,Housing 21,34872.50, 05-Jan-2018
1288,Revenue,CAHD,Tenancy Start Up Scheme,Other Supplies & Services,Hunters,2086.00, 19-Jan-2018
1289,Revenue,CAHD,Tenancy Start Up Scheme,Other Supplies & Services,Individual ,800.00, 22-Jan-2018
1290,Revenue,CAHD,Cambrian Green Day Service,Furniture & Fittings Loose,Ian Williams Limited,8763.20, 11-Jan-2018
1291,Revenue,CAHD,18-25 Year Olds,Day Care / Social Activities,Impact Mentoring,1375.00, 25-Jan-2018
1292,Revenue,CAHD,18-25 Year Olds,Day Care / Social Activities,Impact Mentoring,2125.00, 25-Jan-2018
1293,Revenue,CAHD,Social Lettings Agency,Fees - General,Individual ,12.22, 11-Jan-2018
1294,Revenue,CAHD,Social Lettings Agency,Other Supplies & Services,Individual ,690.32, 11-Jan-2018
1295,Revenue,CAHD,Training - Adult Services,Training Expenses,JK Training,700.00, 19-Jan-2018
1296,Revenue,CAHD,Tenancy Start Up Scheme,Other Supplies & Services,Individual ,820.00, 16-Jan-2018
1297,Revenue,CAHD,Bed Purchasing - South,Permanent Residential,Jonen House,4147.72, 16-Jan-2018
1298,Revenue,CAHD,Housing Needs,Fees - General,K International Plc,530.99, 10-Jan-2018
1299,Revenue,CAHD,Bed Purchasing - Elderly S117- North,Permanent Residential,Kahala Court,2800.00, 16-Jan-2018
1300,Revenue,CAHD,Home Care - Elderly - South,Other Small Contracts,Kensington Community Care,1895.04, 09-Jan-2018
1301,Revenue,CAHD,Home Care - Elderly - North,Other Small Contracts,Kensington Community Care,5344.64, 09-Jan-2018
1302,Revenue,CAHD,Home Care - Elderly - South,Other Small Contracts,Kensington Community Care,1339.52, 15-Jan-2018
1303,Revenue,CAHD,Home Care - Elderly - North,Other Small Contracts,Kensington Community Care,4995.20, 15-Jan-2018
1304,Revenue,CAHD,Home Care - Elderly - South,Other Small Contracts,Kensington Community Care,1397.76, 17-Jan-2018
1305,Revenue,CAHD,Home Care - Elderly - North,Other Small Contracts,Kensington Community Care,5452.16, 17-Jan-2018
1306,Revenue,CAHD,Home Care - Elderly - South,Other Small Contracts,Kensington Community Care,1832.32, 24-Jan-2018
1307,Revenue,CAHD,Home Care - Elderly - North,Other Small Contracts,Kensington Community Care,4972.80, 24-Jan-2018
1308,Revenue,CAHD,Home Care - Elderly - South,Day Care / Social Activities,Kenver House Residential Home,780.00, 16-Jan-2018
1309,Revenue,CAHD,Bed Purchasing - Southmead Hospital,Permanent Residential,Kenver House Residential Home,2248.96, 16-Jan-2018
1310,Revenue,CAHD,Bed Purchasing - South,Permanent Residential,Kenver House Residential Home,2252.04, 16-Jan-2018
1311,Revenue,CAHD,Bed Purchasing - South,Permanent Residential,Kenver House Residential Home,2463.08, 16-Jan-2018
1312,Revenue,CAHD,Bed purchasing - Elderly S117 - South,Permanent Residential,Kenver House Residential Home,2463.08, 16-Jan-2018
1313,Revenue,CAHD,Bed Purchasing - South,Permanent Residential,Kenver House Residential Home,2613.56, 16-Jan-2018
1314,Revenue,CAHD,Bed Purchasing - South,Permanent Residential,Kenver House Residential Home,2463.08, 16-Jan-2018
1315,Revenue,CAHD,Bed Purchasing - North,Permanent Residential,Kenver House Residential Home,2880.00, 16-Jan-2018
1316,Revenue,CAHD,Bed Purchasing - South,Permanent Residential,Kenver House Residential Home,2463.08, 16-Jan-2018
1317,Revenue,CAHD,Home Care - Elderly - South,Day Care / Social Activities,Kenver House Residential Home,520.00, 16-Jan-2018
1318,Revenue,CAHD,Bed Purchasing - Southmead Hospital,Permanent Residential,Kenver House Residential Home,2119.29, 16-Jan-2018
1319,Revenue,CAHD,Bed Purchasing - Southmead Hospital,Permanent Residential,Kenver House Residential Home,1935.00, 16-Jan-2018
1320,Revenue,CAHD,Bed Purchasing - Southmead Hospital,Permanent Residential,Kenver House Residential Home,645.00, 16-Jan-2018
1321,Revenue,CAHD,Bed Purchasing - Southmead Hospital,Fees & Charges Income - General,Kenver House Residential Home,1190.84, 16-Jan-2018
1322,Revenue,CAHD,Bed Purchasing - South,Permanent Residential,Kenver House Residential Home,2248.96, 16-Jan-2018
1323,Revenue,CAHD,South Glos Users in South Glos Homes,Permanent Nursing,Keyers Bridge House,620.20, 16-Jan-2018
1324,Revenue,CAHD,Bed Purchasing - Southmead Hospital,Permanent Nursing,Keyers Bridge House,2620.36, 16-Jan-2018
1325,Revenue,CAHD,South Glos Users in South Glos Homes,Permanent Nursing,Keyers Bridge House,620.20, 16-Jan-2018
1326,Revenue,CAHD,South Glos Users in South Glos Homes,Permanent Nursing,Keyers Bridge House,620.20, 16-Jan-2018
1327,Revenue,CAHD,Bed Purchasing - North,Permanent Nursing,Keyers Bridge House,2424.92, 16-Jan-2018
1328,Revenue,CAHD,South Glos Users in South Glos Homes,Permanent Nursing,Keyers Bridge House,620.20, 16-Jan-2018
1329,Revenue,CAHD,South Glos Users in South Glos Homes,Permanent Nursing,Keyers Bridge House,620.20, 16-Jan-2018
1330,Revenue,CAHD,South Glos Users in South Glos Homes,Permanent Nursing,Keyers Bridge House,620.20, 16-Jan-2018
1331,Revenue,CAHD,South Glos Users in South Glos Homes,Permanent Nursing,Keyers Bridge House,620.20, 16-Jan-2018
1332,Revenue,CAHD,South Glos Users in South Glos Homes,Permanent Nursing,Keyers Bridge House,620.20, 16-Jan-2018
1333,Revenue,CAHD,South Glos Users in South Glos Homes,Permanent Nursing,Keyers Bridge House,620.20, 16-Jan-2018
1334,Revenue,CAHD,South Glos Users in South Glos Homes,Permanent Nursing,Keyers Bridge House,620.20, 16-Jan-2018
1335,Revenue,CAHD,South Glos Users in South Glos Homes,Permanent Nursing,Keyers Bridge House,620.20, 16-Jan-2018
1336,Revenue,CAHD,South Glos Users in South Glos Homes,Permanent Nursing,Keyers Bridge House,620.20, 16-Jan-2018
1337,Revenue,CAHD,South Glos Users in South Glos Homes,Permanent Nursing,Keyers Bridge House,620.20, 16-Jan-2018
1338,Revenue,CAHD,Bed Purchasing - Southmead Hospital,Respite Planned - Nursing,Keyers Bridge House,3039.80, 16-Jan-2018
1339,Revenue,CAHD,South Glos Users in South Glos Homes,Permanent Nursing,Keyers Bridge House,620.20, 16-Jan-2018
1340,Revenue,CAHD,South Glos Users in South Glos Homes,Permanent Nursing,Keyers Bridge House,620.20, 16-Jan-2018
1341,Revenue,CAHD,South Glos Users in South Glos Homes,Permanent Nursing,Keyers Bridge House,620.20, 16-Jan-2018
1342,Revenue,CAHD,Bed Purchasing - Southmead Hospital,Permanent Nursing,Keyers Bridge House,2047.76, 16-Jan-2018
1343,Revenue,CAHD,South Glos Users in South Glos Homes,Permanent Nursing,Keyers Bridge House,620.20, 16-Jan-2018
1344,Revenue,CAHD,South Glos Users in South Glos Homes,Permanent Nursing,Keyers Bridge House,620.20, 16-Jan-2018
1345,Revenue,CAHD,South Glos Users in South Glos Homes,Permanent Nursing,Keyers Bridge House,620.20, 16-Jan-2018
1346,Revenue,CAHD,Learning Difficulties Development Fund,Other Supplies & Services,Kids,4654.25, 09-Jan-2018
1347,Revenue,CAHD,Bed Purchasing - North,Permanent Residential,Kilkhampton Lodge,17727.52, 16-Jan-2018
1348,Revenue,CAHD,Bed Purchasing - North,Permanent Nursing,Kingfisher Lodge Care Centre,3329.08, 16-Jan-2018
1349,Revenue,CAHD,Bed Purchasing - Southmead Hospital,Permanent Nursing,Kingfisher Lodge Care Centre,3600.00, 16-Jan-2018
1350,Revenue,CAHD,Bed Purchasing - South,Permanent Nursing,Kingfisher Lodge Care Centre,4579.80, 16-Jan-2018
1351,Revenue,CAHD,Bed Purchasing - South,Permanent Nursing,Kingfisher Lodge Care Centre,1635.64, 16-Jan-2018
1352,Revenue,CAHD,Bed purchasing - Elderly S117 - South,Permanent Nursing,Kingfisher Lodge Care Centre,4579.80, 16-Jan-2018
1353,Revenue,CAHD,Care Management Team - South,Other Supplies & Services,Kinnarps UK Limited (Invoice Account),646.35, 24-Jan-2018
1354,Revenue,CAHD,Bed Purchasing - North,Permanent Residential,Kisimul Group,12236.52, 16-Jan-2018
1355,Revenue,CAHD,Tenancy Start Up Scheme,Other Supplies & Services,Knightstone Housing Association Limited,1400.00, 22-Jan-2018
1356,Revenue,CAHD,Bed and Breakfast,Bed & Breakfast,Knightstone Housing Association Limited,716.03, 12-Jan-2018
1357,Revenue,CAHD,Bed and Breakfast,Bed & Breakfast,Knightstone Housing Association Limited,931.42, 12-Jan-2018
1358,Revenue,CAHD,Bed and Breakfast,Bed & Breakfast,Knightstone Housing Association Limited,2794.26, 26-Jan-2018
1359,Revenue,CAHD,Bed and Breakfast,Bed & Breakfast,Knightstone Housing Association Limited,2148.09, 26-Jan-2018
1360,Revenue,CAHD,Home Care - Elderly - North,Other Small Contracts,KPW Newkey Ltd,803.04, 04-Jan-2018
1361,Revenue,CAHD,Home Care - Elderly - North,Other Small Contracts,KPW Newkey Ltd,841.28, 09-Jan-2018
1362,Revenue,CAHD,Home Care - Elderly - South,Other Small Contracts,Kumari Care Limited,397.80, 08-Jan-2018
1363,Revenue,CAHD,Home Care - Elderly - North,Other Small Contracts,Kumari Care Limited,805.16, 08-Jan-2018
1364,Revenue,CAHD,Home Care - Elderly - South,Other Small Contracts,Kumari Care Limited,388.96, 10-Jan-2018
1365,Revenue,CAHD,Home Care - Elderly - North,Other Small Contracts,Kumari Care Limited,322.06, 10-Jan-2018
1366,Revenue,CAHD,Home Care - Elderly - South,Other Small Contracts,Kumari Care Limited,375.70, 19-Jan-2018
1367,Revenue,CAHD,Home Care - Elderly - North,Other Small Contracts,Kumari Care Limited,1001.98, 19-Jan-2018
1368,Revenue,CAHD,Home Care - Elderly - South,Other Small Contracts,Kumari Care Limited,415.48, 25-Jan-2018
1369,Revenue,CAHD,Home Care - Elderly - North,Other Small Contracts,Kumari Care Limited,1002.03, 25-Jan-2018
1370,Revenue,CAHD,Learning Difficulties Development Fund,Other Supplies & Services,L D Awareness,1367.50, 09-Jan-2018
1371,Revenue,CAHD,Bed Purchasing - North,Permanent Nursing,Larchfield Care Home,3068.36, 16-Jan-2018
1372,Revenue,CAHD,Tenancy Start Up Scheme,Other Supplies & Services,Individual ,1050.00, 22-Jan-2018
1373,Revenue,CAHD,Bed Purchasing - North,Permanent Residential,Leonard Cheshire  National Account Centr,3517.16, 16-Jan-2018
1374,Revenue,CAHD,Bed Purchasing - South,Permanent Residential,Leonard Cheshire  National Account Centr,3889.64, 16-Jan-2018
1375,Revenue,CAHD,Bed Purchasing - North,Permanent Nursing,Leonard Cheshire  National Account Centr,4082.72, 16-Jan-2018
1376,Revenue,CAHD,Bed Purchasing - North,Permanent Nursing,Leonard Cheshire  National Account Centr,3361.60, 16-Jan-2018
1377,Revenue,CAHD,18-25 Year Olds,Permanent Residential,Leonard Cheshire  National Account Centr,3820.84, 16-Jan-2018
1378,Revenue,CAHD,Bed Purchasing - North,Permanent Residential,Leonard Cheshire  National Account Centr,6516.64, 16-Jan-2018
1379,Revenue,CAHD,Bed Purchasing - North,Permanent Nursing,Leonard Cheshire  National Account Centr,5246.76, 16-Jan-2018
1380,Revenue,CAHD,Bed Purchasing - North,Permanent Nursing,Leonard Cheshire  National Account Centr,3402.80, 16-Jan-2018
1381,Revenue,CAHD,Bed Purchasing - North,Permanent Nursing,Leonard Cheshire  National Account Centr,5131.24, 16-Jan-2018
1382,Revenue,CAHD,Bed Purchasing - North,Permanent Residential,Leonard Cheshire  National Account Centr,3457.60, 16-Jan-2018
1383,Revenue,CAHD,Bed Purchasing - North,Permanent Nursing,Leonard Cheshire  National Account Centr,3302.88, 16-Jan-2018
1384,Revenue,CAHD,Bed Purchasing - North,Permanent Nursing,Leonard Cheshire  National Account Centr,5866.96, 16-Jan-2018
1385,Revenue,CAHD,Bed Purchasing - South,Permanent Nursing,Leonard Cheshire  National Account Centr,6169.60, 16-Jan-2018
1386,Revenue,CAHD,Bed Purchasing - Southmead Hospital,Permanent Nursing,Leonard Cheshire  National Account Centr,3572.28, 16-Jan-2018
1387,Revenue,CAHD,Bed Purchasing - North,Permanent Nursing,Leonard Cheshire  National Account Centr,3910.52, 16-Jan-2018
1388,Revenue,CAHD,18-25 Year Olds,Permanent Residential,Linden House,9647.20, 16-Jan-2018
1389,Revenue,CAHD,Bed Purchasing - North,Permanent Residential,Linden House,8211.64, 16-Jan-2018
1390,Revenue,CAHD,Bed Purchasing - South,Permanent Residential,Linden House,8435.68, 16-Jan-2018
1391,Revenue,CAHD,Bed purchasing -S28A  Under 65 - North,Permanent Residential,Linden House,12145.16, 16-Jan-2018
1392,Revenue,CAHD,Bed Purchasing - South,Permanent Residential,Little Croft,2053.56, 16-Jan-2018
1393,Revenue,CAHD,Bed Purchasing - Southmead Hospital,Respite Emergency - Residential,Little Croft,2285.71, 16-Jan-2018
1394,Revenue,CAHD,Bed Purchasing - Southmead Hospital,Respite Emergency - Residential,Little Croft,2285.71, 16-Jan-2018
1395,Revenue,CAHD,Bed Purchasing - North,Permanent Residential,Little Croft,1886.24, 16-Jan-2018
1396,Revenue,CAHD,Bed Purchasing - Southmead Hospital,Permanent Residential,Little Croft,2258.92, 16-Jan-2018
1397,Revenue,CAHD,Bed Purchasing - South,Permanent Residential,Little Croft,3000.00, 16-Jan-2018
1398,Revenue,CAHD,Bed Purchasing - South,Respite Emergency - Residential,Little Croft,2357.14, 16-Jan-2018
1399,Revenue,CAHD,Bed Purchasing - South,Permanent Residential,Little Croft,2329.92, 16-Jan-2018
1400,Revenue,CAHD,Bed Purchasing - Southmead Hospital,Permanent Residential,Little Croft,3000.00, 16-Jan-2018
1401,Revenue,CAHD,Bed Purchasing - Southmead Hospital,Permanent Residential,Little Croft,2735.12, 16-Jan-2018
1402,Revenue,CAHD,Bed Purchasing - South,Permanent Residential,Little Croft,1886.24, 16-Jan-2018
1403,Revenue,CAHD,Bed Purchasing - South,Permanent Residential,Little Croft,1165.24, 16-Jan-2018
1404,Revenue,CAHD,Bed Purchasing - Southmead Hospital,Permanent Residential,Little Croft,2735.12, 16-Jan-2018
1405,Revenue,CAHD,Bed Purchasing - Southmead Hospital,Permanent Residential,Little Croft,2373.64, 16-Jan-2018
1406,Revenue,CAHD,Bed Purchasing - Southmead Hospital,Permanent Residential,Little Croft,1867.92, 16-Jan-2018
1407,Revenue,CAHD,Bed Purchasing - Southmead Hospital,Permanent Residential,Little Croft,2048.96, 16-Jan-2018
1408,Revenue,CAHD,Bed Purchasing - Southmead Hospital,Permanent Residential,Little Croft,2532.52, 16-Jan-2018
1409,Revenue,CAHD,Bed Purchasing - Southmead Hospital,Permanent Residential,Little Croft,2735.12, 16-Jan-2018
1410,Revenue,CAHD,Bed Purchasing - South,Permanent Residential,Little Croft,3000.00, 16-Jan-2018
1411,Revenue,CAHD,Bed Purchasing - Southmead Hospital,Permanent Residential,Little Croft,1886.24, 16-Jan-2018
1412,Revenue,CAHD,Bed Purchasing - South,Permanent Residential,Little Croft,2329.92, 16-Jan-2018
1413,Revenue,CAHD,Bed Purchasing - South,Permanent Residential,Little Croft,3000.00, 16-Jan-2018
1414,Revenue,CAHD,Bed Purchasing - Southmead Hospital,Permanent Residential,Little Croft,2735.12, 16-Jan-2018
1415,Revenue,CAHD,Bed Purchasing - South,Permanent Residential,Little Croft,2070.72, 16-Jan-2018
1416,Revenue,CAHD,Bed Purchasing - Southmead Hospital,Permanent Residential,Little Croft,1886.24, 16-Jan-2018
1417,Revenue,CAHD,Bed Purchasing - Southmead Hospital,Permanent Residential,Little Croft,1886.24, 16-Jan-2018
1418,Revenue,CAHD,Bed Purchasing - South,Permanent Residential,Little Croft,2228.60, 16-Jan-2018
1419,Revenue,CAHD,Bed Purchasing - North,Permanent Residential,Littlecroft Residential Homes  Longcroft,7058.16, 16-Jan-2018
1420,Revenue,CAHD,18-25 Year Olds,Supported Living,Lloyds TSB Commercial Finance Limited,2916.48, 10-Jan-2018
1421,Revenue,CAHD,Home Care - Elderly - South,Day Care / Social Activities,Lloyds TSB Commercial Finance Limited,5667.20, 10-Jan-2018
1422,Revenue,CAHD,Home Care - Elderly - South,Other Small Contracts,Lloyds TSB Commercial Finance Limited,8458.33, 10-Jan-2018
1423,Revenue,CAHD,Home Care - Elderly - South,Supported Living,Lloyds TSB Commercial Finance Limited,6749.06, 10-Jan-2018
1424,Revenue,CAHD,Home Care - Elderly - North,Day Care / Social Activities,Lloyds TSB Commercial Finance Limited,215.04, 10-Jan-2018
1425,Revenue,CAHD,Home Care - Elderly - North,Supported Living,Lloyds TSB Commercial Finance Limited,2011.52, 10-Jan-2018
1426,Revenue,CAHD,Younger MH non-res purchasing,Other Small Contracts,Lloyds TSB Commercial Finance Limited,10918.48, 10-Jan-2018
1427,Revenue,CAHD,18-25 Year Olds,Supported Living,Lloyds TSB Commercial Finance Limited,2916.48, 10-Jan-2018
1428,Revenue,CAHD,Home Care - Elderly - South,Day Care / Social Activities,Lloyds TSB Commercial Finance Limited,5555.20, 10-Jan-2018
1429,Revenue,CAHD,Home Care - Elderly - South,Other Small Contracts,Lloyds TSB Commercial Finance Limited,8296.11, 10-Jan-2018
1430,Revenue,CAHD,Home Care - Elderly - South,Supported Living,Lloyds TSB Commercial Finance Limited,6703.36, 10-Jan-2018
1431,Revenue,CAHD,Home Care - Elderly - North,Day Care / Social Activities,Lloyds TSB Commercial Finance Limited,215.04, 10-Jan-2018
1432,Revenue,CAHD,Home Care - Elderly - North,Supported Living,Lloyds TSB Commercial Finance Limited,1800.96, 10-Jan-2018
1433,Revenue,CAHD,Younger MH non-res purchasing,Other Small Contracts,Lloyds TSB Commercial Finance Limited,10907.64, 10-Jan-2018
1434,Revenue,CAHD,18-25 Year Olds,Supported Living,Lloyds TSB Commercial Finance Limited,2916.48, 30-Jan-2018
1435,Revenue,CAHD,Home Care - Elderly - South,Day Care / Social Activities,Lloyds TSB Commercial Finance Limited,4009.60, 30-Jan-2018
1436,Revenue,CAHD,Home Care - Elderly - South,Other Small Contracts,Lloyds TSB Commercial Finance Limited,8411.86, 30-Jan-2018
1437,Revenue,CAHD,Home Care - Elderly - South,Supported Living,Lloyds TSB Commercial Finance Limited,4295.98, 30-Jan-2018
1438,Revenue,CAHD,Home Care - Elderly - North,Supported Living,Lloyds TSB Commercial Finance Limited,1581.44, 30-Jan-2018
1439,Revenue,CAHD,Younger MH non-res purchasing,Other Small Contracts,Lloyds TSB Commercial Finance Limited,10961.68, 30-Jan-2018
1440,Revenue,CAHD,South Glos Users in South Glos Homes,Permanent Nursing,Lodge House,620.20, 16-Jan-2018
1441,Revenue,CAHD,Bed Purchasing - South,Permanent Nursing,Lodge House,2248.72, 16-Jan-2018
1442,Revenue,CAHD,South Glos Users in South Glos Homes,Permanent Nursing,Lodge House,620.20, 16-Jan-2018
1443,Revenue,CAHD,Bed Purchasing - South,Permanent Nursing,Lodge House,3239.80, 16-Jan-2018
1444,Revenue,CAHD,South Glos Users in South Glos Homes,Permanent Nursing,Lodge House,620.20, 16-Jan-2018
1445,Revenue,CAHD,South Glos Users in South Glos Homes,Permanent Nursing,Lodge House,620.20, 16-Jan-2018
1446,Revenue,CAHD,South Glos Users in South Glos Homes,Permanent Nursing,Lodge House,620.20, 16-Jan-2018
1447,Revenue,CAHD,Bed Purchasing - South,Permanent Nursing,Lodge House,2744.68, 16-Jan-2018
1448,Revenue,CAHD,South Glos Users in South Glos Homes,Permanent Nursing,Lodge House,620.20, 16-Jan-2018
1449,Revenue,CAHD,Bed Purchasing - Southmead Hospital,Permanent Nursing,Lodge House,3702.63, 16-Jan-2018
1450,Revenue,CAHD,Bed Purchasing - Southmead Hospital,Permanent Nursing,Lodge House,3239.80, 16-Jan-2018
1451,Revenue,CAHD,South Glos Users in South Glos Homes,Permanent Nursing,Lodge House,620.20, 16-Jan-2018
1452,Revenue,CAHD,Bed Purchasing - Southmead Hospital,Permanent Nursing,Lodge House,3367.00, 16-Jan-2018
1453,Revenue,CAHD,South Glos Users in South Glos Homes,Permanent Nursing,Lodge House,620.20, 16-Jan-2018
1454,Revenue,CAHD,Bed Purchasing - South,Permanent Nursing,Lodge House,3109.92, 16-Jan-2018
1455,Revenue,CAHD,South Glos Users in South Glos Homes,Permanent Nursing,Lodge House,620.20, 16-Jan-2018
1456,Revenue,CAHD,Bed Purchasing - South,Permanent Nursing,Lodge House,3992.00, 16-Jan-2018
1457,Revenue,CAHD,South Glos Users in South Glos Homes,Permanent Nursing,Lodge House,620.20, 16-Jan-2018
1458,Revenue,CAHD,South Glos Users in South Glos Homes,Permanent Nursing,Lodge House,620.20, 16-Jan-2018
1459,Revenue,CAHD,South Glos Users in South Glos Homes,Permanent Nursing,Lodge House,620.20, 16-Jan-2018
1460,Revenue,CAHD,South Glos Users in South Glos Homes,Permanent Nursing,Lodge House,620.20, 16-Jan-2018
1461,Revenue,CAHD,Bed Purchasing - Southmead Hospital,Permanent Nursing,Lodge House,3109.92, 16-Jan-2018
1462,Revenue,CAHD,South Glos Users in South Glos Homes,Permanent Nursing,Lodge House,620.20, 16-Jan-2018
1463,Revenue,CAHD,South Glos Users in South Glos Homes,Permanent Nursing,Lodge House,620.20, 16-Jan-2018
1464,Revenue,CAHD,Bed Purchasing - Southmead Hospital,Permanent Nursing,Lodge House,3239.80, 16-Jan-2018
1465,Revenue,CAHD,South Glos Users in South Glos Homes,Permanent Nursing,Lodge House,620.20, 16-Jan-2018
1466,Revenue,CAHD,Bed Purchasing - North,Permanent Nursing,Lodge House,2987.84, 16-Jan-2018
1467,Revenue,CAHD,South Glos Users in South Glos Homes,Permanent Nursing,Lodge House,620.20, 16-Jan-2018
1468,Revenue,CAHD,Bed Purchasing - South,Permanent Nursing,Lodge House,3277.04, 16-Jan-2018
1469,Revenue,CAHD,South Glos Users in South Glos Homes,Permanent Nursing,Lodge House,620.20, 16-Jan-2018
1470,Revenue,CAHD,South Glos Users in South Glos Homes,Permanent Nursing,Lodge House,620.20, 16-Jan-2018
1471,Revenue,CAHD,Bed Purchasing - South,Permanent Nursing,Lodge House,3991.80, 16-Jan-2018
1472,Revenue,CAHD,South Glos Users in South Glos Homes,Permanent Nursing,Lodge House,620.20, 16-Jan-2018
1473,Revenue,CAHD,South Glos Users in South Glos Homes,Permanent Nursing,Lodge House,620.20, 16-Jan-2018
1474,Revenue,CAHD,Bed Purchasing - South,Permanent Nursing,Lodge House,3239.80, 16-Jan-2018
1475,Revenue,CAHD,South Glos Users in South Glos Homes,Permanent Nursing,Lodge House,620.20, 16-Jan-2018
1476,Revenue,CAHD,South Glos Users in South Glos Homes,Permanent Nursing,Lodge House,620.20, 16-Jan-2018
1477,Revenue,CAHD,South Glos Users in South Glos Homes,Permanent Nursing,Lodge House,620.20, 16-Jan-2018
1478,Revenue,CAHD,Bed Purchasing - Southmead Hospital,Permanent Nursing,Lodge House,3992.00, 16-Jan-2018
1479,Revenue,CAHD,South Glos Users in South Glos Homes,Permanent Nursing,Lodge House,620.20, 16-Jan-2018
1480,Revenue,CAHD,South Glos Users in South Glos Homes,Permanent Nursing,Lodge House,620.20, 16-Jan-2018
1481,Revenue,CAHD,South Glos Users in South Glos Homes,Permanent Nursing,Lodge House,620.20, 16-Jan-2018
1482,Revenue,CAHD,South Glos Users in South Glos Homes,Permanent Nursing,Lodge House,620.20, 16-Jan-2018
1483,Revenue,CAHD,South Glos Users in South Glos Homes,Permanent Nursing,Lodge House,620.20, 16-Jan-2018
1484,Revenue,CAHD,South Glos Users in South Glos Homes,Permanent Nursing,Lodge House,620.20, 16-Jan-2018
1485,Revenue,CAHD,Bed Purchasing - South,Permanent Nursing,Lodge House,3277.04, 16-Jan-2018
1486,Revenue,CAHD,South Glos Users in South Glos Homes,Permanent Nursing,Lodge House,620.20, 16-Jan-2018
1487,Revenue,CAHD,Bed Purchasing - Southmead Hospital,Permanent Nursing,Lodge House,3371.80, 16-Jan-2018
1488,Revenue,CAHD,Bed Purchasing - Southmead Hospital,Permanent Nursing,Lodge House,2528.85, 16-Jan-2018
1489,Revenue,CAHD,South Glos Users in South Glos Homes,Permanent Nursing,Lodge House,620.20, 16-Jan-2018
1490,Revenue,CAHD,South Glos Users in South Glos Homes,Permanent Nursing,Lodge House,620.20, 16-Jan-2018
1491,Revenue,CAHD,South Glos Users in South Glos Homes,Permanent Nursing,Lodge House,620.20, 16-Jan-2018
1492,Revenue,CAHD,South Glos Users in South Glos Homes,Permanent Nursing,Lodge House,620.20, 16-Jan-2018
1493,Revenue,CAHD,South Glos Users in South Glos Homes,Permanent Nursing,Lodge House,620.20, 16-Jan-2018
1494,Revenue,CAHD,South Glos Users in South Glos Homes,Permanent Nursing,Lodge House,575.90, 16-Jan-2018
1495,Revenue,CAHD,Bed Purchasing - Southmead Hospital,Permanent Nursing,Lodge House,3428.00, 16-Jan-2018
1496,Revenue,CAHD,South Glos Users in South Glos Homes,Permanent Nursing,Lodge House,620.20, 16-Jan-2018
1497,Revenue,CAHD,South Glos Users in South Glos Homes,Permanent Nursing,Lodge House,620.20, 16-Jan-2018
1498,Revenue,CAHD,South Glos Users in South Glos Homes,Permanent Nursing,Lodge House,620.20, 16-Jan-2018
1499,Revenue,CAHD,South Glos Users in South Glos Homes,Permanent Nursing,Lodge House,620.20, 16-Jan-2018
1500,Revenue,CAHD,Bed Purchasing - South,Permanent Nursing,Lodge House,3410.76, 16-Jan-2018
1501,Revenue,CAHD,South Glos Users in South Glos Homes,Permanent Nursing,Lodge House,620.20, 16-Jan-2018
1502,Revenue,CAHD,South Glos Users in South Glos Homes,Permanent Nursing,Lodge House,620.20, 16-Jan-2018
1503,Revenue,CAHD,South Glos Users in South Glos Homes,Permanent Nursing,Lodge House,620.20, 16-Jan-2018
1504,Revenue,CAHD,South Glos Users in South Glos Homes,Permanent Nursing,Lodge House,620.20, 16-Jan-2018
1505,Revenue,CAHD,South Glos Users in South Glos Homes,Permanent Nursing,Lodge House,620.20, 16-Jan-2018
1506,Revenue,CAHD,Bed Purchasing - Southmead Hospital,Permanent Nursing,Lodge House,3992.00, 16-Jan-2018
1507,Revenue,CAHD,South Glos Users in South Glos Homes,Permanent Nursing,Lodge House,620.20, 16-Jan-2018
1508,Revenue,CAHD,Bed Purchasing - S28A - Over 65- North,Permanent Residential,Longrun House,8879.52, 16-Jan-2018
1509,Revenue,CAHD,Bed Purchasing - South,Permanent Residential,Longrun House,3123.72, 16-Jan-2018
1510,Revenue,CAHD,Jointly Funded H&SC Packages,Permanent Residential,Longrun House,2717.92, 16-Jan-2018
1511,Revenue,CAHD,Home Care - Elderly - North,Day Care / Social Activities,Lower Kilcott,1521.44, 16-Jan-2018
1512,Revenue,CAHD,Home Care - Elderly - South,Day Care / Social Activities,Make it Mentoring CIC Limited,829.92, 31-Jan-2018
1513,Revenue,CAHD,Home Care - Elderly - South,Other Small Contracts,Make it Mentoring CIC Limited,553.28, 31-Jan-2018
1514,Revenue,CAHD,Home Care - Elderly - North,Day Care / Social Activities,Make it Mentoring CIC Limited,2329.60, 31-Jan-2018
1515,Revenue,CAHD,Bed Purchasing - Southmead Hospital,Permanent Residential,Manor Cottage,2800.00, 16-Jan-2018
1516,Revenue,CAHD,Bed Purchasing - South,Permanent Residential,Manor Cottage,2431.20, 16-Jan-2018
1517,Revenue,CAHD,Bed Purchasing - South,Permanent Residential,Manor Cottage,3018.76, 16-Jan-2018
1518,Revenue,CAHD,Bed Purchasing - Southmead Hospital,Permanent Residential,Manor Cottage,1886.24, 16-Jan-2018
1519,Revenue,CAHD,Bed Purchasing - South,Permanent Residential,Manor Cottage,2075.72, 16-Jan-2018
1520,Revenue,CAHD,18-25 Year Olds,Permanent Residential,Manor Farm Offices,13000.00, 16-Jan-2018
1521,Revenue,CAHD,Younger MH non-res purchasing,Supported Living,Maples Community Care Limited,1437.48, 16-Jan-2018
1522,Revenue,CAHD,Home Care - Elderly - South,Supported Living,Maples Community Care Limited,1437.48, 16-Jan-2018
1523,Revenue,CAHD,Home Care - Elderly - South,Supported Living,Maples Community Care Limited,8050.00, 16-Jan-2018
1524,Revenue,CAHD,Home Care - Elderly - South,Supported Living,Maples Community Care Limited,1400.00, 16-Jan-2018
1525,Revenue,CAHD,Younger MH non-res purchasing,Supported Living,Maples Community Care Limited,1437.48, 16-Jan-2018
1526,Revenue,CAHD,Younger MH non-res purchasing,Supported Living,Maples Community Care Limited,1437.48, 16-Jan-2018
1527,Revenue,CAHD,Home Care - Elderly - South,Supported Living,Maples Community Care Limited,1418.20, 16-Jan-2018
1528,Revenue,CAHD,Social Lettings Agency,Fees - General,Individual ,12.22, 19-Jan-2018
1529,Revenue,CAHD,Social Lettings Agency,Other Supplies & Services,Individual ,690.32, 19-Jan-2018
1530,Revenue,CAHD,Bed Purchasing - South,Permanent Residential,Marsden Healthcare Ltd,2072.00, 16-Jan-2018
1531,Revenue,CAHD,Bed Purchasing - South,Permanent Residential,Marsden Healthcare Ltd,2149.20, 16-Jan-2018
1532,Revenue,CAHD,Bed Purchasing - North,Permanent Nursing,Meadow Care Home,4800.00, 16-Jan-2018
1533,Revenue,CAHD,Bed Purchasing - Southmead Hospital,Permanent Nursing,Meadow Care Home,4862.40, 16-Jan-2018
1534,Revenue,CAHD,Bed Purchasing - South,Permanent Nursing,Meadow Care Home,2516.48, 16-Jan-2018
1535,Revenue,CAHD,Bed Purchasing - Elderly S117- North,Permanent Nursing,Meadow Care Home,3901.76, 16-Jan-2018
1536,Revenue,CAHD,Bed Purchasing - South,Permanent Residential,Meadow Care Home,4200.00, 16-Jan-2018
1537,Revenue,CAHD,Bed Purchasing - Elderly S117- North,Permanent Nursing,Meadow Care Home,4229.28, 16-Jan-2018
1538,Revenue,CAHD,Bed Purchasing - North,Permanent Nursing,Meadow Care Home,4862.40, 16-Jan-2018
1539,Revenue,CAHD,Bed Purchasing - Elderly S117- North,Permanent Nursing,Meadow Care Home,5420.20, 16-Jan-2018
1540,Revenue,CAHD,Bed Purchasing - South,Permanent Nursing,Meadow Care Home,4114.29, 16-Jan-2018
1541,Revenue,CAHD,Bed Purchasing - North,Permanent Nursing,Meadow Care Home,4862.40, 16-Jan-2018
1542,Revenue,CAHD,Home Care - Elderly - South,Day Care / Social Activities,Mears Care,195.80, 25-Jan-2018
1543,Revenue,CAHD,Home Care - Elderly - South,Other Small Contracts,Mears Care,3722.43, 25-Jan-2018
1544,Revenue,CAHD,Home Care - Elderly - North,Other Small Contracts,Mears Care,3034.85, 25-Jan-2018
1545,Revenue,CAHD,Home Care - Elderly - South,Day Care / Social Activities,Mears Care,191.35, 25-Jan-2018
1546,Revenue,CAHD,Home Care - Elderly - South,Other Small Contracts,Mears Care,3516.92, 25-Jan-2018
1547,Revenue,CAHD,Home Care - Elderly - North,Other Small Contracts,Mears Care,2719.45, 25-Jan-2018
1548,Revenue,CAHD,Bed Purchasing - North,Permanent Residential,Medicare Corporation Limited,3764.29, 16-Jan-2018
1549,Revenue,CAHD,Bed Purchasing - North,Permanent Residential,Memorial House,11880.48, 16-Jan-2018
1550,Revenue,CAHD,Bed Purchasing - Southmead Hospital,Permanent Residential,Merchants Hall,2400.00, 16-Jan-2018
1551,Revenue,CAHD,Intermediate Care Accommodation,Other Supplies & Services,Merlin Housing Society (Service Charges),662.86, 05-Jan-2018
1552,Revenue,CAHD,Tenancy Start Up Scheme,Other Supplies & Services,Individual ,1430.00, 09-Jan-2018
1553,Revenue,CAHD,Home Care - Elderly - South,Supported Living,Mike Durrant - Cherry Orchards,1012.00, 16-Jan-2018
1554,Revenue,CAHD,Home Care - Elderly - South,Supported Living,Milestones - Unit 10,4315.88, 16-Jan-2018
1555,Revenue,CAHD,18-25 Year Olds,Supported Living,Milestones - Unit 10,2131.52, 16-Jan-2018
1556,Revenue,CAHD,Home Care - Elderly - South,Supported Living,Milestones - Unit 10,1857.60, 16-Jan-2018
1557,Revenue,CAHD,18-25 Year Olds,Supported Living,Milestones - Unit 10,2131.52, 16-Jan-2018
1558,Revenue,CAHD,18-25 Year Olds,Supported Living,Milestones - Unit 10,2131.52, 16-Jan-2018
1559,Revenue,CAHD,Home Care - Elderly - South,Supported Living,Milestones - Unit 10,4315.88, 16-Jan-2018
1560,Revenue,CAHD,Home Care - Elderly - North,Supported Living,Milestones - Unit 10,4185.48, 16-Jan-2018
1561,Revenue,CAHD,Home Care - Elderly - South,Supported Living,Milestones - Unit 10,3741.16, 16-Jan-2018
1562,Revenue,CAHD,Home Care - Elderly - South,Supported Living,Milestones - Unit 10,2379.72, 16-Jan-2018
1563,Revenue,CAHD,Home Care - Elderly - South,Supported Living,Milestones - Unit 10,3414.32, 16-Jan-2018
1564,Revenue,CAHD,Home Care - Elderly - South,Supported Living,Milestones - Unit 10,2159.68, 16-Jan-2018
1565,Revenue,CAHD,Home Care - Elderly - North,Supported Living,Milestones - Unit 10,4185.48, 16-Jan-2018
1566,Revenue,CAHD,Home Care - Elderly - South,Supported Living,Milestones - Unit 10,3985.28, 16-Jan-2018
1567,Revenue,CAHD,Supported Living (S28a) North,Supported Living,Milestones - Unit 10,3699.52, 16-Jan-2018
1568,Revenue,CAHD,Supported Living (S28a) South,Supported Living,Milestones - Unit 10,5653.24, 16-Jan-2018
1569,Revenue,CAHD,Home Care - Elderly - South,Supported Living,Milestones - Unit 10,2292.20, 16-Jan-2018
1570,Revenue,CAHD,Supported Living (S28a) South,Supported Living,Milestones - Unit 10,2292.28, 16-Jan-2018
1571,Revenue,CAHD,Home Care - Elderly - South,Supported Living,Milestones - Unit 10,2159.68, 16-Jan-2018
1572,Revenue,CAHD,Supported Living (S28a) North,Supported Living,Milestones - Unit 10,3712.00, 16-Jan-2018
1573,Revenue,CAHD,Supported Living (S28a) South,Supported Living,Milestones - Unit 10,2292.28, 16-Jan-2018
1574,Revenue,CAHD,Supported Living (S28a) South,Supported Living,Milestones - Unit 10,2292.28, 16-Jan-2018
1575,Revenue,CAHD,Section 117 Placements MH Younger,Permanent Nursing,Milestones - Unit 10,3593.72, 16-Jan-2018
1576,Revenue,CAHD,South Glos Users in South Glos Homes,Permanent Nursing,Milestones - Unit 10,620.20, 16-Jan-2018
1577,Revenue,CAHD,South Glos Users in South Glos Homes,Permanent Nursing,Milestones - Unit 10,620.20, 16-Jan-2018
1578,Revenue,CAHD,MH Purchasing - Younger,Permanent Residential,Milestones - Unit 10,1458.72, 16-Jan-2018
1579,Revenue,CAHD,Bed Purchasing - Southmead Hospital,Permanent Nursing,Milestones - Unit 10,3734.92, 16-Jan-2018
1580,Revenue,CAHD,Bed Purchasing - South,Permanent Residential,Milestones - Unit 10,5436.00, 16-Jan-2018
1581,Revenue,CAHD,Bed Purchasing - South,Permanent Residential,Milestones - Unit 10,5243.60, 16-Jan-2018
1582,Revenue,CAHD,Jointly Funded H&SC Packages,Permanent Residential,Milestones - Unit 10,1703.28, 16-Jan-2018
1583,Revenue,CAHD,Bed Purchasing - South,Permanent Nursing,Milestones - Unit 10,2082.04, 16-Jan-2018
1584,Revenue,CAHD,Bed purchasing - Elderly S117 - South,Permanent Nursing,Milestones - Unit 10,4993.60, 16-Jan-2018
1585,Revenue,CAHD,Jointly Funded H&SC Packages,Permanent Nursing,Milestones - Unit 10,2924.24, 16-Jan-2018
1586,Revenue,CAHD,South Glos Users in South Glos Homes,Permanent Nursing,Milestones - Unit 10,620.20, 16-Jan-2018
1587,Revenue,CAHD,Bed Purchasing - North,Permanent Residential,Milestones - Unit 10,4592.00, 16-Jan-2018
1588,Revenue,CAHD,Bed Purchasing - Southmead Hospital,Permanent Nursing,Milestones - Unit 10,1714.51, 16-Jan-2018
1589,Revenue,CAHD,Bed Purchasing - North,Permanent Residential,Milestones - Unit 10,7353.56, 16-Jan-2018
1590,Revenue,CAHD,South Glos Users in South Glos Homes,Permanent Nursing,Milestones - Unit 10,620.20, 16-Jan-2018
1591,Revenue,CAHD,Bed Purchasing - Elderly S117- North,Permanent Nursing,Milestones - Unit 10,3556.68, 16-Jan-2018
1592,Revenue,CAHD,Jointly Funded H&SC Packages,Permanent Nursing,Milestones - Unit 10,5773.44, 16-Jan-2018
1593,Revenue,CAHD,South Glos Users in South Glos Homes,Permanent Nursing,Milestones - Unit 10,620.20, 16-Jan-2018
1594,Revenue,CAHD,South Glos Users in South Glos Homes,Permanent Nursing,Milestones - Unit 10,620.20, 16-Jan-2018
1595,Revenue,CAHD,Bed Purchasing - South,Permanent Residential,Milestones - Unit 10,2731.04, 16-Jan-2018
1596,Revenue,CAHD,18-25 Year Olds,Permanent Residential,Milestones - Unit 10,4858.88, 16-Jan-2018
1597,Revenue,CAHD,South Glos Users in South Glos Homes,Permanent Nursing,Milestones - Unit 10,620.20, 16-Jan-2018
1598,Revenue,CAHD,Bed Purchasing - South,Permanent Residential,Milestones - Unit 10,4987.12, 16-Jan-2018
1599,Revenue,CAHD,Bed Purchasing - South,Permanent Residential,Milestones - Unit 10,4912.96, 16-Jan-2018
1600,Revenue,CAHD,Bed purchasing -S28A  Under 65 - North,Permanent Residential,Milestones - Unit 10,4104.76, 16-Jan-2018
1601,Revenue,CAHD,Bed purchasing -S28A  Under 65 - North,Permanent Residential,Milestones - Unit 10,6050.68, 16-Jan-2018
1602,Revenue,CAHD,Bed purchasing - S28A Under 65 - South,Permanent Residential,Milestones - Unit 10,6068.72, 16-Jan-2018
1603,Revenue,CAHD,Bed Purchasing - South,Permanent Residential,Milestones - Unit 10,5507.76, 16-Jan-2018
1604,Revenue,CAHD,Bed Purchasing - South,Permanent Residential,Milestones - Unit 10,6092.24, 16-Jan-2018
1605,Revenue,CAHD,Bed purchasing - S28A Under 65 - South,Permanent Nursing,Milestones - Unit 10,8085.08, 16-Jan-2018
1606,Revenue,CAHD,MH Purchasing - Younger,Permanent Residential,Milestones - Unit 10,1420.68, 16-Jan-2018
1607,Revenue,CAHD,Bed Purchasing - South,Permanent Residential,Milestones - Unit 10,5782.20, 16-Jan-2018
1608,Revenue,CAHD,Bed Purchasing - South,Permanent Residential,Milestones - Unit 10,5824.92, 16-Jan-2018
1609,Revenue,CAHD,Bed Purchasing - South,Permanent Residential,Milestones - Unit 10,4155.68, 16-Jan-2018
1610,Revenue,CAHD,Bed Purchasing - North,Permanent Residential,Milestones - Unit 10,3983.88, 16-Jan-2018
1611,Revenue,CAHD,Bed Purchasing - South,Permanent Nursing,Milestones - Unit 10,6604.76, 16-Jan-2018
1612,Revenue,CAHD,Bed Purchasing - North,Permanent Residential,Milestones - Unit 10,4415.80, 16-Jan-2018
1613,Revenue,CAHD,Bed purchasing -S28A  Under 65 - North,Permanent Nursing,Milestones - Unit 10,5857.12, 16-Jan-2018
1614,Revenue,CAHD,South Glos Users in South Glos Homes,Permanent Nursing,Milestones - Unit 10,620.20, 16-Jan-2018
1615,Revenue,CAHD,Bed Purchasing - North,Permanent Residential,Milestones - Unit 10,5267.36, 16-Jan-2018
1616,Revenue,CAHD,Bed purchasing -S28A  Under 65 - North,Permanent Residential,Milestones - Unit 10,7657.52, 16-Jan-2018
1617,Revenue,CAHD,Bed purchasing -S28A  Under 65 - North,Permanent Nursing,Milestones - Unit 10,6352.52, 16-Jan-2018
1618,Revenue,CAHD,South Glos Users in South Glos Homes,Permanent Nursing,Milestones - Unit 10,620.20, 16-Jan-2018
1619,Revenue,CAHD,Bed purchasing -S28A  Under 65 - North,Permanent Residential,Milestones - Unit 10,7353.56, 16-Jan-2018
1620,Revenue,CAHD,Bed Purchasing - South,Permanent Nursing,Milestones - Unit 10,6668.72, 16-Jan-2018
1621,Revenue,CAHD,Bed purchasing - S28A Under 65 - South,Permanent Residential,Milestones - Unit 10,5151.48, 16-Jan-2018
1622,Revenue,CAHD,Bed Purchasing - S28A - Over 65- North,Permanent Residential,Milestones - Unit 10,7369.16, 16-Jan-2018
1623,Revenue,CAHD,Bed purchasing -S28A  Under 65 - North,Permanent Residential,Milestones - Unit 10,7657.52, 16-Jan-2018
1624,Revenue,CAHD,Bed purchasing -S28A  Under 65 - North,Permanent Residential,Milestones - Unit 10,7657.52, 16-Jan-2018
1625,Revenue,CAHD,Bed Purchasing - LD S28A- Over 65- South,Permanent Residential,Milestones - Unit 10,4880.20, 16-Jan-2018
1626,Revenue,CAHD,Bed purchasing - S28A Under 65 - South,Permanent Residential,Milestones - Unit 10,5100.92, 16-Jan-2018
1627,Revenue,CAHD,Bed Purchasing - South,Permanent Residential,Milestones - Unit 10,9969.80, 16-Jan-2018
1628,Revenue,CAHD,Bed purchasing - S28A Under 65 - South,Permanent Residential,Milestones - Unit 10,4235.12, 16-Jan-2018
1629,Revenue,CAHD,Bed Purchasing - LD S28A- Over 65- South,Permanent Residential,Milestones - Unit 10,5446.00, 16-Jan-2018
1630,Revenue,CAHD,Bed Purchasing - LD S28A- Over 65- South,Permanent Residential,Milestones - Unit 10,5880.56, 16-Jan-2018
1631,Revenue,CAHD,Bed Purchasing - LD S28A- Over 65- South,Permanent Nursing,Milestones - Unit 10,7929.76, 16-Jan-2018
1632,Revenue,CAHD,Bed Purchasing - S28A - Over 65- North,Permanent Residential,Milestones - Unit 10,3524.76, 16-Jan-2018
1633,Revenue,CAHD,Bed Purchasing - South,Permanent Residential,Milestones - Unit 10,5197.72, 16-Jan-2018
1634,Revenue,CAHD,Section 117 Placements MH Younger,Permanent Residential,Milestones - Unit 10,1444.52, 16-Jan-2018
1635,Revenue,CAHD,Bed Purchasing - South,Permanent Residential,Milestones - Unit 10,1458.72, 16-Jan-2018
1636,Revenue,CAHD,Bed Purchasing - Southmead Hospital,Permanent Nursing,Milestones - Unit 10,6501.08, 16-Jan-2018
1637,Revenue,CAHD,Bed Purchasing - North,Permanent Residential,Milestones - Unit 10,5106.84, 16-Jan-2018
1638,Revenue,CAHD,Bed Purchasing - South,Permanent Nursing,Milestones - Unit 10,7227.04, 16-Jan-2018
1639,Revenue,CAHD,South Glos Users in South Glos Homes,Permanent Nursing,Milestones - Unit 10,620.20, 16-Jan-2018
1640,Revenue,CAHD,Bed Purchasing - South,Permanent Residential,Milestones - Unit 10,4800.52, 16-Jan-2018
1641,Revenue,CAHD,Bed purchasing -S28A  Under 65 - North,Permanent Residential,Milestones - Unit 10,6221.96, 16-Jan-2018
1642,Revenue,CAHD,Bed Purchasing - S28A - Over 65- North,Permanent Residential,Milestones - Unit 10,4353.68, 16-Jan-2018
1643,Revenue,CAHD,MH Purchasing - Younger,Permanent Residential,Milestones - Unit 10,1420.68, 16-Jan-2018
1644,Revenue,CAHD,Bed Purchasing - S28A - Over 65- North,Permanent Residential,Milestones - Unit 10,3944.84, 16-Jan-2018
1645,Revenue,CAHD,Bed Purchasing - LD S28A- Over 65- South,Permanent Residential,Milestones - Unit 10,4838.52, 16-Jan-2018
1646,Revenue,CAHD,Bed purchasing - S28A Under 65 - South,Permanent Residential,Milestones - Unit 10,5698.88, 16-Jan-2018
1647,Revenue,CAHD,Bed purchasing - S28A Under 65 - South,Permanent Nursing,Milestones - Unit 10,5898.88, 16-Jan-2018
1648,Revenue,CAHD,South Glos Users in South Glos Homes,Permanent Nursing,Milestones - Unit 10,620.20, 16-Jan-2018
1649,Revenue,CAHD,Bed Purchasing - LD S28A- Over 65- South,Permanent Nursing,Milestones - Unit 10,5937.96, 16-Jan-2018
1650,Revenue,CAHD,South Glos Users in South Glos Homes,Permanent Nursing,Milestones - Unit 10,620.20, 16-Jan-2018
1651,Revenue,CAHD,Bed Purchasing - LD S28A- Over 65- South,Permanent Residential,Milestones - Unit 10,5448.00, 16-Jan-2018
1652,Revenue,CAHD,Bed Purchasing - LD S28A- Over 65- South,Permanent Residential,Milestones - Unit 10,5328.24, 16-Jan-2018
1653,Revenue,CAHD,Bed purchasing - S28A Under 65 - South,Permanent Residential,Milestones - Unit 10,8532.00, 16-Jan-2018
1654,Revenue,CAHD,Bed Purchasing - LD S28A- Over 65- South,Permanent Residential,Milestones - Unit 10,5436.00, 16-Jan-2018
1655,Revenue,CAHD,Bed Purchasing - S28A - Over 65- North,Permanent Nursing,Milestones - Unit 10,5440.76, 16-Jan-2018
1656,Revenue,CAHD,South Glos Users in South Glos Homes,Permanent Nursing,Milestones - Unit 10,620.20, 16-Jan-2018
1657,Revenue,CAHD,Bed Purchasing - S28A - Over 65- North,Permanent Residential,Milestones - Unit 10,5405.64, 16-Jan-2018
1658,Revenue,CAHD,Bed purchasing - S28A Under 65 - South,Permanent Residential,Milestones - Unit 10,5396.40, 16-Jan-2018
1659,Revenue,CAHD,Bed Purchasing - S28A - Over 65- North,Permanent Residential,Milestones - Unit 10,5314.88, 16-Jan-2018
1660,Revenue,CAHD,Bed purchasing -S28A  Under 65 - North,Permanent Residential,Milestones - Unit 10,7657.52, 16-Jan-2018
1661,Revenue,CAHD,Bed purchasing -S28A  Under 65 - North,Permanent Residential,Milestones - Unit 10,4233.28, 16-Jan-2018
1662,Revenue,CAHD,Bed Purchasing - S28A - Over 65- North,Permanent Residential,Milestones - Unit 10,4106.28, 16-Jan-2018
1663,Revenue,CAHD,South Glos Users in South Glos Homes,Permanent Nursing,Milestones - Unit 10,620.20, 16-Jan-2018
1664,Revenue,CAHD,Bed Purchasing - North,Permanent Nursing,Milestones - Unit 10,1947.24, 16-Jan-2018
1665,Revenue,CAHD,South Glos Users in South Glos Homes,Permanent Nursing,Milestones - Unit 10,620.20, 16-Jan-2018
1666,Revenue,CAHD,MH Purchasing - Younger,Permanent Nursing,Milestones - Unit 10,1553.56, 16-Jan-2018
1667,Revenue,CAHD,South Glos Users in South Glos Homes,Permanent Nursing,Milestones - Unit 10,620.20, 16-Jan-2018
1668,Revenue,CAHD,Bed Purchasing - South,Permanent Nursing,Milestones - Unit 10,6605.64, 16-Jan-2018
1669,Revenue,CAHD,South Glos Users in South Glos Homes,Permanent Nursing,Milestones - Unit 10,620.20, 16-Jan-2018
1670,Revenue,CAHD,South Glos Users in South Glos Homes,Permanent Nursing,Milestones - Unit 10,620.20, 16-Jan-2018
1671,Revenue,CAHD,Bed Purchasing - South,Permanent Residential,Milestones - Unit 10,3987.04, 16-Jan-2018
1672,Revenue,CAHD,Bed Purchasing - North,Permanent Residential,Milestones - Unit 10,6678.04, 16-Jan-2018
1673,Revenue,CAHD,Bed purchasing - S28A Under 65 - South,Permanent Residential,Milestones - Unit 10,6474.72, 16-Jan-2018
1674,Revenue,CAHD,Bed purchasing - S28A Under 65 - South,Permanent Residential,Milestones - Unit 10,6752.32, 16-Jan-2018
1675,Revenue,CAHD,South Glos Users in South Glos Homes,Permanent Nursing,Milestones - Unit 10,620.20, 16-Jan-2018
1676,Revenue,CAHD,Bed Purchasing - LD S28A- Over 65- South,Permanent Residential,Milestones - Unit 10,5155.52, 16-Jan-2018
1677,Revenue,CAHD,Bed Purchasing - South,Permanent Residential,Milestones - Unit 10,6475.16, 16-Jan-2018
1678,Revenue,CAHD,Bed Purchasing - LD S28A- Over 65- South,Permanent Residential,Milestones - Unit 10,4221.00, 16-Jan-2018
1679,Revenue,CAHD,Bed Purchasing - South,Permanent Residential,Milestones - Unit 10,1886.24, 16-Jan-2018
1680,Revenue,CAHD,Bed Purchasing - Elderly S117- North,Permanent Nursing,Milestones - Unit 10,3692.80, 16-Jan-2018
1681,Revenue,CAHD,South Glos Users in South Glos Homes,Permanent Nursing,Milestones - Unit 10,620.20, 16-Jan-2018
1682,Revenue,CAHD,Section 117 Placements MH Younger,Permanent Residential,Milestones - Unit 10,1444.52, 16-Jan-2018
1683,Revenue,CAHD,Bed Purchasing - North,Permanent Nursing,Milestones - Unit 10,4511.88, 16-Jan-2018
1684,Revenue,CAHD,Bed Purchasing - South,Permanent Nursing,Milestones - Unit 10,4160.52, 16-Jan-2018
1685,Revenue,CAHD,Bed Purchasing - South,Permanent Nursing,Milestones - Unit 10,3714.75, 16-Jan-2018
1686,Revenue,CAHD,Bed Purchasing - North,Permanent Nursing,Milestones - Unit 10,4796.84, 16-Jan-2018
1687,Revenue,CAHD,Bed Purchasing - South,Permanent Nursing,Milestones - Unit 10,4029.08, 16-Jan-2018
1688,Revenue,CAHD,Bed Purchasing - South,Permanent Nursing,Milestones - Unit 10,3370.00, 16-Jan-2018
1689,Revenue,CAHD,Bed Purchasing - South,Permanent Nursing,Milestones - Unit 10,4826.08, 16-Jan-2018
1690,Revenue,CAHD,Bed Purchasing - South,Permanent Nursing,Milestones - Unit 10,7393.84, 16-Jan-2018
1691,Revenue,CAHD,Section 117 Placements MH Younger,Permanent Residential,Milestones - Unit 10,6291.80, 16-Jan-2018
1692,Revenue,CAHD,Section 117 Placements MH Younger,Permanent Residential,Milestones - Unit 10,4088.48, 16-Jan-2018
1693,Revenue,CAHD,Jointly Funded H&SC Packages,Permanent Residential,Milestones - Unit 10,1085.08, 16-Jan-2018
1694,Revenue,CAHD,Bed purchasing - Elderly S117 - South,Permanent Residential,Milestones - Unit 10,3255.20, 16-Jan-2018
1695,Revenue,CAHD,18-25 Year Olds,Other Small Contracts,Milestones Supported Living Services,1491.75, 17-Jan-2018
1696,Revenue,CAHD,Home Care - Elderly - South,Day Care / Social Activities,Milestones Supported Living Services,6040.19, 17-Jan-2018
1697,Revenue,CAHD,Home Care - Elderly - South,Other Small Contracts,Milestones Supported Living Services,12104.85, 17-Jan-2018
1698,Revenue,CAHD,Home Care - Elderly - North,Day Care / Social Activities,Milestones Supported Living Services,321.30, 17-Jan-2018
1699,Revenue,CAHD,Home Care - Elderly - North,Other Small Contracts,Milestones Supported Living Services,7679.02, 17-Jan-2018
1700,Revenue,CAHD,Home Care - Elderly - North,Supported Living,Milestones Supported Living Services,191.30, 17-Jan-2018
1701,Revenue,CAHD,Day Care - North,Day Care / Social Activities,Milestones Supported Living Services,146.88, 17-Jan-2018
1702,Revenue,CAHD,Younger MH non-res purchasing,Day Care / Social Activities,Milestones Supported Living Services,32.13, 17-Jan-2018
1703,Revenue,CAHD,Younger MH non-res purchasing,Other Small Contracts,Milestones Supported Living Services,100.97, 17-Jan-2018
1704,Revenue,CAHD,18-25 Year Olds,Other Small Contracts,Milestones Supported Living Services,1097.01, 25-Jan-2018
1705,Revenue,CAHD,Home Care - Elderly - South,Day Care / Social Activities,Milestones Supported Living Services,4337.87, 25-Jan-2018
1706,Revenue,CAHD,Home Care - Elderly - South,Other Small Contracts,Milestones Supported Living Services,13665.99, 25-Jan-2018
1707,Revenue,CAHD,Home Care - Elderly - North,Day Care / Social Activities,Milestones Supported Living Services,325.89, 25-Jan-2018
1708,Revenue,CAHD,Home Care - Elderly - North,Other Small Contracts,Milestones Supported Living Services,8098.96, 25-Jan-2018
1709,Revenue,CAHD,Home Care - Elderly - North,Supported Living,Milestones Supported Living Services,195.97, 25-Jan-2018
1710,Revenue,CAHD,Day Care - North,Day Care / Social Activities,Milestones Supported Living Services,146.88, 25-Jan-2018
1711,Revenue,CAHD,Younger MH non-res purchasing,Day Care / Social Activities,Milestones Supported Living Services,36.72, 25-Jan-2018
1712,Revenue,CAHD,Younger MH non-res purchasing,Other Small Contracts,Milestones Supported Living Services,146.87, 25-Jan-2018
1713,Revenue,CAHD,18-25 Year Olds,Other Small Contracts,Milestones Supported Living Services,1156.68, 10-Jan-2018
1714,Revenue,CAHD,Home Care - Elderly - South,Day Care / Social Activities,Milestones Supported Living Services,4303.84, 10-Jan-2018
1715,Revenue,CAHD,Home Care - Elderly - South,Other Small Contracts,Milestones Supported Living Services,13314.95, 10-Jan-2018
1716,Revenue,CAHD,Home Care - Elderly - North,Day Care / Social Activities,Milestones Supported Living Services,330.48, 10-Jan-2018
1717,Revenue,CAHD,Home Care - Elderly - North,Other Small Contracts,Milestones Supported Living Services,8051.73, 10-Jan-2018
1718,Revenue,CAHD,Home Care - Elderly - North,Supported Living,Milestones Supported Living Services,177.30, 10-Jan-2018
1719,Revenue,CAHD,Day Care - North,Day Care / Social Activities,Milestones Supported Living Services,146.88, 10-Jan-2018
1720,Revenue,CAHD,Younger MH non-res purchasing,Day Care / Social Activities,Milestones Supported Living Services,32.13, 10-Jan-2018
1721,Revenue,CAHD,Younger MH non-res purchasing,Other Small Contracts,Milestones Supported Living Services,146.89, 10-Jan-2018
1722,Revenue,CAHD,18-25 Year Olds,Other Small Contracts,Milestones Supported Living Services,1503.94, 10-Jan-2018
1723,Revenue,CAHD,Home Care - Elderly - South,Day Care / Social Activities,Milestones Supported Living Services,4314.16, 10-Jan-2018
1724,Revenue,CAHD,Home Care - Elderly - South,Other Small Contracts,Milestones Supported Living Services,13608.08, 10-Jan-2018
1725,Revenue,CAHD,Home Care - Elderly - North,Day Care / Social Activities,Milestones Supported Living Services,321.30, 10-Jan-2018
1726,Revenue,CAHD,Home Care - Elderly - North,Other Small Contracts,Milestones Supported Living Services,7967.54, 10-Jan-2018
1727,Revenue,CAHD,Home Care - Elderly - North,Supported Living,Milestones Supported Living Services,192.78, 10-Jan-2018
1728,Revenue,CAHD,Day Care - North,Day Care / Social Activities,Milestones Supported Living Services,146.88, 10-Jan-2018
1729,Revenue,CAHD,Younger MH non-res purchasing,Day Care / Social Activities,Milestones Supported Living Services,32.13, 10-Jan-2018
1730,Revenue,CAHD,Younger MH non-res purchasing,Other Small Contracts,Milestones Supported Living Services,123.92, 10-Jan-2018
1731,Revenue,CAHD,18-25 Year Olds,Other Small Contracts,Milestones Supported Living Services,1262.25, 15-Jan-2018
1732,Revenue,CAHD,Home Care - Elderly - South,Day Care / Social Activities,Milestones Supported Living Services,3873.71, 15-Jan-2018
1733,Revenue,CAHD,Home Care - Elderly - South,Other Small Contracts,Milestones Supported Living Services,13104.39, 15-Jan-2018
1734,Revenue,CAHD,Home Care - Elderly - North,Day Care / Social Activities,Milestones Supported Living Services,312.12, 15-Jan-2018
1735,Revenue,CAHD,Home Care - Elderly - North,Other Small Contracts,Milestones Supported Living Services,8073.83, 15-Jan-2018
1736,Revenue,CAHD,Home Care - Elderly - North,Supported Living,Milestones Supported Living Services,188.19, 15-Jan-2018
1737,Revenue,CAHD,Day Care - North,Day Care / Social Activities,Milestones Supported Living Services,146.88, 15-Jan-2018
1738,Revenue,CAHD,Younger MH non-res purchasing,Day Care / Social Activities,Milestones Supported Living Services,41.31, 15-Jan-2018
1739,Revenue,CAHD,Younger MH non-res purchasing,Other Small Contracts,Milestones Supported Living Services,146.88, 15-Jan-2018
1740,Revenue,CAHD,Home Care - Elderly - North,Supported Living,Milestones Trust,12361.50, 30-Jan-2018
1741,Revenue,CAHD,Learning Difficulties Development Fund,Other Supplies & Services,Milestones Trust,4106.25, 09-Jan-2018
1742,Revenue,CAHD,Home Care - Elderly - North,Other Small Contracts,Milestones Trust,653.90, 18-Jan-2018
1743,Revenue,CAHD,Stibbs and Fairburn,Respite Planned - Residential,Milestones Trust,132725.00, 22-Jan-2018
1744,Revenue,CAHD,Bed Purchasing - North,Permanent Residential,Millennium House,2034.12, 16-Jan-2018
1745,Revenue,CAHD,Bed Purchasing - Southmead Hospital,Permanent Nursing,Millennium House,2307.14, 16-Jan-2018
1746,Revenue,CAHD,Bed Purchasing - Southmead Hospital,Permanent Nursing,Millennium House,1492.86, 16-Jan-2018
1747,Revenue,CAHD,Services,Services,Individual ,2600.30, 12-Jan-2018
1748,Revenue,CAHD,Services,Services,Individual ,600.00, 12-Jan-2018
1749,Revenue,CAHD,Services,Services,Individual ,919.65, 12-Jan-2018
1750,Revenue,CAHD,Mental Capacity Act / DOLS,Legal Fees,Individual ,1950.00, 15-Jan-2018
1751,Revenue,CAHD,Home Care - Elderly - South,Supported Living,Moving On,8786.96, 16-Jan-2018
1752,Revenue,CAHD,Home Care - Elderly - South,Day Care / Social Activities,Moving On,1379.36, 26-Jan-2018
1753,Revenue,CAHD,Carer's Grant - MH Eld,Supported Living,Moving On,1565.76, 15-Jan-2018
1754,Revenue,CAHD,Home Care - Elderly - South,Other Small Contracts,Moving On,2162.24, 19-Jan-2018
1755,Revenue,CAHD,Tenancy Start Up Scheme,Other Supplies & Services,MP Property & Lettings,1720.00, 10-Jan-2018
1756,Revenue,CAHD,Social Lettings Agency,Fees - General,Individual ,10.70, 29-Jan-2018
1757,Revenue,CAHD,Social Lettings Agency,Other Supplies & Services,Individual ,603.00, 29-Jan-2018
1758,Revenue,CAHD,Services,Services,Individual ,2679.90, 12-Jan-2018
1759,Revenue,CAHD,Services,Services,Individual ,2679.90, 26-Jan-2018
1760,Revenue,CAHD,Social Lettings Agency,Fees - General,Individual ,12.22, 30-Jan-2018
1761,Revenue,CAHD,Social Lettings Agency,Other Supplies & Services,Individual ,690.32, 30-Jan-2018
1762,Revenue,CAHD,Homeless - Private Sector Leasing,Other Supplies & Services,Individual ,570.00, 05-Jan-2018
1763,Revenue,CAHD,Tenancy Start Up Scheme,Other Supplies & Services,Individual ,1785.00, 31-Jan-2018
1764,Revenue,CAHD,Homeless - Private Sector Leasing,Other Supplies & Services,Individual ,595.00, 23-Jan-2018
1765,Revenue,CAHD,Social Lettings Agency,Fees - General,Individual ,17.50, 25-Jan-2018
1766,Revenue,CAHD,Social Lettings Agency,Other Supplies & Services,Individual ,570.00, 25-Jan-2018
1767,Revenue,CAHD,Social Lettings Agency,Fees - General,Individual ,10.53, 08-Jan-2018
1768,Revenue,CAHD,Social Lettings Agency,Other Supplies & Services,Individual ,595.11, 08-Jan-2018
1769,Revenue,CAHD,Social Lettings Agency,Fees - General,Individual ,10.53, 22-Jan-2018
1770,Revenue,CAHD,Social Lettings Agency,Other Supplies & Services,Individual ,595.11, 22-Jan-2018
1771,Revenue,CAHD,Social Lettings Agency,Fees - General,Individual ,12.22, 19-Jan-2018
1772,Revenue,CAHD,Social Lettings Agency,Other Supplies & Services,Individual ,690.32, 19-Jan-2018
1773,Revenue,CAHD,Services,Services,Individual ,886.00, 26-Jan-2018
1774,Revenue,CAHD,Social Lettings Agency,Fees - General,Individual ,10.53, 16-Jan-2018
1775,Revenue,CAHD,Social Lettings Agency,Other Supplies & Services,Individual ,595.11, 16-Jan-2018
1776,Revenue,CAHD,Social Lettings Agency,Fees - General,Individual ,10.50, 12-Jan-2018
1777,Revenue,CAHD,Social Lettings Agency,Other Supplies & Services,Individual ,643.48, 12-Jan-2018
1778,Revenue,CAHD,Social Lettings Agency,Fees - General,Individual ,16.85, 22-Jan-2018
1779,Revenue,CAHD,Social Lettings Agency,Other Supplies & Services,Individual ,951.90, 22-Jan-2018
1780,Revenue,CAHD,Social Lettings Agency,Fees - General,Individual ,18.75, 30-Jan-2018
1781,Revenue,CAHD,Social Lettings Agency,Other Supplies & Services,Individual ,637.50, 30-Jan-2018
1782,Revenue,CAHD,Social Lettings Agency,Fees - General,Individual ,10.53, 12-Jan-2018
1783,Revenue,CAHD,Social Lettings Agency,Other Supplies & Services,Individual ,521.31, 12-Jan-2018
1784,Revenue,CAHD,Social Lettings Agency,Fees - General,Individual ,10.00, 24-Jan-2018
1785,Revenue,CAHD,Social Lettings Agency,Other Supplies & Services,Individual ,565.00, 24-Jan-2018
1786,Revenue,CAHD,Social Lettings Agency,Fees - General,Individual ,10.53, 12-Jan-2018
1787,Revenue,CAHD,Social Lettings Agency,Other Supplies & Services,Individual ,595.11, 12-Jan-2018
1788,Revenue,CAHD,Social Lettings Agency,Fees - General,Individual ,10.53, 12-Jan-2018
1789,Revenue,CAHD,Social Lettings Agency,Other Supplies & Services,Individual ,595.11, 12-Jan-2018
1790,Revenue,CAHD,Services,Services,Individual ,600.00, 12-Jan-2018
1791,Revenue,CAHD,Services,Services,Individual ,734.50, 26-Jan-2018
1792,Revenue,CAHD,Community Support - South,Preventative Assistance,Individual ,930.00, 05-Jan-2018
1793,Revenue,CAHD,Social Lettings Agency,Fees - General,Individual ,10.53, 08-Jan-2018
1794,Revenue,CAHD,Social Lettings Agency,Other Supplies & Services,Individual ,595.11, 08-Jan-2018
1795,Revenue,CAHD,Social Lettings Agency,Fees - General,Individual ,16.85, 11-Jan-2018
1796,Revenue,CAHD,Social Lettings Agency,Other Supplies & Services,Individual ,1000.00, 11-Jan-2018
1797,Revenue,CAHD,Social Lettings Agency,Fees - General,Individual ,13.12, 12-Jan-2018
1798,Revenue,CAHD,Social Lettings Agency,Other Supplies & Services,Individual ,577.87, 12-Jan-2018
1799,Revenue,CAHD,Services,Services,Individual ,675.70, 26-Jan-2018
1800,Revenue,CAHD,Alexandra Way,Cleaning & Domestic Services,Muzzell Healthcare,423.80, 04-Jan-2018
1801,Revenue,CAHD,Alexandra Way,Cleaning & Domestic Services,Muzzell Healthcare,738.70, 18-Jan-2018
1802,Revenue,CAHD,Tenancy Start Up Scheme,Other Supplies & Services,Individual ,880.00, 04-Jan-2018
1803,Revenue,CAHD,Bed Purchasing - North,Permanent Residential,Nas Services  Church House,7755.60, 16-Jan-2018
1804,Revenue,CAHD,Jointly Funded H&SC Packages,Permanent Residential,Nas Services  Church House,3149.96, 16-Jan-2018
1805,Revenue,CAHD,Bed Purchasing - North,Permanent Residential,Nas Services  Church House,6497.84, 16-Jan-2018
1806,Revenue,CAHD,Section 117 Placements MH Younger,Permanent Residential,Nas Services  Church House,7693.08, 16-Jan-2018
1807,Revenue,CAHD,Home Care - Elderly - South,Day Care / Social Activities,NAS Services Limited,310.08, 19-Jan-2018
1808,Revenue,CAHD,Home Care - Elderly - South,Other Small Contracts,NAS Services Limited,97.28, 19-Jan-2018
1809,Revenue,CAHD,Home Care - Elderly - South,Supported Living,NAS Services Limited,36.48, 19-Jan-2018
1810,Revenue,CAHD,Home Care - Elderly - North,Day Care / Social Activities,NAS Services Limited,626.24, 19-Jan-2018
1811,Revenue,CAHD,Home Care - Elderly - North,Other Small Contracts,NAS Services Limited,170.24, 19-Jan-2018
1812,Revenue,CAHD,Home Care - Elderly - North,Supported Living,NAS Services Limited,297.92, 19-Jan-2018
1813,Revenue,CAHD,Younger MH non-res purchasing,Day Care / Social Activities,NAS Services Limited,91.20, 19-Jan-2018
1814,Revenue,CAHD,Home Care - Elderly - South,Day Care / Social Activities,NAS Services Limited,218.88, 19-Jan-2018
1815,Revenue,CAHD,Home Care - Elderly - South,Other Small Contracts,NAS Services Limited,103.36, 19-Jan-2018
1816,Revenue,CAHD,Home Care - Elderly - South,Supported Living,NAS Services Limited,24.32, 19-Jan-2018
1817,Revenue,CAHD,Home Care - Elderly - North,Day Care / Social Activities,NAS Services Limited,632.32, 19-Jan-2018
1818,Revenue,CAHD,Home Care - Elderly - North,Other Small Contracts,NAS Services Limited,218.88, 19-Jan-2018
1819,Revenue,CAHD,Home Care - Elderly - North,Supported Living,NAS Services Limited,407.36, 19-Jan-2018
1820,Revenue,CAHD,Younger MH non-res purchasing,Day Care / Social Activities,NAS Services Limited,291.84, 19-Jan-2018
1821,Revenue,CAHD,Home Care - Elderly - South,Day Care / Social Activities,NAS Services Limited,224.96, 19-Jan-2018
1822,Revenue,CAHD,Home Care - Elderly - South,Other Small Contracts,NAS Services Limited,97.28, 19-Jan-2018
1823,Revenue,CAHD,Home Care - Elderly - South,Supported Living,NAS Services Limited,36.48, 19-Jan-2018
1824,Revenue,CAHD,Home Care - Elderly - North,Day Care / Social Activities,NAS Services Limited,626.24, 19-Jan-2018
1825,Revenue,CAHD,Home Care - Elderly - North,Other Small Contracts,NAS Services Limited,170.24, 19-Jan-2018
1826,Revenue,CAHD,Home Care - Elderly - North,Supported Living,NAS Services Limited,316.16, 19-Jan-2018
1827,Revenue,CAHD,Younger MH non-res purchasing,Day Care / Social Activities,NAS Services Limited,291.84, 19-Jan-2018
1828,Revenue,CAHD,Home Care - Elderly - South,Day Care / Social Activities,NAS Services Limited,322.24, 19-Jan-2018
1829,Revenue,CAHD,Home Care - Elderly - South,Other Small Contracts,NAS Services Limited,97.28, 19-Jan-2018
1830,Revenue,CAHD,Home Care - Elderly - South,Supported Living,NAS Services Limited,36.48, 19-Jan-2018
1831,Revenue,CAHD,Home Care - Elderly - North,Day Care / Social Activities,NAS Services Limited,626.24, 19-Jan-2018
1832,Revenue,CAHD,Home Care - Elderly - North,Other Small Contracts,NAS Services Limited,218.88, 19-Jan-2018
1833,Revenue,CAHD,Home Care - Elderly - North,Supported Living,NAS Services Limited,407.36, 19-Jan-2018
1834,Revenue,CAHD,Younger MH non-res purchasing,Day Care / Social Activities,NAS Services Limited,291.84, 19-Jan-2018
1835,Revenue,CAHD,Bed Purchasing - North,Permanent Residential,Nashley House Retirement Home,2300.00, 16-Jan-2018
1836,Revenue,CAHD,Training - Adult Services,Training Expenses,National Autistic Society,1675.98, 29-Jan-2018
1837,Revenue,CAHD,18-25 Year Olds,Respite Planned - Residential,National Star College,1147.39, 16-Jan-2018
1838,Revenue,CAHD,18-25 Year Olds,Respite Planned - Residential,National Star College,1147.39, 16-Jan-2018
1839,Revenue,CAHD,18-25 Year Olds,Respite Planned - Residential,National Star College,917.91, 16-Jan-2018
1840,Revenue,CAHD,Home Care - Elderly - South,Other Small Contracts,Nestor T/A Allied Healthcare,2781.60, 08-Jan-2018
1841,Revenue,CAHD,Home Care - Elderly - North,Other Small Contracts,Nestor T/A Allied Healthcare,6375.46, 08-Jan-2018
1842,Revenue,CAHD,Home Care - Elderly - South,Other Small Contracts,Nestor T/A Allied Healthcare,2764.24, 10-Jan-2018
1843,Revenue,CAHD,Home Care - Elderly - North,Other Small Contracts,Nestor T/A Allied Healthcare,6049.96, 10-Jan-2018
1844,Revenue,CAHD,Home Care - Elderly - South,Other Small Contracts,Nestor T/A Allied Healthcare,2859.72, 10-Jan-2018
1845,Revenue,CAHD,Home Care - Elderly - North,Other Small Contracts,Nestor T/A Allied Healthcare,6119.40, 10-Jan-2018
1846,Revenue,CAHD,Home Care - Elderly - South,Other Small Contracts,Nestor T/A Allied Healthcare,2525.54, 18-Jan-2018
1847,Revenue,CAHD,Home Care - Elderly - North,Other Small Contracts,Nestor T/A Allied Healthcare,5073.46, 18-Jan-2018
1848,Revenue,CAHD,Home Care - Elderly - South,Other Small Contracts,Nestor T/A Allied Healthcare,2564.60, 23-Jan-2018
1849,Revenue,CAHD,Home Care - Elderly - North,Other Small Contracts,Nestor T/A Allied Healthcare,5828.62, 23-Jan-2018
1850,Revenue,CAHD,Home Care - Elderly - South,Other Small Contracts,Network Health & Social Care T/A Network Ventures,2574.85, 16-Jan-2018
1851,Revenue,CAHD,Home Care - Elderly - North,Other Small Contracts,Network Health & Social Care T/A Network Ventures,5712.32, 16-Jan-2018
1852,Revenue,CAHD,Social Lettings Agency,Fees - General,Individual ,10.00, 04-Jan-2018
1853,Revenue,CAHD,Social Lettings Agency,Other Supplies & Services,Individual ,565.00, 04-Jan-2018
1854,Revenue,CAHD,Bed Purchasing - North,Permanent Residential,New Beginnings (Gloucester) Ltd,8329.28, 16-Jan-2018
